Workbook

Sheet Main
B10: 2024-05-03
B12: Sheet No. | C12: Template Name | D12: Summary
B13: 1 | C13: Future Intra | D13: For Intraday trading in F&O segment
B14: 2 | C14: Cash Intra | D14: For Intraday trading in cash market segment
B15: 3 | C15: Mid-cap Intra | D15: For Intraday trading in Mid-cap stocks
B16: 4 | C16: Bulk Deals | D16: Reveals Bulk Deals carried on NSE & BSE
B17: 5 | C17: Call Tracker
K27: `

Sheet Future Intra
M5: Back to Main Page
A6: FOR INTRA DAY TRADING | L6: =Main!B10 -> 2024-05-03
A9: Sr.no | B9: Sector | C9: Scrip | D9: Expiry Date | E9: CLOSE RATE | F9: Pivot Point | G9: Supports | J9: Resistances
E10: Point | F10: Point | G10: S1 | H10: S2 | I10: S3 | J10: R1 | K10: R2 | L10: R3 | M10: HIGH | N10: LOW | O10: OI | P10: % Change in OI
A11: 1 | B11: Index | C11: NIFTY | D11: 2024-05-30 | E11: 22773.95 | F11: 22756.80 | G11: 22705.20 | H11: 22636.45 | I11: 22584.85 | J11: 22825.55 | K11: 22877.15 | L11: 22945.90 | M11: 22808.4 | N11: 22688.05 | O11: 12230675 | P11: 2.50%
A12: 2 | B12: Index | C12: BANKNIFTY | D12: 2024-05-29 | E12: 49388.35 | F12: 49382.40 | G12: 49176.80 | H12: 48965.25 | I12: 48759.65 | J12: 49593.95 | K12: 49799.55 | L12: 50011.10 | M12: 49588 | N12: 49170.85 | O12: 2526360 | P12: -3.22%
A13: 3 | B13: Index | C13: FINNIFTY | D13: 2024-05-28 | E13: 21927.20 | F13: 21908.95 | G13: 21846.55 | H13: 21765.90 | I13: 21703.50 | J13: 21989.60 | K13: 22052.00 | L13: 22132.65 | M13: 21971.35 | N13: 21828.3 | O13: 56440 | P13: 12.97%
A14: 4 | B14: Index | C14: MIDCPNIFTY | D14: 2024-05-27 | E14: 11193.50 | F14: 11178.95 | G14: 11133.35 | H14: 11073.20 | I14: 11027.60 | J14: 11239.10 | K14: 11284.70 | L14: 11344.85 | M14: 11224.55 | N14: 11118.8 | O14: 1935725 | P14: 3.34%
A15: 5 | B15: Chemicals | C15: AARTIIND | D15: 2024-05-30 | E15: 749.85 | F15: 747.57 | G15: 743.63 | H15: 737.42 | I15: 733.48 | J15: 753.78 | K15: 757.72 | L15: 763.93 | M15: 751.5 | N15: 741.35 | O15: 13828000 | P15: 2.83%
A16: 6 | B16: Capital_Goods | C16: ABB | D16: 2024-05-30 | E16: 6722.25 | F16: 6691.20 | G16: 6603.05 | H16: 6483.85 | I16: 6395.70 | J16: 6810.40 | K16: 6898.55 | L16: 7017.75 | M16: 6779.35 | N16: 6572 | O16: 1130875 | P16: -2.36%
A17: 7 | B17: Pharma | C17: ABBOTINDIA | D17: 2024-05-30 | E17: 26912.75 | F17: 26758.65 | G17: 26529.25 | H17: 26145.75 | I17: 25916.35 | J17: 27142.15 | K17: 27371.55 | L17: 27755.05 | M17: 26988.05 | N17: 26375.15 | O17: 198280 | P17: -1.41%
A18: 8 | B18: Finance | C18: ABCAPITAL | D18: 2024-05-30 | E18: 234.55 | F18: 234.67 | G18: 232.88 | H18: 231.22 | I18: 229.43 | J18: 236.33 | K18: 238.12 | L18: 239.78 | M18: 236.45 | N18: 233 | O18: 69800400 | P18: 1.87%
A19: 9 | B19: Textile | C19: ABFRL | D19: 2024-05-30 | E19: 266.35 | F19: 266.80 | G19: 264.10 | H19: 261.85 | I19: 259.15 | J19: 269.05 | K19: 271.75 | L19: 274.00 | M19: 269.5 | N19: 264.55 | O19: 46293000 | P19: 1.00%
A20: 10 | B20: Cement | C20: ACC | D20: 2024-05-30 | E20: 2549.90 | F20: 2551.37 | G20: 2538.23 | H20: 2526.57 | I20: 2513.43 | J20: 2563.03 | K20: 2576.17 | L20: 2587.83 | M20: 2564.5 | N20: 2539.7 | O20: 5587500 | P20: -1.59%
A21: 11 | B21: Infrastructure | C21: ADANIENT | D21: 2024-05-30 | E21: 3064.70 | F21: 3080.22 | G21: 3019.48 | H21: 2974.27 | I21: 2913.53 | J21: 3125.43 | K21: 3186.17 | L21: 3231.38 | M21: 3140.95 | N21: 3035 | O21: 14349300 | P21: 0.67%
A22: 12 | B22: Infrastructure | C22: ADANIPORTS | D22: 2024-05-30 | E22: 1351.50 | F22: 1340.65 | G22: 1323.85 | H22: 1296.20 | I22: 1279.40 | J22: 1368.30 | K22: 1385.10 | L22: 1412.75 | M22: 1357.45 | N22: 1313 | O22: 39378800 | P22: 1.83%
A23: 13 | B23: Pharma | C23: ALKEM | D23: 2024-05-30 | E23: 4832.25 | F23: 4828.35 | G23: 4775.40 | H23: 4718.55 | I23: 4665.60 | J23: 4885.20 | K23: 4938.15 | L23: 4995.00 | M23: 4881.3 | N23: 4771.5 | O23: 1017100 | P23: 5.08%
A24: 14 | B24: Cement | C24: AMBUJACEM | D24: 2024-05-30 | E24: 630.35 | F24: 625.77 | G24: 616.83 | H24: 603.32 | I24: 594.38 | J24: 639.28 | K24: 648.22 | L24: 661.73 | M24: 634.7 | N24: 612.25 | O24: 45581400 | P24: -3.20%
A25: 15 | B25: Pharma | C25: APOLLOHOSP | D25: 2024-05-30 | E25: 6008.75 | F25: 6013.58 | G25: 5981.17 | H25: 5953.58 | I25: 5921.17 | J25: 6041.17 | K25: 6073.58 | L25: 6101.17 | M25: 6046 | N25: 5986 | O25: 2232625 | P25: 1.89%
A26: 16 | B26: Automobile | C26: APOLLOTYRE | D26: 2024-05-30 | E26: 512.10 | F26: 512.27 | G26: 505.53 | H26: 498.97 | I26: 492.23 | J26: 518.83 | K26: 525.57 | L26: 532.13 | M26: 519 | N26: 505.7 | O26: 12209400 | P26: -0.29%
A27: 17 | B27: Automobile | C27: ASHOKLEY | D27: 2024-05-30 | E27: 203.30 | F27: 200.85 | G27: 198.00 | H27: 192.70 | I27: 189.85 | J27: 206.15 | K27: 209.00 | L27: 214.30 | M27: 203.7 | N27: 195.55 | O27: 113260000 | P27: -1.35%
A28: 18 | B28: FMCG | C28: ASIANPAINT | D28: 2024-05-30 | E28: 3001.10 | F28: 2971.00 | G28: 2928.70 | H28: 2856.30 | I28: 2814.00 | J28: 3043.40 | K28: 3085.70 | L28: 3158.10 | M28: 3013.3 | N28: 2898.6 | O28: 10828200 | P28: -4.34%
A29: 19 | B29: Capital_Goods | C29: ASTRAL | D29: 2024-05-30 | E29: 2082.15 | F29: 2103.95 | G29: 2053.80 | H29: 2025.45 | I29: 1975.30 | J29: 2132.30 | K29: 2182.45 | L29: 2210.80 | M29: 2154.1 | N29: 2075.6 | O29: 2705891 | P29: 5.18%
A30: 20 | B30: Chemicals | C30: ATUL | D30: 2024-05-30 | E30: 6053.70 | F30: 6034.90 | G30: 5994.85 | H30: 5936.00 | I30: 5895.95 | J30: 6093.75 | K30: 6133.80 | L30: 6192.65 | M30: 6074.95 | N30: 5976.05 | O30: 587850 | P30: -1.17%
A31: 21 | B31: Banking | C31: AUBANK | D31: 2024-05-30 | E31: 647.25 | F31: 644.70 | G31: 638.85 | H31: 630.45 | I31: 624.60 | J31: 653.10 | K31: 658.95 | L31: 667.35 | M31: 650.55 | N31: 636.3 | O31: 17191000 | P31: -2.86%
A32: 22 | B32: Pharma | C32: AUROPHARMA | D32: 2024-05-30 | E32: 1165.20 | F32: 1162.52 | G32: 1154.73 | H32: 1144.27 | I32: 1136.48 | J32: 1172.98 | K32: 1180.77 | L32: 1191.23 | M32: 1170.3 | N32: 1152.05 | O32: 14101450 | P32: -0.18%
A33: 23 | B33: Banking | C33: AXISBANK | D33: 2024-05-30 | E33: 1160.30 | F33: 1166.30 | G33: 1151.60 | H33: 1142.90 | I33: 1128.20 | J33: 1175.00 | K33: 1189.70 | L33: 1198.40 | M33: 1181 | N33: 1157.6 | O33: 55601250 | P33: -2.20%
A34: 24 | B34: Automobile | C34: BAJAJ-AUTO | D34: 2024-05-30 | E34: 9160.90 | F34: 9068.63 | G34: 8953.27 | H34: 8745.63 | I34: 8630.27 | J34: 9276.27 | K34: 9391.63 | L34: 9599.27 | M34: 9184 | N34: 8861 | O34: 2416750 | P34: 0.76%
A35: 25 | B35: Finance | C35: BAJAJFINSV | D35: 2024-05-30 | E35: 1630.80 | F35: 1633.05 | G35: 1621.65 | H35: 1612.50 | I35: 1601.10 | J35: 1642.20 | K35: 1653.60 | L35: 1662.75 | M35: 1644.45 | N35: 1623.9 | O35: 9755500 | P35: -0.93%
A36: 26 | B36: Finance | C36: BAJFINANCE | D36: 2024-05-30 | E36: 6949.50 | F36: 6954.32 | G36: 6900.68 | H36: 6851.87 | I36: 6798.23 | J36: 7003.13 | K36: 7056.77 | L36: 7105.58 | M36: 7007.95 | N36: 6905.5 | O36: 8065375 | P36: 0.44%
A37: 27 | B37: Automobile | C37: BALKRISIND | D37: 2024-05-30 | E37: 2480.90 | F37: 2471.13 | G37: 2452.32 | H37: 2423.73 | I37: 2404.92 | J37: 2499.72 | K37: 2518.53 | L37: 2547.12 | M37: 2489.95 | N37: 2442.55 | O37: 1752300 | P37: -0.83%
A38: 28 | B38: FMCG | C38: BALRAMCHIN | D38: 2024-05-30 | E38: 398.75 | F38: 398.45 | G38: 395.60 | H38: 392.45 | I38: 389.60 | J38: 401.60 | K38: 404.45 | L38: 407.60 | M38: 401.3 | N38: 395.3 | O38: 12705600 | P38: 0.46%
A39: 29 | B39: Banking | C39: BANDHANBNK | D39: 2024-05-30 | E39: 192.00 | F39: 191.53 | G39: 190.27 | H39: 188.53 | I39: 187.27 | J39: 193.27 | K39: 194.53 | L39: 196.27 | M39: 192.8 | N39: 189.8 | O39: 106806600 | P39: -0.53%
A40: 30 | B40: Banking | C40: BANKBARODA | D40: 2024-05-30 | E40: 282.05 | F40: 283.33 | G40: 280.42 | H40: 278.78 | I40: 275.87 | J40: 284.97 | K40: 287.88 | L40: 289.52 | M40: 286.25 | N40: 281.7 | O40: 169196625 | P40: 3.21%
A41: 31 | B41: FMCG | C41: BATAINDIA | D41: 2024-05-30 | E41: 1362.20 | F41: 1365.43 | G41: 1354.22 | H41: 1346.23 | I41: 1335.02 | J41: 1373.42 | K41: 1384.63 | L41: 1392.62 | M41: 1376.65 | N41: 1357.45 | O41: 4029750 | P41: 1.42%
A42: 32 | B42: Capital_Goods | C42: BEL | D42: 2024-05-30 | E42: 236.70 | F42: 235.93 | G42: 232.57 | H42: 228.43 | I42: 225.07 | J42: 240.07 | K42: 243.43 | L42: 247.57 | M42: 239.3 | N42: 231.8 | O42: 147299400 | P42: -0.53%
A43: 33 | B43: FMCG | C43: BERGEPAINT | D43: 2024-05-30 | E43: 523.90 | F43: 520.53 | G43: 513.37 | H43: 502.83 | I43: 495.67 | J43: 531.07 | K43: 538.23 | L43: 548.77 | M43: 527.7 | N43: 510 | O43: 15099480 | P43: -2.44%
A44: 34 | B44: Automobile | C44: BHARATFORG | D44: 2024-05-30 | E44: 1284.95 | F44: 1284.68 | G44: 1273.32 | H44: 1261.68 | I44: 1250.32 | J44: 1296.32 | K44: 1307.68 | L44: 1319.32 | M44: 1296.05 | N44: 1273.05 | O44: 6726500 | P44: 2.16%
A45: 35 | B45: Telecom | C45: BHARTIARTL | D45: 2024-05-30 | E45: 1314.95 | F45: 1316.52 | G45: 1303.08 | H45: 1291.22 | I45: 1277.78 | J45: 1328.38 | K45: 1341.82 | L45: 1353.68 | M45: 1329.95 | N45: 1304.65 | O45: 32744125 | P45: 2.30%
A46: 36 | B46: Capital_Goods | C46: BHEL | D46: 2024-05-30 | E46: 294.70 | F46: 293.17 | G46: 284.83 | H46: 274.97 | I46: 266.63 | J46: 303.03 | K46: 311.37 | L46: 321.23 | M46: 301.5 | N46: 283.3 | O46: 77301000 | P46: -4.32%
A47: 37 | B47: Pharma | C47: BIOCON | D47: 2024-05-30 | E47: 313.00 | F47: 308.58 | G47: 302.37 | H47: 291.73 | I47: 285.52 | J47: 319.22 | K47: 325.43 | L47: 336.07 | M47: 314.8 | N47: 297.95 | O47: 59642500 | P47: -6.04%
A48: 38 | B48: Automobile | C48: BOSCHLTD | D48: 2024-05-30 | E48: 30914.40 | F48: 30550.92 | G48: 29953.48 | H48: 28992.57 | I48: 28395.13 | J48: 31511.83 | K48: 32109.27 | L48: 33070.18 | M48: 31148.35 | N48: 29590 | O48: 386525 | P48: 11.16%
A49: 39 | B49: Oil_Gas | C49: BPCL | D49: 2024-05-30 | E49: 639.55 | F49: 632.63 | G49: 623.62 | H49: 607.68 | I49: 598.67 | J49: 648.57 | K49: 657.58 | L49: 673.52 | M49: 641.65 | N49: 616.7 | O49: 27576900 | P49: 5.97%
A50: 40 | B50: FMCG | C50: BRITANNIA | D50: 2024-05-30 | E50: 4801.15 | F50: 4809.82 | G50: 4775.48 | H50: 4749.82 | I50: 4715.48 | J50: 4835.48 | K50: 4869.82 | L50: 4895.48 | M50: 4844.15 | N50: 4784.15 | O50: 1925800 | P50: 4.58%
A51: 41 | B51: Technology | C51: BSOFT | D51: 2024-05-30 | E51: 649.60 | F51: 649.85 | G51: 641.75 | H51: 633.90 | I51: 625.80 | J51: 657.70 | K51: 665.80 | L51: 673.65 | M51: 657.95 | N51: 642 | O51: 12545000 | P51: 8.71%
A52: 42 | B52: Banking | C52: CANBK | D52: 2024-05-30 | E52: 633.10 | F52: 632.07 | G52: 627.93 | H52: 622.77 | I52: 618.63 | J52: 637.23 | K52: 641.37 | L52: 646.53 | M52: 636.2 | N52: 626.9 | O52: 67111200 | P52: 0.26%
A53: 43 | B53: Finance | C53: CANFINHOME | D53: 2024-05-30 | E53: 783.40 | F53: 783.12 | G53: 768.43 | H53: 753.47 | I53: 738.78 | J53: 798.08 | K53: 812.77 | L53: 827.73 | M53: 797.8 | N53: 768.15 | O53: 4964700 | P53: -9.73%
A54: 44 | B54: Chemicals | C54: CHAMBLFERT | D54: 2024-05-30 | E54: 419.25 | F54: 422.78 | G54: 413.97 | H54: 408.68 | I54: 399.87 | J54: 428.07 | K54: 436.88 | L54: 442.17 | M54: 431.6 | N54: 417.5 | O54: 12262600 | P54: 0.99%
A55: 45 | B55: Finance | C55: CHOLAFIN | D55: 2024-05-30 | E55: 1313.40 | F55: 1281.33 | G55: 1243.27 | H55: 1173.13 | I55: 1135.07 | J55: 1351.47 | K55: 1389.53 | L55: 1459.67 | M55: 1319.4 | N55: 1211.2 | O55: 9689375 | P55: 3.36%
A56: 46 | B56: Pharma | C56: CIPLA | D56: 2024-05-30 | E56: 1432.85 | F56: 1426.47 | G56: 1414.93 | H56: 1397.02 | I56: 1385.48 | J56: 1444.38 | K56: 1455.92 | L56: 1473.83 | M56: 1438 | N56: 1408.55 | O56: 8684000 | P56: -0.57%
A57: 47 | B57: Metals | C57: COALINDIA | D57: 2024-05-30 | E57: 456.20 | F57: 456.73 | G57: 451.07 | H57: 445.93 | I57: 440.27 | J57: 461.87 | K57: 467.53 | L57: 472.67 | M57: 462.4 | N57: 451.6 | O57: 59054100 | P57: 6.13%
A58: 48 | B58: Technology | C58: COFORGE | D58: 2024-05-30 | E58: 5000.65 | F58: 5029.92 | G58: 4950.23 | H58: 4899.82 | I58: 4820.13 | J58: 5080.33 | K58: 5160.02 | L58: 5210.43 | M58: 5109.6 | N58: 4979.5 | O58: 2357850 | P58: 17.78%
A59: 49 | B59: FMCG | C59: COLPAL | D59: 2024-05-30 | E59: 2822.85 | F59: 2827.98 | G59: 2785.92 | H59: 2748.98 | I59: 2706.92 | J59: 2864.92 | K59: 2906.98 | L59: 2943.92 | M59: 2870.05 | N59: 2791.05 | O59: 3022250 | P59: 1.45%
A60: 50 | B60: Infrastructure | C60: CONCOR | D60: 2024-05-30 | E60: 1057.60 | F60: 1050.93 | G60: 1039.87 | H60: 1022.13 | I60: 1011.07 | J60: 1068.67 | K60: 1079.73 | L60: 1097.47 | M60: 1062 | N60: 1033.2 | O60: 13538000 | P60: 0.05%
A61: 51 | B61: Chemicals | C61: COROMANDEL | D61: 2024-05-30 | E61: 1219.10 | F61: 1216.35 | G61: 1207.75 | H61: 1196.40 | I61: 1187.80 | J61: 1227.70 | K61: 1236.30 | L61: 1247.65 | M61: 1224.95 | N61: 1205 | O61: 1892100 | P61: -3.67%
A62: 52 | B62: Capital_Goods | C62: CROMPTON | D62: 2024-05-30 | E62: 326.70 | F62: 327.67 | G62: 321.68 | H62: 316.67 | I62: 310.68 | J62: 332.68 | K62: 338.67 | L62: 343.68 | M62: 333.65 | N62: 322.65 | O62: 17712000 | P62: 7.48%
A63: 53 | B63: Banking | C63: CUB | D63: 2024-05-30 | E63: 163.60 | F63: 162.48 | G63: 161.02 | H63: 158.43 | I63: 156.97 | J63: 165.07 | K63: 166.53 | L63: 169.12 | M63: 163.95 | N63: 159.9 | O63: 33485000 | P63: 0.45%
A64: 54 | B64: Capital_Goods | C64: CUMMINSIND | D64: 2024-05-30 | E64: 3323.40 | F64: 3307.17 | G64: 3269.63 | H64: 3215.87 | I64: 3178.33 | J64: 3360.93 | K64: 3398.47 | L64: 3452.23 | M64: 3344.7 | N64: 3253.4 | O64: 3283200 | P64: 0.57%
A65: 55 | B65: FMCG | C65: DABUR | D65: 2024-05-30 | E65: 530.55 | F65: 527.53 | G65: 514.17 | H65: 497.78 | I65: 484.42 | J65: 543.92 | K65: 557.28 | L65: 573.67 | M65: 540.9 | N65: 511.15 | O65: 23172500 | P65: 7.37%
A66: 56 | B66: Cement | C66: DALBHARAT | D66: 2024-05-30 | E66: 1807.75 | F66: 1821.90 | G66: 1790.90 | H66: 1774.05 | I66: 1743.05 | J66: 1838.75 | K66: 1869.75 | L66: 1886.60 | M66: 1852.9 | N66: 1805.05 | O66: 3319275 | P66: 2.45%
A67: 57 | B67: Chemicals | C67: DEEPAKNTR | D67: 2024-05-30 | E67: 2502.50 | F67: 2483.83 | G67: 2448.67 | H67: 2394.83 | I67: 2359.67 | J67: 2537.67 | K67: 2572.83 | L67: 2626.67 | M67: 2519 | N67: 2430 | O67: 2075100 | P67: 0.96%
A68: 58 | B68: Pharma | C68: DIVISLAB | D68: 2024-05-30 | E68: 4002.40 | F68: 4000.07 | G68: 3970.13 | H68: 3937.87 | I68: 3907.93 | J68: 4032.33 | K68: 4062.27 | L68: 4094.53 | M68: 4030 | N68: 3967.8 | O68: 2645400 | P68: 5.15%
A69: 59 | B69: Capital_Goods | C69: DIXON | D69: 2024-05-30 | E69: 8485.40 | F69: 8435.47 | G69: 8370.98 | H69: 8256.57 | I69: 8192.08 | J69: 8549.88 | K69: 8614.37 | L69: 8728.78 | M69: 8499.95 | N69: 8321.05 | O69: 1047200 | P69: -0.87%
A70: 60 | B70: Realty | C70: DLF | D70: 2024-05-30 | E70: 904.85 | F70: 900.60 | G70: 892.30 | H70: 879.75 | I70: 871.45 | J70: 913.15 | K70: 921.45 | L70: 934.00 | M70: 908.9 | N70: 888.05 | O70: 40477800 | P70: -0.58%
A71: 61 | B71: Pharma | C71: DRREDDY | D71: 2024-05-30 | E71: 6298.20 | F71: 6272.82 | G71: 6233.68 | H71: 6169.17 | I71: 6130.03 | J71: 6337.33 | K71: 6376.47 | L71: 6440.98 | M71: 6311.95 | N71: 6208.3 | O71: 2341625 | P71: 9.42%
A72: 62 | B72: Automobile | C72: EICHERMOT | D72: 2024-05-30 | E72: 4622.85 | F72: 4629.12 | G72: 4566.93 | H72: 4511.02 | I72: 4448.83 | J72: 4685.03 | K72: 4747.22 | L72: 4803.13 | M72: 4691.3 | N72: 4573.2 | O72: 2885575 | P72: 2.24%
A73: 63 | B73: Automobile | C73: ESCORTS | D73: 2024-05-30 | E73: 3502.75 | F73: 3453.60 | G73: 3395.25 | H73: 3287.75 | I73: 3229.40 | J73: 3561.10 | K73: 3619.45 | L73: 3726.95 | M73: 3511.95 | N73: 3346.1 | O73: 1322750 | P73: 3.11%
A74: 64 | B74: Automobile | C74: EXIDEIND | D74: 2024-05-30 | E74: 467.75 | F74: 472.77 | G74: 457.73 | H74: 447.72 | I74: 432.68 | J74: 482.78 | K74: 497.82 | L74: 507.83 | M74: 487.8 | N74: 462.75 | O74: 14923800 | P74: -3.79%
A75: 65 | B75: Banking | C75: FEDERALBNK | D75: 2024-05-30 | E75: 169.40 | F75: 168.17 | G75: 164.93 | H75: 160.47 | I75: 157.23 | J75: 172.63 | K75: 175.87 | L75: 180.33 | M75: 171.4 | N75: 163.7 | O75: 111790000 | P75: -6.15%
A76: 66 | B76: Oil_Gas | C76: GAIL | D76: 2024-05-30 | E76: 206.35 | F76: 206.92 | G76: 202.13 | H76: 197.92 | I76: 193.13 | J76: 211.13 | K76: 215.92 | L76: 220.13 | M76: 211.7 | N76: 202.7 | O76: 140841375 | P76: -2.46%
A77: 67 | B77: Pharma | C77: GLENMARK | D77: 2024-05-30 | E77: 1068.75 | F77: 1067.62 | G77: 1060.03 | H77: 1051.32 | I77: 1043.73 | J77: 1076.33 | K77: 1083.92 | L77: 1092.63 | M77: 1075.2 | N77: 1058.9 | O77: 12005275 | P77: -0.68%
A78: 68 | B78: Infrastructure | C78: GMRINFRA | D78: 2024-05-30 | E78: 89.10 | F78: 87.58 | G78: 85.62 | H78: 82.13 | I78: 80.17 | J78: 91.07 | K78: 93.03 | L78: 96.52 | M78: 89.55 | N78: 84.1 | O78: 253822500 | P78: 7.96%
A79: 69 | B79: Chemicals | C79: GNFC | D79: 2024-05-30 | E79: 705.40 | F79: 709.03 | G79: 696.37 | H79: 687.33 | I79: 674.67 | J79: 718.07 | K79: 730.73 | L79: 739.77 | M79: 721.7 | N79: 700 | O79: 6487000 | P79: -0.08%
A80: 70 | B80: FMCG | C80: GODREJCP | D80: 2024-05-30 | E80: 1240.35 | F80: 1239.08 | G80: 1221.77 | H80: 1203.18 | I80: 1185.87 | J80: 1257.67 | K80: 1274.98 | L80: 1293.57 | M80: 1256.4 | N80: 1220.5 | O80: 6494500 | P80: 1.15%
A81: 71 | B81: Realty | C81: GODREJPROP | D81: 2024-05-30 | E81: 2557.60 | F81: 2571.53 | G81: 2477.12 | H81: 2396.63 | I81: 2302.22 | J81: 2652.02 | K81: 2746.43 | L81: 2826.92 | M81: 2665.95 | N81: 2491.05 | O81: 4732650 | P81: 8.61%
A82: 72 | B82: Pharma | C82: GRANULES | D82: 2024-05-30 | E82: 428.15 | F82: 426.67 | G82: 422.73 | H82: 417.32 | I82: 413.38 | J82: 432.08 | K82: 436.02 | L82: 441.43 | M82: 430.6 | N82: 421.25 | O82: 10870000 | P82: 0.07%
A83: 73 | B83: Cement | C83: GRASIM | D83: 2024-05-30 | E83: 2444.50 | F83: 2438.50 | G83: 2418.85 | H83: 2393.20 | I83: 2373.55 | J83: 2464.15 | K83: 2483.80 | L83: 2509.45 | M83: 2458.15 | N83: 2412.85 | O83: 6568290 | P83: -1.54%
A84: 74 | B84: Oil_Gas | C84: GUJGASLTD | D84: 2024-05-30 | E84: 541.90 | F84: 544.38 | G84: 535.77 | H84: 529.63 | I84: 521.02 | J84: 550.52 | K84: 559.13 | L84: 565.27 | M84: 553 | N84: 538.25 | O84: 6275000 | P84: 4.17%
A85: 75 | B85: Capital_Goods | C85: HAL | D85: 2024-05-30 | E85: 3976.95 | F85: 3976.58 | G85: 3952.67 | H85: 3928.38 | I85: 3904.47 | J85: 4000.87 | K85: 4024.78 | L85: 4049.07 | M85: 4000.5 | N85: 3952.3 | O85: 8089500 | P85: -1.74%
A86: 76 | B86: Capital_Goods | C86: HAVELLS | D86: 2024-05-30 | E86: 1682.90 | F86: 1684.30 | G86: 1658.60 | H86: 1634.30 | I86: 1608.60 | J86: 1708.60 | K86: 1734.30 | L86: 1758.60 | M86: 1710 | N86: 1660 | O86: 7034500 | P86: -3.64%
A87: 77 | B87: Technology | C87: HCLTECH | D87: 2024-05-30 | E87: 1355.50 | F87: 1359.28 | G87: 1348.67 | H87: 1341.83 | I87: 1331.22 | J87: 1366.12 | K87: 1376.73 | L87: 1383.57 | M87: 1369.9 | N87: 1352.45 | O87: 21309400 | P87: 7.58%
A88: 78 | B88: Finance | C88: HDFCAMC | D88: 2024-05-30 | E88: 3962.95 | F88: 3950.82 | G88: 3927.63 | H88: 3892.32 | I88: 3869.13 | J88: 3986.13 | K88: 4009.32 | L88: 4044.63 | M88: 3974 | N88: 3915.5 | O88: 2933250 | P88: 0.13%
A89: 79 | B89: Banking | C89: HDFCBANK | D89: 2024-05-30 | E89: 1523.95 | F89: 1519.98 | G89: 1513.42 | H89: 1502.88 | I89: 1496.32 | J89: 1530.52 | K89: 1537.08 | L89: 1547.62 | M89: 1526.55 | N89: 1509.45 | O89: 185040350 | P89: -2.15%
A90: 80 | B90: Finance | C90: HDFCLIFE | D90: 2024-05-30 | E90: 581.60 | F90: 583.47 | G90: 575.98 | H90: 570.37 | I90: 562.88 | J90: 589.08 | K90: 596.57 | L90: 602.18 | M90: 590.95 | N90: 577.85 | O90: 33880000 | P90: 5.39%
A91: 81 | B91: Automobile | C91: HEROMOTOCO | D91: 2024-05-30 | E91: 4605.10 | F91: 4607.70 | G91: 4565.40 | H91: 4525.70 | I91: 4483.40 | J91: 4647.40 | K91: 4689.70 | L91: 4729.40 | M91: 4650 | N91: 4568 | O91: 4528200 | P91: -2.25%
A92: 82 | B92: Metals | C92: HINDALCO | D92: 2024-05-30 | E92: 648.00 | F92: 644.38 | G92: 636.77 | H92: 625.53 | I92: 617.92 | J92: 655.62 | K92: 663.23 | L92: 674.47 | M92: 652 | N92: 633.15 | O92: 48662600 | P92: 18.04%
A93: 83 | B93: Metals | C93: HINDCOPPER | D93: 2024-05-30 | E93: 395.35 | F93: 393.83 | G93: 389.32 | H93: 383.28 | I93: 378.77 | J93: 399.87 | K93: 404.38 | L93: 410.42 | M93: 398.35 | N93: 387.8 | O93: 33427100 | P93: 4.70%
A94: 84 | B94: Oil_Gas | C94: HINDPETRO | D94: 2024-05-30 | E94: 538.40 | F94: 528.67 | G94: 516.13 | H94: 493.87 | I94: 481.33 | J94: 550.93 | K94: 563.47 | L94: 585.73 | M94: 541.2 | N94: 506.4 | O94: 31677750 | P94: 3.31%
A95: 85 | B95: FMCG | C95: HINDUNILVR | D95: 2024-05-30 | E95: 2244.25 | F95: 2243.52 | G95: 2232.03 | H95: 2219.82 | I95: 2208.33 | J95: 2255.73 | K95: 2267.22 | L95: 2279.43 | M95: 2255 | N95: 2231.3 | O95: 21984300 | P95: 0.20%
A96: 86 | B96: Banking | C96: ICICIBANK | D96: 2024-05-30 | E96: 1149.95 | F96: 1151.40 | G96: 1141.05 | H96: 1132.15 | I96: 1121.80 | J96: 1160.30 | K96: 1170.65 | L96: 1179.55 | M96: 1161.75 | N96: 1142.5 | O96: 81307800 | P96: -2.13%
A97: 87 | B97: Finance | C97: ICICIGI | D97: 2024-05-30 | E97: 1714.00 | F97: 1723.65 | G97: 1702.35 | H97: 1690.70 | I97: 1669.40 | J97: 1735.30 | K97: 1756.60 | L97: 1768.25 | M97: 1744.95 | N97: 1712 | O97: 3782500 | P97: 1.49%
A98: 88 | B98: Finance | C98: ICICIPRULI | D98: 2024-05-30 | E98: 577.70 | F98: 577.98 | G98: 572.47 | H98: 567.23 | I98: 561.72 | J98: 583.22 | K98: 588.73 | L98: 593.97 | M98: 583.5 | N98: 572.75 | O98: 15342000 | P98: 0.92%
A99: 89 | B99: Telecom | C99: IDEA | D99: 2024-05-30 | E99: 13.35 | F99: 13.45 | G99: 13.20 | H99: 13.05 | I99: 12.80 | J99: 13.60 | K99: 13.85 | L99: 14.00 | M99: 13.7 | N99: 13.3 | O99: 3752920000 | P99: -0.24%
A100: 90 | B100: Finance | C100: IDFC | D100: 2024-05-30 | E100: 122.35 | F100: 122.60 | G100: 121.80 | H100: 121.25 | I100: 120.45 | J100: 123.15 | K100: 123.95 | L100: 124.50 | M100: 123.4 | N100: 122.05 | O100: 78470000 | P100: -0.54%
A101: 91 | B101: Banking | C101: IDFCFIRSTB | D101: 2024-05-30 | E101: 82.40 | F101: 82.60 | G101: 82.00 | H101: 81.60 | I101: 81.00 | J101: 83.00 | K101: 83.60 | L101: 84.00 | M101: 83.2 | N101: 82.2 | O101: 380250000 | P101: 2.38%
A102: 92 | B102: Power | C102: IEX | D102: 2024-05-30 | E102: 157.75 | F102: 158.38 | G102: 155.87 | H102: 153.98 | I102: 151.47 | J102: 160.27 | K102: 162.78 | L102: 164.67 | M102: 160.9 | N102: 156.5 | O102: 67665000 | P102: 3.33%
A103: 93 | B103: Oil_Gas | C103: IGL | D103: 2024-05-30 | E103: 456.05 | F103: 458.87 | G103: 446.23 | H103: 436.42 | I103: 423.78 | J103: 468.68 | K103: 481.32 | L103: 491.13 | M103: 471.5 | N103: 449.05 | O103: 19113875 | P103: 16.65%
A104: 94 | B104: Infrastructure | C104: INDHOTEL | D104: 2024-05-30 | E104: 581.10 | F104: 582.37 | G104: 577.73 | H104: 574.37 | I104: 569.73 | J104: 585.73 | K104: 590.37 | L104: 593.73 | M104: 587 | N104: 579 | O104: 21707000 | P104: 0.33%
A105: 95 | B105: Cement | C105: INDIACEM | D105: 2024-05-30 | E105: 226.20 | F105: 226.22 | G105: 224.98 | H105: 223.77 | I105: 222.53 | J105: 227.43 | K105: 228.67 | L105: 229.88 | M105: 227.45 | N105: 225 | O105: 24687700 | P105: 0.39%
A106: 96 | B106: FMCG | C106: INDIAMART | D106: 2024-05-30 | E106: 2876.35 | F106: 2831.17 | G106: 2729.28 | H106: 2582.22 | I106: 2480.33 | J106: 2978.23 | K106: 3080.12 | L106: 3227.18 | M106: 2933.05 | N106: 2684.1 | O106: 1390500 | P106: 13.94%
A107: 97 | B107: Infrastructure | C107: INDIGO | D107: 2024-05-30 | E107: 4141.70 | F107: 4094.40 | G107: 4035.30 | H107: 3928.90 | I107: 3869.80 | J107: 4200.80 | K107: 4259.90 | L107: 4366.30 | M107: 4153.5 | N107: 3988 | O107: 4587600 | P107: 5.88%
A108: 98 | B108: Banking | C108: INDUSINDBK | D108: 2024-05-30 | E108: 1519.40 | F108: 1519.83 | G108: 1509.67 | H108: 1499.93 | I108: 1489.77 | J108: 1529.57 | K108: 1539.73 | L108: 1549.47 | M108: 1530 | N108: 1510.1 | O108: 24111000 | P108: -0.79%
A109: 99 | B109: Telecom | C109: INDUSTOWER | D109: 2024-05-30 | E109: 355.65 | F109: 357.03 | G109: 349.02 | H109: 342.38 | I109: 334.37 | J109: 363.67 | K109: 371.68 | L109: 378.32 | M109: 365.05 | N109: 350.4 | O109: 71298000 | P109: 0.03%
A110: 100 | B110: Technology | C110: INFY | D110: 2024-05-30 | E110: 1427.45 | F110: 1425.95 | G110: 1416.80 | H110: 1406.15 | I110: 1397.00 | J110: 1436.60 | K110: 1445.75 | L110: 1456.40 | M110: 1435.1 | N110: 1415.3 | O110: 50759200 | P110: 2.53%
A111: 101 | B111: Oil_Gas | C111: IOC | D111: 2024-05-30 | E111: 174.95 | F111: 173.38 | G111: 170.62 | H111: 166.28 | I111: 163.52 | J111: 177.72 | K111: 180.48 | L111: 184.82 | M111: 176.15 | N111: 169.05 | O111: 177913125 | P111: 8.53%
A112: 102 | B112: Pharma | C112: IPCALAB | D112: 2024-05-30 | E112: 1358.90 | F112: 1354.38 | G112: 1344.77 | H112: 1330.63 | I112: 1321.02 | J112: 1368.52 | K112: 1378.13 | L112: 1392.27 | M112: 1364 | N112: 1340.25 | O112: 1853800 | P112: -0.80%
A113: 103 | B113: Infrastructure | C113: IRCTC | D113: 2024-05-30 | E113: 1066.55 | F113: 1066.02 | G113: 1046.03 | H113: 1025.52 | I113: 1005.53 | J113: 1086.53 | K113: 1106.52 | L113: 1127.03 | M113: 1086 | N113: 1045.5 | O113: 16415875 | P113: 2.69%
A114: 104 | B114: FMCG | C114: ITC | D114: 2024-05-30 | E114: 440.70 | F114: 440.00 | G114: 435.80 | H114: 430.90 | I114: 426.70 | J114: 444.90 | K114: 449.10 | L114: 454.00 | M114: 444.2 | N114: 435.1 | O114: 118115200 | P114: 3.42%
A115: 105 | B115: Metals | C115: JINDALSTEL | D115: 2024-05-30 | E115: 951.00 | F115: 949.72 | G115: 936.43 | H115: 921.87 | I115: 908.58 | J115: 964.28 | K115: 977.57 | L115: 992.13 | M115: 963 | N115: 935.15 | O115: 13010625 | P115: 1.34%
A116: 106 | B116: Cement | C116: JKCEMENT | D116: 2024-05-30 | E116: 3974.55 | F116: 3993.37 | G116: 3942.28 | H116: 3910.02 | I116: 3858.93 | J116: 4025.63 | K116: 4076.72 | L116: 4108.98 | M116: 4044.45 | N116: 3961.1 | O116: 776500 | P116: 4.44%
A117: 107 | B117: Metals | C117: JSWSTEEL | D117: 2024-05-30 | E117: 898.45 | F117: 896.52 | G117: 890.53 | H117: 882.62 | I117: 876.63 | J117: 904.43 | K117: 910.42 | L117: 918.33 | M117: 902.5 | N117: 888.6 | O117: 18353250 | P117: 1.27%
A118: 108 | B118: FMCG | C118: JUBLFOOD | D118: 2024-05-30 | E118: 458.45 | F118: 460.57 | G118: 451.48 | H118: 444.52 | I118: 435.43 | J118: 467.53 | K118: 476.62 | L118: 483.58 | M118: 469.65 | N118: 453.6 | O118: 17965000 | P118: 5.86%
A119: 109 | B119: Banking | C119: KOTAKBANK | D119: 2024-05-30 | E119: 1590.85 | F119: 1589.97 | G119: 1565.88 | H119: 1540.92 | I119: 1516.83 | J119: 1614.93 | K119: 1639.02 | L119: 1663.98 | M119: 1614.05 | N119: 1565 | O119: 61142800 | P119: 10.53%
A120: 110 | B120: Finance | C120: LTF | D120: 2024-05-30 | E120: 170.95 | F120: 169.98 | G120: 168.47 | H120: 165.98 | I120: 164.47 | J120: 172.47 | K120: 173.98 | L120: 176.47 | M120: 171.5 | N120: 167.5 | O120: 50420600 | P120: -1.12%
A121: 111 | B121: Pharma | C121: LALPATHLAB | D121: 2024-05-30 | E121: 2365.35 | F121: 2378.22 | G121: 2345.38 | H121: 2325.42 | I121: 2292.58 | J121: 2398.18 | K121: 2431.02 | L121: 2450.98 | M121: 2411.05 | N121: 2358.25 | O121: 1350000 | P121: -2.11%
A122: 112 | B122: Pharma | C122: LAURUSLABS | D122: 2024-05-30 | E122: 454.20 | F122: 455.22 | G122: 449.83 | H122: 445.47 | I122: 440.08 | J122: 459.58 | K122: 464.97 | L122: 469.33 | M122: 460.6 | N122: 450.85 | O122: 15400300 | P122: 1.40%
A123: 113 | B123: Finance | C123: LICHSGFIN | D123: 2024-05-30 | E123: 675.00 | F123: 678.23 | G123: 667.97 | H123: 660.93 | I123: 650.67 | J123: 685.27 | K123: 695.53 | L123: 702.57 | M123: 688.5 | N123: 671.2 | O123: 34382000 | P123: 0.78%
A124: 114 | B124: Capital_Goods | C124: LT | D124: 2024-05-30 | E124: 3633.75 | F124: 3632.00 | G124: 3603.50 | H124: 3573.25 | I124: 3544.75 | J124: 3662.25 | K124: 3690.75 | L124: 3721.00 | M124: 3660.5 | N124: 3601.75 | O124: 15246900 | P124: 7.13%
A125: 115 | B125: Technology | C125: LTIM | D125: 2024-05-30 | E125: 4733.85 | F125: 4744.83 | G125: 4690.87 | H125: 4647.88 | I125: 4593.92 | J125: 4787.82 | K125: 4841.78 | L125: 4884.77 | M125: 4798.8 | N125: 4701.85 | O125: 3613350 | P125: -0.10%
A126: 116 | B126: Technology | C126: LTTS | D126: 2024-05-30 | E126: 4652.30 | F126: 4644.77 | G126: 4615.53 | H126: 4578.77 | I126: 4549.53 | J126: 4681.53 | K126: 4710.77 | L126: 4747.53 | M126: 4674 | N126: 4608 | O126: 1451100 | P126: -3.18%
A127: 117 | B127: Pharma | C127: LUPIN | D127: 2024-05-30 | E127: 1658.20 | F127: 1655.33 | G127: 1645.57 | H127: 1632.93 | I127: 1623.17 | J127: 1667.97 | K127: 1677.73 | L127: 1690.37 | M127: 1665.1 | N127: 1642.7 | O127: 6029900 | P127: 0.51%
A128: 118 | B128: Automobile | C128: M&M | D128: 2024-05-30 | E128: 2203.05 | F128: 2199.40 | G128: 2183.85 | H128: 2164.65 | I128: 2149.10 | J128: 2218.60 | K128: 2234.15 | L128: 2253.35 | M128: 2214.95 | N128: 2180.2 | O128: 12395950 | P128: 0.84%
A129: 119 | B129: Finance | C129: M&MFIN | D129: 2024-05-30 | E129: 266.65 | F129: 266.18 | G129: 264.17 | H129: 261.68 | I129: 259.67 | J129: 268.67 | K129: 270.68 | L129: 273.17 | M129: 268.2 | N129: 263.7 | O129: 34396000 | P129: -2.46%
A130: 120 | B130: Finance | C130: MANAPPURAM | D130: 2024-05-30 | E130: 202.05 | F130: 202.10 | G130: 200.10 | H130: 198.15 | I130: 196.15 | J130: 204.05 | K130: 206.05 | L130: 208.00 | M130: 204.1 | N130: 200.15 | O130: 59016000 | P130: -0.73%
A131: 121 | B131: FMCG | C131: MARICO | D131: 2024-05-30 | E131: 522.35 | F131: 521.73 | G131: 517.02 | H131: 511.68 | I131: 506.97 | J131: 527.07 | K131: 531.78 | L131: 537.12 | M131: 526.45 | N131: 516.4 | O131: 14167200 | P131: 0.20%
A132: 122 | B132: Automobile | C132: MARUTI | D132: 2024-05-30 | E132: 12870.50 | F132: 12779.53 | G132: 12657.02 | H132: 12443.53 | I132: 12321.02 | J132: 12993.02 | K132: 13115.53 | L132: 13329.02 | M132: 12902.05 | N132: 12566.05 | O132: 2558100 | P132: -0.89%
A133: 123 | B133: FMCG | C133: MCDOWELL-N | D133: 2024-05-30 | E133: 1203.30 | F133: 1200.42 | G133: 1187.08 | H133: 1170.87 | I133: 1157.53 | J133: 1216.63 | K133: 1229.97 | L133: 1246.18 | M133: 1213.75 | N133: 1184.2 | O133: 10607800 | P133: -0.87%
A134: 124 | B134: Technology | C134: MCX | D134: 2024-05-30 | E134: 4122.10 | F134: 4134.37 | G134: 4089.73 | H134: 4057.37 | I134: 4012.73 | J134: 4166.73 | K134: 4211.37 | L134: 4243.73 | M134: 4179 | N134: 4102 | O134: 2368000 | P134: 0.42%
A135: 125 | B135: Pharma | C135: METROPOLIS | D135: 2024-05-30 | E135: 1806.30 | F135: 1810.27 | G135: 1792.33 | H135: 1778.37 | I135: 1760.43 | J135: 1824.23 | K135: 1842.17 | L135: 1856.13 | M135: 1828.2 | N135: 1796.3 | O135: 1269200 | P135: 0.76%
A136: 126 | B136: Finance | C136: MFSL | D136: 2024-05-30 | E136: 1031.70 | F136: 1028.13 | G136: 1013.52 | H136: 995.33 | I136: 980.72 | J136: 1046.32 | K136: 1060.93 | L136: 1079.12 | M136: 1042.75 | N136: 1009.95 | O136: 7162400 | P136: -3.18%
A137: 127 | B137: Oil_Gas | C137: MGL | D137: 2024-05-30 | E137: 1470.70 | F137: 1465.02 | G137: 1452.63 | H137: 1434.57 | I137: 1422.18 | J137: 1483.08 | K137: 1495.47 | L137: 1513.53 | M137: 1477.4 | N137: 1446.95 | O137: 2418800 | P137: -2.75%
A138: 128 | B138: Automobile | C138: MOTHERSON | D138: 2024-05-30 | E138: 131.40 | F138: 131.72 | G138: 129.93 | H138: 128.47 | I138: 126.68 | J138: 133.18 | K138: 134.97 | L138: 136.43 | M138: 133.5 | N138: 130.25 | O138: 147488300 | P138: 0.66%
A139: 129 | B139: Technology | C139: MPHASIS | D139: 2024-05-30 | E139: 2341.35 | F139: 2338.83 | G139: 2324.02 | H139: 2306.68 | I139: 2291.87 | J139: 2356.17 | K139: 2370.98 | L139: 2388.32 | M139: 2353.65 | N139: 2321.5 | O139: 3114100 | P139: 2.16%
A140: 130 | B140: Automobile | C140: MRF | D140: 2024-05-30 | E140: 134880.25 | F140: 134313.03 | G140: 132861.57 | H140: 130842.88 | I140: 129391.42 | J140: 136331.72 | K140: 137783.18 | L140: 139801.87 | M140: 135764.5 | N140: 132294.35 | O140: 49940 | P140: 1.37%
A141: 131 | B141: Finance | C141: MUTHOOTFIN | D141: 2024-05-30 | E141: 1709.85 | F141: 1710.78 | G141: 1689.57 | H141: 1669.28 | I141: 1648.07 | J141: 1731.07 | K141: 1752.28 | L141: 1772.57 | M141: 1732 | N141: 1690.5 | O141: 5400450 | P141: 0.13%
A142: 132 | B142: Metals | C142: NATIONALUM | D142: 2024-05-30 | E142: 188.45 | F142: 188.08 | G142: 185.72 | H142: 182.98 | I142: 180.62 | J142: 190.82 | K142: 193.18 | L142: 195.92 | M142: 190.45 | N142: 185.35 | O142: 89996250 | P142: 0.81%
A143: 133 | B143: Technology | C143: NAUKRI | D143: 2024-05-30 | E143: 6119.10 | F143: 6091.50 | G143: 6048.05 | H143: 5977.00 | I143: 5933.55 | J143: 6162.55 | K143: 6206.00 | L143: 6277.05 | M143: 6134.95 | N143: 6020.45 | O143: 1454850 | P143: 2.04%
A144: 134 | B144: Chemicals | C144: NAVINFLUOR | D144: 2024-05-30 | E144: 3462.10 | F144: 3464.65 | G144: 3430.50 | H144: 3398.90 | I144: 3364.75 | J144: 3496.25 | K144: 3530.40 | L144: 3562.00 | M144: 3498.8 | N144: 3433.05 | O144: 2336175 | P144: 9.82%
A145: 135 | B145: FMCG | C145: NESTLEIND | D145: 2024-05-30 | E145: 2535.60 | F145: 2538.33 | G145: 2516.47 | H145: 2497.33 | I145: 2475.47 | J145: 2557.47 | K145: 2579.33 | L145: 2598.47 | M145: 2560.2 | N145: 2519.2 | O145: 5629600 | P145: -0.89%
A146: 136 | B146: Metals | C146: NMDC | D146: 2024-05-30 | E146: 260.30 | F146: 258.88 | G146: 255.52 | H146: 250.73 | I146: 247.37 | J146: 263.67 | K146: 267.03 | L146: 271.82 | M146: 262.25 | N146: 254.1 | O146: 78444000 | P146: -2.60%
A147: 137 | B147: Power | C147: NTPC | D147: 2024-05-30 | E147: 372.25 | F147: 370.70 | G147: 366.70 | H147: 361.15 | I147: 357.15 | J147: 376.25 | K147: 380.25 | L147: 385.80 | M147: 374.7 | N147: 365.15 | O147: 108183000 | P147: -0.25%
A148: 138 | B148: Realty | C148: OBEROIRLTY | D148: 2024-05-30 | E148: 1541.40 | F148: 1518.97 | G148: 1488.93 | H148: 1436.47 | I148: 1406.43 | J148: 1571.43 | K148: 1601.47 | L148: 1653.93 | M148: 1549 | N148: 1466.5 | O148: 4893000 | P148: 7.04%
A149: 139 | B149: Technology | C149: OFSS | D149: 2024-05-30 | E149: 7812.40 | F149: 7737.52 | G149: 7650.03 | H149: 7487.67 | I149: 7400.18 | J149: 7899.88 | K149: 7987.37 | L149: 8149.73 | M149: 7825 | N149: 7575.15 | O149: 1122200 | P149: -3.86%
A150: 140 | B150: Oil_Gas | C150: ONGC | D150: 2024-05-30 | E150: 284.90 | F150: 283.70 | G150: 281.60 | H150: 278.30 | I150: 276.20 | J150: 287.00 | K150: 289.10 | L150: 292.40 | M150: 285.8 | N150: 280.4 | O150: 77379225 | P150: 0.43%
A151: 141 | B151: Textile | C151: PAGEIND | D151: 2024-05-30 | E151: 35129.40 | F151: 35003.12 | G151: 34706.28 | H151: 34283.17 | I151: 33986.33 | J151: 35426.23 | K151: 35723.07 | L151: 36146.18 | M151: 35299.95 | N151: 34580 | O151: 184470 | P151: -1.00%
A152: 142 | B152: Pharma | C152: PEL | D152: 2024-05-30 | E152: 952.15 | F152: 942.12 | G152: 924.33 | H152: 896.52 | I152: 878.73 | J152: 969.93 | K152: 987.72 | L152: 1015.53 | M152: 959.9 | N152: 914.3 | O152: 12659250 | P152: 7.31%
A153: 143 | B153: Technology | C153: PERSISTENT | D153: 2024-05-30 | E153: 3436.95 | F153: 3426.72 | G153: 3395.53 | H153: 3354.12 | I153: 3322.93 | J153: 3468.13 | K153: 3499.32 | L153: 3540.73 | M153: 3457.9 | N153: 3385.3 | O153: 3691800 | P153: -1.61%
A154: 144 | B154: Oil_Gas | C154: PETRONET | D154: 2024-05-30 | E154: 322.80 | F154: 318.65 | G154: 312.50 | H154: 302.20 | I154: 296.05 | J154: 328.95 | K154: 335.10 | L154: 345.40 | M154: 324.8 | N154: 308.35 | O154: 45333000 | P154: 3.27%
A155: 145 | B155: Finance | C155: PFC | D155: 2024-05-30 | E155: 471.40 | F155: 465.47 | G155: 451.23 | H155: 431.07 | I155: 416.83 | J155: 485.63 | K155: 499.87 | L155: 520.03 | M155: 479.7 | N155: 445.3 | O155: 78994550 | P155: -0.51%
A156: 146 | B156: FMCG | C156: PIDILITIND | D156: 2024-05-30 | E156: 3016.65 | F156: 3043.97 | G156: 2953.48 | H156: 2890.32 | I156: 2799.83 | J156: 3107.13 | K156: 3197.62 | L156: 3260.78 | M156: 3134.45 | N156: 2980.8 | O156: 1869500 | P156: 13.34%
A157: 147 | B157: Chemicals | C157: PIIND | D157: 2024-05-30 | E157: 3672.55 | F157: 3671.57 | G157: 3635.18 | H157: 3597.82 | I157: 3561.43 | J157: 3708.93 | K157: 3745.32 | L157: 3782.68 | M157: 3707.95 | N157: 3634.2 | O157: 1670000 | P157: 5.53%
A158: 148 | B158: Banking | C158: PNB | D158: 2024-05-30 | E158: 139.40 | F158: 140.32 | G158: 137.38 | H158: 135.37 | I158: 132.43 | J158: 142.33 | K158: 145.27 | L158: 147.28 | M158: 143.25 | N158: 138.3 | O158: 268528000 | P158: 9.03%
A159: 149 | B159: Capital_Goods | C159: POLYCAB | D159: 2024-05-30 | E159: 5849.05 | F159: 5814.80 | G159: 5766.15 | H159: 5683.25 | I159: 5634.60 | J159: 5897.70 | K159: 5946.35 | L159: 6029.25 | M159: 5863.45 | N159: 5731.9 | O159: 1839100 | P159: 1.14%
A160: 150 | B160: Power | C160: POWERGRID | D160: 2024-05-30 | E160: 316.05 | F160: 312.60 | G160: 306.45 | H160: 296.85 | I160: 290.70 | J160: 322.20 | K160: 328.35 | L160: 337.95 | M160: 318.75 | N160: 303 | O160: 58860000 | P160: -1.90%
A161: 151 | B161: Media | C161: PVRINOX | D161: 2024-05-30 | E161: 1350.80 | F161: 1354.98 | G161: 1341.82 | H161: 1332.83 | I161: 1319.67 | J161: 1363.97 | K161: 1377.13 | L161: 1386.12 | M161: 1368.15 | N161: 1346 | O161: 5007321 | P161: 4.48%
A162: 152 | B162: Cement | C162: RAMCOCEM | D162: 2024-05-30 | E162: 779.15 | F162: 787.07 | G162: 769.38 | H162: 759.62 | I162: 741.93 | J162: 796.83 | K162: 814.52 | L162: 824.28 | M162: 804.75 | N162: 777.3 | O162: 9008300 | P162: 8.88%
A163: 153 | B163: Banking | C163: RBLBANK | D163: 2024-05-30 | E163: 269.30 | F163: 266.75 | G163: 263.20 | H163: 257.10 | I163: 253.55 | J163: 272.85 | K163: 276.40 | L163: 282.50 | M163: 270.3 | N163: 260.65 | O163: 62217500 | P163: -4.04%
A164: 154 | B164: Finance | C164: RECLTD | D164: 2024-05-30 | E164: 558.15 | F164: 543.93 | G164: 527.12 | H164: 496.08 | I164: 479.27 | J164: 574.97 | K164: 591.78 | L164: 622.82 | M164: 560.75 | N164: 512.9 | O164: 58374000 | P164: 16.12%
A165: 155 | B165: Oil_Gas | C165: RELIANCE | D165: 2024-05-30 | E165: 2960.15 | F165: 2960.23 | G165: 2948.62 | H165: 2937.08 | I165: 2925.47 | J165: 2971.77 | K165: 2983.38 | L165: 2994.92 | M165: 2971.85 | N165: 2948.7 | O165: 39950250 | P165: -0.08%
A166: 156 | B166: Metals | C166: SAIL | D166: 2024-05-30 | E166: 167.10 | F166: 167.05 | G166: 164.65 | H166: 162.20 | I166: 159.80 | J166: 169.50 | K166: 171.90 | L166: 174.35 | M166: 169.45 | N166: 164.6 | O166: 185872000 | P166: 3.20%
A167: 157 | B167: Finance | C167: SBICARD | D167: 2024-05-30 | E167: 734.50 | F167: 732.50 | G167: 727.65 | H167: 720.80 | I167: 715.95 | J167: 739.35 | K167: 744.20 | L167: 751.05 | M167: 737.35 | N167: 725.65 | O167: 20225600 | P167: -2.31%
A168: 158 | B168: Finance | C168: SBILIFE | D168: 2024-05-30 | E168: 1470.50 | F168: 1459.75 | G168: 1446.25 | H168: 1422.00 | I168: 1408.50 | J168: 1484.00 | K168: 1497.50 | L168: 1521.75 | M168: 1473.25 | N168: 1435.5 | O168: 10627500 | P168: -3.97%
A169: 159 | B169: Banking | C169: SBIN | D169: 2024-05-30 | E169: 827.15 | F169: 826.67 | G169: 822.93 | H169: 818.72 | I169: 814.98 | J169: 830.88 | K169: 834.62 | L169: 838.83 | M169: 830.4 | N169: 822.45 | O169: 96523500 | P169: -1.34%
A170: 160 | B170: Cement | C170: SHREECEM | D170: 2024-05-30 | E170: 25067.00 | F170: 25098.68 | G170: 24678.37 | H170: 24289.73 | I170: 23869.42 | J170: 25487.32 | K170: 25907.63 | L170: 26296.27 | M170: 25519 | N170: 24710.05 | O170: 351725 | P170: 6.19%
A171: 161 | B171: Capital_Goods | C171: SIEMENS | D171: 2024-05-30 | E171: 5925.65 | F171: 5926.92 | G171: 5859.83 | H171: 5794.02 | I171: 5726.93 | J171: 5992.73 | K171: 6059.82 | L171: 6125.63 | M171: 5994 | N171: 5861.1 | O171: 1305450 | P171: 3.64%
A172: 162 | B172: Textile | C172: SRF | D172: 2024-05-30 | E172: 2688.35 | F172: 2674.32 | G172: 2646.68 | H172: 2605.02 | I172: 2577.38 | J172: 2715.98 | K172: 2743.62 | L172: 2785.28 | M172: 2701.95 | N172: 2632.65 | O172: 4049250 | P172: -1.74%
A173: 163 | B173: Finance | C173: SHRIRAMFIN | D173: 2024-05-30 | E173: 2598.85 | F173: 2586.77 | G173: 2559.93 | H173: 2521.02 | I173: 2494.18 | J173: 2625.68 | K173: 2652.52 | L173: 2691.43 | M173: 2613.6 | N173: 2547.85 | O173: 6445200 | P173: -6.98%
A174: 164 | B174: Pharma | C174: SUNPHARMA | D174: 2024-05-30 | E174: 1533.40 | F174: 1529.98 | G174: 1519.02 | H174: 1504.63 | I174: 1493.67 | J174: 1544.37 | K174: 1555.33 | L174: 1569.72 | M174: 1540.95 | N174: 1515.6 | O174: 14603400 | P174: -0.09%
A175: 165 | B175: Media | C175: SUNTV | D175: 2024-05-30 | E175: 662.10 | F175: 662.40 | G175: 655.95 | H175: 649.80 | I175: 643.35 | J175: 668.55 | K175: 675.00 | L175: 681.15 | M175: 668.85 | N175: 656.25 | O175: 8956500 | P175: 0.61%
A176: 166 | B176: Pharma | C176: SYNGENE | D176: 2024-05-30 | E176: 693.35 | F176: 694.70 | G176: 690.40 | H176: 687.45 | I176: 683.15 | J176: 697.65 | K176: 701.95 | L176: 704.90 | M176: 699 | N176: 691.75 | O176: 7182000 | P176: 2.35%
A177: 167 | B177: Chemicals | C177: TATACHEM | D177: 2024-05-30 | E177: 1103.90 | F177: 1090.77 | G177: 1065.93 | H177: 1027.97 | I177: 1003.13 | J177: 1128.73 | K177: 1153.57 | L177: 1191.53 | M177: 1115.6 | N177: 1052.8 | O177: 11543950 | P177: -9.02%
A178: 168 | B178: Telecom | C178: TATACOMM | D178: 2024-05-30 | E178: 1760.70 | F178: 1756.03 | G178: 1745.67 | H178: 1730.63 | I178: 1720.27 | J178: 1771.07 | K178: 1781.43 | L178: 1796.47 | M178: 1766.4 | N178: 1741 | O178: 7516500 | P178: -0.21%
A179: 169 | B179: FMCG | C179: TATACONSUM | D179: 2024-05-30 | E179: 1096.80 | F179: 1099.52 | G179: 1085.33 | H179: 1073.87 | I179: 1059.68 | J179: 1110.98 | K179: 1125.17 | L179: 1136.63 | M179: 1113.7 | N179: 1088.05 | O179: 11869650 | P179: 2.30%
A180: 170 | B180: Automobile | C180: TATAMOTORS | D180: 2024-05-30 | E180: 1037.80 | F180: 1031.67 | G180: 1023.93 | H180: 1010.07 | I180: 1002.33 | J180: 1045.53 | K180: 1053.27 | L180: 1067.13 | M180: 1039.4 | N180: 1017.8 | O180: 64538475 | P180: 1.97%
A181: 171 | B181: Power | C181: TATAPOWER | D181: 2024-05-30 | E181: 462.35 | F181: 459.33 | G181: 454.47 | H181: 446.58 | I181: 441.72 | J181: 467.22 | K181: 472.08 | L181: 479.97 | M181: 464.2 | N181: 451.45 | O181: 95096025 | P181: 0.33%
A182: 172 | B182: Metals | C182: TATASTEEL | D182: 2024-05-30 | E182: 169.00 | F182: 168.38 | G182: 166.52 | H182: 164.03 | I182: 162.17 | J182: 170.87 | K182: 172.73 | L182: 175.22 | M182: 170.25 | N182: 165.9 | O182: 268603500 | P182: 5.89%
A183: 173 | B183: Technology | C183: TCS | D183: 2024-05-30 | E183: 3863.65 | F183: 3842.43 | G183: 3814.22 | H183: 3764.78 | I183: 3736.57 | J183: 3891.87 | K183: 3920.08 | L183: 3969.52 | M183: 3870.65 | N183: 3793 | O183: 14578900 | P183: -2.28%
A184: 174 | B184: Technology | C184: TECHM | D184: 2024-05-30 | E184: 1278.60 | F184: 1275.05 | G184: 1265.65 | H184: 1252.70 | I184: 1243.30 | J184: 1288.00 | K184: 1297.40 | L184: 1310.35 | M184: 1284.45 | N184: 1262.1 | O184: 16842600 | P184: 0.81%
A185: 175 | B185: FMCG | C185: TITAN | D185: 2024-05-30 | E185: 3591.80 | F185: 3586.87 | G185: 3566.48 | H185: 3541.17 | I185: 3520.78 | J185: 3612.18 | K185: 3632.57 | L185: 3657.88 | M185: 3607.25 | N185: 3561.55 | O185: 6137075 | P185: 3.37%
A186: 176 | B186: Pharma | C186: TORNTPHARM | D186: 2024-05-30 | E186: 2696.60 | F186: 2688.22 | G186: 2665.28 | H186: 2633.97 | I186: 2611.03 | J186: 2719.53 | K186: 2742.47 | L186: 2773.78 | M186: 2711.15 | N186: 2656.9 | O186: 1360500 | P186: 1.44%
A187: 177 | B187: Textile | C187: TRENT | D187: 2024-05-30 | E187: 4673.95 | F187: 4606.28 | G187: 4507.57 | H187: 4341.18 | I187: 4242.47 | J187: 4772.67 | K187: 4871.38 | L187: 5037.77 | M187: 4705 | N187: 4439.9 | O187: 3709200 | P187: 3.19%
A188: 178 | B188: Automobile | C188: TVSMOTOR | D188: 2024-05-30 | E188: 2092.50 | F188: 2104.20 | G188: 2070.40 | H188: 2048.30 | I188: 2014.50 | J188: 2126.30 | K188: 2160.10 | L188: 2182.20 | M188: 2138 | N188: 2082.1 | O188: 6017900 | P188: 6.48%
A189: 179 | B189: FMCG | C189: UBL | D189: 2024-05-30 | E189: 2020.95 | F189: 2019.88 | G189: 1999.92 | H189: 1978.88 | I189: 1958.92 | J189: 2040.92 | K189: 2060.88 | L189: 2081.92 | M189: 2039.85 | N189: 1998.85 | O189: 3078800 | P189: 9.13%
A190: 180 | B190: Cement | C190: ULTRACEMCO | D190: 2024-05-30 | E190: 10070.75 | F190: 10053.58 | G190: 10007.17 | H190: 9943.58 | I190: 9897.17 | J190: 10117.17 | K190: 10163.58 | L190: 10227.17 | M190: 10100 | N190: 9990 | O190: 2091300 | P190: -3.66%
A191: 181 | B191: Chemicals | C191: UPL | D191: 2024-05-30 | E191: 503.05 | F191: 506.32 | G191: 498.78 | H191: 494.52 | I191: 486.98 | J191: 510.58 | K191: 518.12 | L191: 522.38 | M191: 513.85 | N191: 502.05 | O191: 40010100 | P191: 3.34%
A192: 182 | B192: Metals | C192: VEDL | D192: 2024-05-30 | E192: 413.65 | F192: 409.92 | G192: 402.83 | H192: 392.02 | I192: 384.93 | J192: 420.73 | K192: 427.82 | L192: 438.63 | M192: 417 | N192: 399.1 | O192: 101579500 | P192: -1.24%
A193: 183 | B193: Capital_Goods | C193: VOLTAS | D193: 2024-05-30 | E193: 1484.15 | F193: 1481.03 | G193: 1463.12 | H193: 1442.08 | I193: 1424.17 | J193: 1502.07 | K193: 1519.98 | L193: 1541.02 | M193: 1498.95 | N193: 1460 | O193: 5307600 | P193: 2.71%
A194: 184 | B194: Technology | C194: WIPRO | D194: 2024-05-30 | E194: 461.60 | F194: 461.05 | G194: 458.00 | H194: 454.40 | I194: 451.35 | J194: 464.65 | K194: 467.70 | L194: 471.30 | M194: 464.1 | N194: 457.45 | O194: 61215000 | P194: 2.70%
A195: 185 | B195: Media | C195: ZEEL | D195: 2024-05-30 | E195: 145.00 | F195: 146.43 | G195: 143.22 | H195: 141.43 | I195: 138.22 | J195: 148.22 | K195: 151.43 | L195: 153.22 | M195: 149.65 | N195: 144.65 | O195: 135009000 | P195: -1.60%
A196: 186 | B196: Pharma | C196: ZYDUSLIFE | D196: 2024-05-30 | E196: 997.55 | F196: 984.98 | G196: 969.07 | H196: 940.58 | I196: 924.67 | J196: 1013.47 | K196: 1029.38 | L196: 1057.87 | M196: 1000.9 | N196: 956.5 | O196: 8940600 | P196: 3.33%
A221: Pivot Point: This is trigger point for intra day buy/sell based on the price range of the previous day
A222: As per the tool,the trader should take BUY position just above Pivot and keep the stop loss of pivot point and the first target would be Resistance 1(R1)
A223: If R1 is crossed then R2 becomes the next target with stop loss of at R1
A224: Similarly if price goes below pivot point then the trader should sell and keep a stop loss of pivot point and the first target would be S1
A225: If S1 is crossed then S2 becomes the next target with stop loss of at S1
A227: Disclaimer:
A228: This document has been prepared by the Retail Research Desk of Asit C Mehta
A229: Investment Intermediates Ltd. and is meant for use of the recipient only
A230: and is not for circulation. This document is not to be reported or
A231: copied or made available to others. It should not be considered to be
... 5 more rows

Sheet Cash Intra
M5: Back to Main Page
A6: FOR INTRA DAY TRADING | K6: =Main!B10 -> 2024-05-03
A8: Sr.no | C8: CLOSE RATE | D8: Pivot Point | E8: Supports | H8: Resistances
E9: S1 | F9: S2 | G9: S3 | H9: R1 | I9: R2 | J9: R3 | K9: HIGH | L9: LOW | M9: Total Trade Quanity in Lakhs
A10: 1 | B10: Nifty 50 | C10: 22648.20 | D10: 22642.18 | E10: 22573.87 | F10: 22499.53 | G10: 22431.22 | H10: 22716.52 | I10: 22784.83 | J10: 22859.17 | K10: 22710.50 | L10: 22567.85
A11: 2 | B11: Nifty Bank | C11: 49231.05 | D11: 49294.67 | E11: 49059.98 | F11: 48888.92 | G11: 48654.23 | H11: 49465.73 | I11: 49700.42 | J11: 49871.48 | K11: 49529.35 | L11: 49123.60
A12: 3 | B12: Nifty CPSE | C12: 6336.60 | D12: 6314.98 | E12: 6254.82 | F12: 6173.03 | G12: 6112.87 | H12: 6396.77 | I12: 6456.93 | J12: 6538.72 | K12: 6375.15 | L12: 6233.20
A13: 4 | B13: Nifty Infra | C13: 8630.50 | D13: 8620.75 | E13: 8591.60 | F13: 8552.70 | G13: 8523.55 | H13: 8659.65 | I13: 8688.80 | J13: 8727.70 | K13: 8649.90 | L13: 8581.85
A14: 5 | B14: Nifty IT | C14: 33203.35 | D14: 33198.28 | E14: 33064.37 | F14: 32925.38 | G14: 32791.47 | H14: 33337.27 | I14: 33471.18 | J14: 33610.17 | K14: 33332.20 | L14: 33059.30
A15: 6 | B15: Nifty PSE | C15: 10222.00 | D15: 10168.33 | E15: 10080.82 | F15: 9939.63 | G15: 9852.12 | H15: 10309.52 | I15: 10397.03 | J15: 10538.22 | K15: 10255.85 | L15: 10027.15
A16: 7 | B16: Nifty Midcap 50 | C16: 14243.60 | D16: 14222.87 | E16: 14185.28 | F16: 14126.97 | G16: 14089.38 | H16: 14281.18 | I16: 14318.77 | J16: 14377.08 | K16: 14260.45 | L16: 14164.55
A17: 8 | B17: ABB | C17: 6682.5 | D17: 6658.48 | E17: 6569.02 | F17: 6455.53 | G17: 6366.07 | H17: 6771.97 | I17: 6861.43 | J17: 6974.92 | K17: 6747.95 | L17: 6545 | M17: 3.17802
A18: 9 | B18: ACC | C18: 2529.45 | D18: 2534.32 | E18: 2516.63 | F18: 2503.82 | G18: 2486.13 | H18: 2547.13 | I18: 2564.82 | J18: 2577.63 | K18: 2552 | L18: 2521.5 | M18: 4.77663
A19: 10 | B19: APLAPOLLO | C19: 1590.2 | D19: 1583.33 | E19: 1570.67 | F19: 1551.13 | G19: 1538.47 | H19: 1602.87 | I19: 1615.53 | J19: 1635.07 | K19: 1596 | L19: 1563.8 | M19: 5.39141
A20: 11 | B20: AUBANK | C20: 645.3 | D20: 642.77 | E20: 636.53 | F20: 627.77 | G20: 621.53 | H20: 651.53 | I20: 657.77 | J20: 666.53 | K20: 649 | L20: 634 | M20: 43.10835
A21: 12 | B21: ADANIENSOL | C21: 1052.85 | D21: 1054.82 | E21: 1043.63 | F21: 1034.42 | G21: 1023.23 | H21: 1064.03 | I21: 1075.22 | J21: 1084.43 | K21: 1066 | L21: 1045.6 | M21: 31.69241
A22: 13 | B22: ADANIENT | C22: 3039.6 | D22: 3058.17 | E22: 2996.48 | F22: 2953.37 | G22: 2891.68 | H22: 3101.28 | I22: 3162.97 | J22: 3206.08 | K22: 3119.85 | L22: 3015.05 | M22: 22.19085
A23: 14 | B23: ADANIGREEN | C23: 1786.85 | D23: 1783.68 | E23: 1762.37 | F23: 1737.88 | G23: 1716.57 | H23: 1808.17 | I23: 1829.48 | J23: 1853.97 | K23: 1805 | L23: 1759.2 | M23: 5.17699
A24: 15 | B24: ADANIPORTS | C24: 1338.8 | D24: 1331.35 | E24: 1314.00 | F24: 1289.20 | G24: 1271.85 | H24: 1356.15 | I24: 1373.50 | J24: 1398.30 | K24: 1348.7 | L24: 1306.55 | M24: 79.91511
A25: 16 | B25: ADANIPOWER | C25: 608.1 | D25: 612.47 | E25: 600.33 | F25: 592.57 | G25: 580.43 | H25: 620.23 | I25: 632.37 | J25: 640.13 | K25: 624.6 | L25: 604.7 | M25: 58.88418
A26: 17 | B26: ATGL | C26: 932.15 | D26: 942.33 | E26: 914.82 | F26: 897.48 | G26: 869.97 | H26: 959.67 | I26: 987.18 | J26: 1004.52 | K26: 969.85 | L26: 925 | M26: 25.05289
A27: 18 | B27: AWL | C27: 351.45 | D27: 354.48 | E27: 347.67 | F27: 343.88 | G27: 337.07 | H27: 358.27 | I27: 365.08 | J27: 368.87 | K27: 361.3 | L27: 350.7 | M27: 26.32127
A28: 19 | B28: ABCAPITAL | C28: 232.4 | D28: 232.92 | E28: 231.08 | F28: 229.77 | G28: 227.93 | H28: 234.23 | I28: 236.07 | J28: 237.38 | K28: 234.75 | L28: 231.6 | M28: 90.52439
A29: 20 | B29: ABFRL | C29: 263.85 | D29: 264.77 | E29: 262.08 | F29: 260.32 | G29: 257.63 | H29: 266.53 | I29: 269.22 | J29: 270.98 | K29: 267.45 | L29: 263 | M29: 31.56674
A30: 21 | B30: ALKEM | C30: 4787.8 | D30: 4791.00 | E30: 4736.30 | F30: 4684.80 | G30: 4630.10 | H30: 4842.50 | I30: 4897.20 | J30: 4948.70 | K30: 4845.7 | L30: 4739.5 | M30: 2.16072
A31: 22 | B31: AMBUJACEM | C31: 625.7 | D31: 621.92 | E31: 612.93 | F31: 600.17 | G31: 591.18 | H31: 634.68 | I31: 643.67 | J31: 656.43 | K31: 630.9 | L31: 609.15 | M31: 62.86712
A32: 23 | B32: APOLLOHOSP | C32: 5958.55 | D32: 5966.00 | E32: 5932.00 | F32: 5905.45 | G32: 5871.45 | H32: 5992.55 | I32: 6026.55 | J32: 6053.10 | K32: 6000 | L32: 5939.45 | M32: 5.72406
A33: 24 | B33: APOLLOTYRE | C33: 513.35 | D33: 514.12 | E33: 509.43 | F33: 505.52 | G33: 500.83 | H33: 518.03 | I33: 522.72 | J33: 526.63 | K33: 518.8 | L33: 510.2 | M33: 14.86206
A34: 25 | B34: ASHOKLEY | C34: 201.35 | D34: 199.27 | E34: 196.58 | F34: 191.82 | G34: 189.13 | H34: 204.03 | I34: 206.72 | J34: 211.48 | K34: 201.95 | L34: 194.5 | M34: 505.11799
A35: 26 | B35: ASIANPAINT | C35: 2975.4 | D35: 2946.17 | E35: 2904.33 | F35: 2833.27 | G35: 2791.43 | H35: 3017.23 | I35: 3059.07 | J35: 3130.13 | K35: 2988 | L35: 2875.1 | M35: 24.93406
A36: 27 | B36: ASTRAL | C36: 2062.9 | D36: 2086.75 | E36: 2031.50 | F36: 2000.10 | G36: 1944.85 | H36: 2118.15 | I36: 2173.40 | J36: 2204.80 | K36: 2142 | L36: 2055.35 | M36: 4.63442
A37: 28 | B37: AUROPHARMA | C37: 1156.35 | D37: 1154.97 | E37: 1146.98 | F37: 1137.62 | G37: 1129.63 | H37: 1164.33 | I37: 1172.32 | J37: 1181.68 | K37: 1162.95 | L37: 1145.6 | M37: 7.13707
A38: 29 | B38: DMART | C38: 4605.05 | D38: 4608.50 | E38: 4574.55 | F38: 4544.05 | G38: 4510.10 | H38: 4639.00 | I38: 4672.95 | J38: 4703.45 | K38: 4642.45 | L38: 4578 | M38: 2.56067
A39: 30 | B39: AXISBANK | C39: 1149.85 | D39: 1157.28 | E39: 1140.57 | F39: 1131.28 | G39: 1114.57 | H39: 1166.57 | I39: 1183.28 | J39: 1192.57 | K39: 1174 | L39: 1148 | M39: 123.02236
A40: 31 | B40: BAJAJ-AUTO | C40: 9110.65 | D40: 9027.73 | E40: 8909.02 | F40: 8707.38 | G40: 8588.67 | H40: 9229.37 | I40: 9348.08 | J40: 9549.72 | K40: 9146.45 | L40: 8826.1 | M40: 6.38239
A41: 32 | B41: BAJFINANCE | C41: 6882.7 | D41: 6905.88 | E41: 6841.82 | F41: 6800.93 | G41: 6736.87 | H41: 6946.77 | I41: 7010.83 | J41: 7051.72 | K41: 6969.95 | L41: 6865 | M41: 11.39572
A42: 33 | B42: BAJAJFINSV | C42: 1615.45 | D42: 1620.48 | E42: 1605.97 | F42: 1596.48 | G42: 1581.97 | H42: 1629.97 | I42: 1644.48 | J42: 1653.97 | K42: 1635 | L42: 1611 | M42: 13.04846
A43: 34 | B43: BAJAJHLDNG | C43: 8110.5 | D43: 8124.93 | E43: 7999.87 | F43: 7889.23 | G43: 7764.17 | H43: 8235.57 | I43: 8360.63 | J43: 8471.27 | K43: 8250 | L43: 8014.3 | M43: 0.37195
A44: 35 | B44: BALKRISIND | C44: 2460.55 | D44: 2451.57 | E44: 2436.13 | F44: 2411.72 | G44: 2396.28 | H44: 2475.98 | I44: 2491.42 | J44: 2515.83 | K44: 2467 | L44: 2427.15 | M44: 1.83928
A45: 36 | B45: BANDHANBNK | C45: 190.75 | D45: 190.18 | E45: 189.07 | F45: 187.38 | G45: 186.27 | H45: 191.87 | I45: 192.98 | J45: 194.67 | K45: 191.3 | L45: 188.5 | M45: 119.38817
A46: 37 | B46: BANKBARODA | C46: 279.4 | D46: 280.77 | E46: 277.63 | F46: 275.87 | G46: 272.73 | H46: 282.53 | I46: 285.67 | J46: 287.43 | K46: 283.9 | L46: 279 | M46: 123.66464
A47: 38 | B47: BANKINDIA | C47: 151.65 | D47: 153.05 | E47: 149.70 | F47: 147.75 | G47: 144.40 | H47: 155.00 | I47: 158.35 | J47: 160.30 | K47: 156.4 | L47: 151.1 | M47: 91.30409
A48: 39 | B48: BATAINDIA | C48: 1354.25 | D48: 1360.02 | E48: 1345.23 | F48: 1336.22 | G48: 1321.43 | H48: 1369.03 | I48: 1383.82 | J48: 1392.83 | K48: 1374.8 | L48: 1351 | M48: 2.99319
A49: 40 | B49: BERGEPAINT | C49: 522.45 | D49: 519.78 | E49: 513.57 | F49: 504.68 | G49: 498.47 | H49: 528.67 | I49: 534.88 | J49: 543.77 | K49: 526 | L49: 510.9 | M49: 11.10923
A50: 41 | B50: BDL | C50: 1967.25 | D50: 1976.18 | E50: 1955.07 | F50: 1942.88 | G50: 1921.77 | H50: 1988.37 | I50: 2009.48 | J50: 2021.67 | K50: 1997.3 | L50: 1964 | M50: 4.72393
A51: 42 | B51: BEL | C51: 234.75 | D51: 234.30 | E51: 231.20 | F51: 227.65 | G51: 224.55 | H51: 237.85 | I51: 240.95 | J51: 244.50 | K51: 237.4 | L51: 230.75 | M51: 191.71145
A52: 43 | B52: BHARATFORG | C52: 1274.25 | D52: 1274.02 | E52: 1263.03 | F52: 1251.82 | G52: 1240.83 | H52: 1285.23 | I52: 1296.22 | J52: 1307.43 | K52: 1285 | L52: 1262.8 | M52: 4.92405
A53: 44 | B53: BHEL | C53: 292.7 | D53: 291.70 | E53: 283.15 | F53: 273.60 | G53: 265.05 | H53: 301.25 | I53: 309.80 | J53: 319.35 | K53: 300.25 | L53: 282.15 | M53: 523.94156
A54: 45 | B54: BPCL | C54: 634.65 | D54: 628.73 | E54: 620.42 | F54: 606.18 | G54: 597.87 | H54: 642.97 | I54: 651.28 | J54: 665.52 | K54: 637.05 | L54: 614.5 | M54: 158.83066
A55: 46 | B55: BHARTIARTL | C55: 1304.05 | D55: 1305.85 | E55: 1291.80 | F55: 1279.55 | G55: 1265.50 | H55: 1318.10 | I55: 1332.15 | J55: 1344.40 | K55: 1319.9 | L55: 1293.6 | M55: 79.95432
A56: 47 | B56: BIOCON | C56: 310.9 | D56: 306.82 | E56: 300.58 | F56: 290.27 | G56: 284.03 | H56: 317.13 | I56: 323.37 | J56: 333.68 | K56: 313.05 | L56: 296.5 | M56: 151.69926
A57: 48 | B57: BOSCHLTD | C57: 30670.45 | D57: 30308.82 | E57: 29717.68 | F57: 28764.92 | G57: 28173.78 | H57: 31261.58 | I57: 31852.72 | J57: 32805.48 | K57: 30899.95 | L57: 29356.05 | M57: 0.87649
A58: 49 | B58: BRITANNIA | C58: 4759.65 | D58: 4773.90 | E58: 4735.80 | F58: 4711.95 | G58: 4673.85 | H58: 4797.75 | I58: 4835.85 | J58: 4859.70 | K58: 4812 | L58: 4750.05 | M58: 3.56664
A59: 50 | B59: CGPOWER | C59: 549.05 | D59: 551.27 | E59: 545.88 | F59: 542.72 | G59: 537.33 | H59: 554.43 | I59: 559.82 | J59: 562.98 | K59: 556.65 | L59: 548.1 | M59: 12.00681
A60: 51 | B60: CANBK | C60: 628.6 | D60: 627.55 | E60: 624.10 | F60: 619.60 | G60: 616.15 | H60: 632.05 | I60: 635.50 | J60: 640.00 | K60: 631 | L60: 623.05 | M60: 43.21216
A61: 52 | B61: CHOLAFIN | C61: 1301.6 | D61: 1272.47 | E61: 1235.13 | F61: 1168.67 | G61: 1131.33 | H61: 1338.93 | I61: 1376.27 | J61: 1442.73 | K61: 1309.8 | L61: 1206 | M61: 73.45047
A62: 53 | B62: CIPLA | C62: 1420.05 | D62: 1414.73 | E62: 1403.47 | F62: 1386.88 | G62: 1375.62 | H62: 1431.32 | I62: 1442.58 | J62: 1459.17 | K62: 1426 | L62: 1398.15 | M62: 15.4021
A63: 54 | B63: COALINDIA | C63: 453.9 | D63: 454.28 | E63: 449.02 | F63: 444.13 | G63: 438.87 | H63: 459.17 | I63: 464.43 | J63: 469.32 | K63: 459.55 | L63: 449.4 | M63: 149.80896
A64: 55 | B64: COFORGE | C64: 4985.7 | D64: 5024.88 | E64: 4928.82 | F64: 4871.93 | G64: 4775.87 | H64: 5081.77 | I64: 5177.83 | J64: 5234.72 | K64: 5120.95 | L64: 4968 | M64: 4.49137
A65: 56 | B65: COLPAL | C65: 2811.8 | D65: 2820.32 | E65: 2776.88 | F65: 2741.97 | G65: 2698.53 | H65: 2855.23 | I65: 2898.67 | J65: 2933.58 | K65: 2863.75 | L65: 2785.4 | M65: 2.69458
A66: 57 | B66: CONCOR | C66: 1050.5 | D66: 1044.88 | E66: 1034.22 | F66: 1017.93 | G66: 1007.27 | H66: 1061.17 | I66: 1071.83 | J66: 1088.12 | K66: 1055.55 | L66: 1028.6 | M66: 15.30017
A67: 58 | B67: COROMANDEL | C67: 1208.8 | D67: 1207.57 | E67: 1197.78 | F67: 1186.77 | G67: 1176.98 | H67: 1218.58 | I67: 1228.37 | J67: 1239.38 | K67: 1217.35 | L67: 1196.55 | M67: 2.54334
A68: 59 | B68: CROMPTON | C68: 324.05 | D68: 325.17 | E68: 318.88 | F68: 313.72 | G68: 307.43 | H68: 330.33 | I68: 336.62 | J68: 341.78 | K68: 331.45 | L68: 320 | M68: 85.99222
A69: 60 | B69: CUMMINSIND | C69: 3304.2 | D69: 3294.17 | E69: 3255.83 | F69: 3207.47 | G69: 3169.13 | H69: 3342.53 | I69: 3380.87 | J69: 3429.23 | K69: 3332.5 | L69: 3245.8 | M69: 3.6182
A70: 61 | B70: DLF | C70: 896.45 | D70: 893.15 | E70: 885.30 | F70: 874.15 | G70: 866.30 | H70: 904.30 | I70: 912.15 | J70: 923.30 | K70: 901 | L70: 882 | M70: 30.99475
A71: 62 | B71: DABUR | C71: 525.3 | D71: 523.12 | E71: 510.18 | F71: 495.07 | G71: 482.13 | H71: 538.23 | I71: 551.17 | J71: 566.28 | K71: 536.05 | L71: 508 | M71: 70.92006
A72: 63 | B72: DALBHARAT | C72: 1791.15 | D72: 1808.68 | E72: 1772.47 | F72: 1753.78 | G72: 1717.57 | H72: 1827.37 | I72: 1863.58 | J72: 1882.27 | K72: 1844.9 | L72: 1790 | M72: 7.44412
A73: 64 | B73: DEEPAKNTR | C73: 2479.75 | D73: 2465.30 | E73: 2431.30 | F73: 2382.85 | G73: 2348.85 | H73: 2513.75 | I73: 2547.75 | J73: 2596.20 | K73: 2499.3 | L73: 2416.85 | M73: 3.37409
A74: 65 | B74: DELHIVERY | C74: 450.25 | D74: 451.18 | E74: 446.07 | F74: 441.88 | G74: 436.77 | H74: 455.37 | I74: 460.48 | J74: 464.67 | K74: 456.3 | L74: 447 | M74: 13.3818
A75: 66 | B75: DEVYANI | C75: 165.15 | D75: 166.02 | E75: 163.73 | F75: 162.32 | G75: 160.03 | H75: 167.43 | I75: 169.72 | J75: 171.13 | K75: 168.3 | L75: 164.6 | M75: 25.18276
A76: 67 | B76: DIVISLAB | C76: 3964.65 | D76: 3969.72 | E76: 3930.43 | F76: 3896.22 | G76: 3856.93 | H76: 4003.93 | I76: 4043.22 | J76: 4077.43 | K76: 4009 | L76: 3935.5 | M76: 8.6845
A77: 68 | B77: DIXON | C77: 8410.3 | D77: 8368.25 | E77: 8312.50 | F77: 8214.70 | G77: 8158.95 | H77: 8466.05 | I77: 8521.80 | J77: 8619.60 | K77: 8424 | L77: 8270.45 | M77: 2.37333
A78: 69 | B78: LALPATHLAB | C78: 2349.75 | D78: 2363.57 | E78: 2329.18 | F78: 2308.62 | G78: 2274.23 | H78: 2384.13 | I78: 2418.52 | J78: 2439.08 | K78: 2397.95 | L78: 2343 | M78: 0.82141
A79: 70 | B79: DRREDDY | C79: 6287.5 | D79: 6260.85 | E79: 6221.90 | F79: 6156.30 | G79: 6117.35 | H79: 6326.45 | I79: 6365.40 | J79: 6431.00 | K79: 6299.8 | L79: 6195.25 | M79: 6.26953
A80: 71 | B80: EICHERMOT | C80: 4602.4 | D80: 4594.30 | E80: 4554.50 | F80: 4506.60 | G80: 4466.80 | H80: 4642.20 | I80: 4682.00 | J80: 4729.90 | K80: 4634.1 | L80: 4546.4 | M80: 9.08139
A81: 72 | B81: ESCORTS | C81: 3479.8 | D81: 3434.25 | E81: 3376.65 | F81: 3273.50 | G81: 3215.90 | H81: 3537.40 | I81: 3595.00 | J81: 3698.15 | K81: 3491.85 | L81: 3331.1 | M81: 4.30222
A82: 73 | B82: NYKAA | C82: 176.75 | D82: 176.10 | E82: 173.15 | F82: 169.55 | G82: 166.60 | H82: 179.70 | I82: 182.65 | J82: 186.25 | K82: 179.05 | L82: 172.5 | M82: 62.94633
A83: 74 | B83: FEDERALBNK | C83: 168 | D83: 167.05 | E83: 163.80 | F83: 159.60 | G83: 156.35 | H83: 171.25 | I83: 174.50 | J83: 178.70 | K83: 170.3 | L83: 162.85 | M83: 758.75713
A84: 75 | B84: FACT | C84: 714.7 | D84: 717.58 | E84: 705.17 | F84: 695.63 | G84: 683.22 | H84: 727.12 | I84: 739.53 | J84: 749.07 | K84: 730 | L84: 708.05 | M84: 2.65265
A85: 76 | B85: FORTIS | C85: 440.3 | D85: 439.13 | E85: 436.27 | F85: 432.23 | G85: 429.37 | H85: 443.17 | I85: 446.03 | J85: 450.07 | K85: 442 | L85: 435.1 | M85: 5.2369
A86: 77 | B86: GAIL | C86: 205.05 | D86: 205.63 | E86: 201.12 | F86: 197.18 | G86: 192.67 | H86: 209.57 | I86: 214.08 | J86: 218.02 | K86: 210.15 | L86: 201.7 | M86: 174.30514
A87: 78 | B87: GLAND | C87: 1722.3 | D87: 1720.95 | E87: 1702.45 | F87: 1682.60 | G87: 1664.10 | H87: 1740.80 | I87: 1759.30 | J87: 1779.15 | K87: 1739.45 | L87: 1701.1 | M87: 4.12615
A88: 79 | B88: GODREJCP | C88: 1233.3 | D88: 1235.13 | E88: 1215.67 | F88: 1198.03 | G88: 1178.57 | H88: 1252.77 | I88: 1272.23 | J88: 1289.87 | K88: 1254.6 | L88: 1217.5 | M88: 11.48854
A89: 80 | B89: GODREJPROP | C89: 2532.7 | D89: 2556.28 | E89: 2455.77 | F89: 2378.83 | G89: 2278.32 | H89: 2633.22 | I89: 2733.73 | J89: 2810.67 | K89: 2656.8 | L89: 2479.35 | M89: 18.46888
A90: 81 | B90: GRASIM | C90: 2437.35 | D90: 2430.13 | E90: 2408.27 | F90: 2379.18 | G90: 2357.32 | H90: 2459.22 | I90: 2481.08 | J90: 2510.17 | K90: 2452 | L90: 2401.05 | M90: 14.66226
A91: 82 | B91: FLUOROCHEM | C91: 3640.9 | D91: 3642.90 | E91: 3599.60 | F91: 3558.30 | G91: 3515.00 | H91: 3684.20 | I91: 3727.50 | J91: 3768.80 | K91: 3686.2 | L91: 3601.6 | M91: 0.74648
A92: 83 | B92: GUJGASLTD | C92: 537.1 | D92: 540.70 | E92: 531.10 | F92: 525.10 | G92: 515.50 | H92: 546.70 | I92: 556.30 | J92: 562.30 | K92: 550.3 | L92: 534.7 | M92: 14.35634
A93: 84 | B93: HCLTECH | C93: 1360.7 | D93: 1365.53 | E93: 1353.17 | F93: 1345.63 | G93: 1333.27 | H93: 1373.07 | I93: 1385.43 | J93: 1392.97 | K93: 1377.9 | L93: 1358 | M93: 65.55505
A94: 85 | B94: HDFCAMC | C94: 3938.4 | D94: 3927.17 | E94: 3904.23 | F94: 3870.07 | G94: 3847.13 | H94: 3961.33 | I94: 3984.27 | J94: 4018.43 | K94: 3950.1 | L94: 3893 | M94: 2.34196
A95: 86 | B95: HDFCBANK | C95: 1532.25 | D95: 1529.87 | E95: 1522.73 | F95: 1513.22 | G95: 1506.08 | H95: 1539.38 | I95: 1546.52 | J95: 1556.03 | K95: 1537 | L95: 1520.35 | M95: 167.37503
A96: 87 | B96: HDFCLIFE | C96: 576.35 | D96: 578.77 | E96: 570.98 | F96: 565.62 | G96: 557.83 | H96: 584.13 | I96: 591.92 | J96: 597.28 | K96: 586.55 | L96: 573.4 | M96: 82.92342
A97: 88 | B97: HAVELLS | C97: 1667.65 | D97: 1674.85 | E97: 1642.85 | F97: 1618.05 | G97: 1586.05 | H97: 1699.65 | I97: 1731.65 | J97: 1756.45 | K97: 1706.85 | L97: 1650.05 | M97: 29.85962
A98: 89 | B98: HEROMOTOCO | C98: 4561.5 | D98: 4579.27 | E98: 4533.53 | F98: 4505.57 | G98: 4459.83 | H98: 4607.23 | I98: 4652.97 | J98: 4680.93 | K98: 4625 | L98: 4551.3 | M98: 8.08478
A99: 90 | B99: HINDALCO | C99: 641.45 | D99: 639.00 | E99: 631.10 | F99: 620.75 | G99: 612.85 | H99: 649.35 | I99: 657.25 | J99: 667.60 | K99: 646.9 | L99: 628.65 | M99: 179.29526
A100: 91 | B100: HAL | C100: 3947.2 | D100: 3950.57 | E100: 3928.03 | F100: 3908.87 | G100: 3886.33 | H100: 3969.73 | I100: 3992.27 | J100: 4011.43 | K100: 3973.1 | L100: 3931.4 | M100: 10.08325
A101: 92 | B101: HINDPETRO | C101: 533.5 | D101: 524.92 | E101: 513.08 | F101: 492.67 | G101: 480.83 | H101: 545.33 | I101: 557.17 | J101: 577.58 | K101: 536.75 | L101: 504.5 | M101: 216.95417
A102: 93 | B102: HINDUNILVR | C102: 2226.3 | D102: 2224.85 | E102: 2206.50 | F102: 2186.70 | G102: 2168.35 | H102: 2244.65 | I102: 2263.00 | J102: 2282.80 | K102: 2243.2 | L102: 2205.05 | M102: 21.40383
A103: 94 | B103: ICICIBANK | C103: 1139.45 | D103: 1142.73 | E103: 1129.97 | F103: 1120.48 | G103: 1107.72 | H103: 1152.22 | I103: 1164.98 | J103: 1174.47 | K103: 1155.5 | L103: 1133.25 | M103: 251.18334
A104: 95 | B104: ICICIGI | C104: 1699.85 | D104: 1710.10 | E104: 1684.90 | F104: 1669.95 | G104: 1644.75 | H104: 1725.05 | I104: 1750.25 | J104: 1765.20 | K104: 1735.3 | L104: 1695.15 | M104: 3.20184
A105: 96 | B105: ICICIPRULI | C105: 576.55 | D105: 576.53 | E105: 571.07 | F105: 565.58 | G105: 560.12 | H105: 582.02 | I105: 587.48 | J105: 592.97 | K105: 582 | L105: 571.05 | M105: 14.17126
A106: 97 | B106: IDFCFIRSTB | C106: 81.55 | D106: 81.83 | E106: 81.02 | F106: 80.48 | G106: 79.67 | H106: 82.37 | I106: 83.18 | J106: 83.72 | K106: 82.65 | L106: 81.3 | M106: 256.4841
A107: 98 | B107: ITC | C107: 439 | D107: 438.82 | E107: 435.03 | F107: 431.07 | G107: 427.28 | H107: 442.78 | I107: 446.57 | J107: 450.53 | K107: 442.6 | L107: 434.85 | M107: 232.28909
A108: 99 | B108: INDIANB | C108: 549.85 | D108: 550.13 | E108: 545.52 | F108: 541.18 | G108: 536.57 | H108: 554.47 | I108: 559.08 | J108: 563.42 | K108: 554.75 | L108: 545.8 | M108: 8.37415
A109: 100 | B109: INDHOTEL | C109: 576.15 | D109: 578.43 | E109: 572.72 | F109: 569.28 | G109: 563.57 | H109: 581.87 | I109: 587.58 | J109: 591.02 | K109: 584.15 | L109: 575 | M109: 21.92757
A110: 101 | B110: IOC | C110: 173.4 | D110: 172.08 | E110: 169.57 | F110: 165.73 | G110: 163.22 | H110: 175.92 | I110: 178.43 | J110: 182.27 | K110: 174.6 | L110: 168.25 | M110: 605.55113
A111: 102 | B111: IRCTC | C111: 1056.3 | D111: 1056.52 | E111: 1036.58 | F111: 1016.87 | G111: 996.93 | H111: 1076.23 | I111: 1096.17 | J111: 1115.88 | K111: 1076.45 | L111: 1036.8 | M111: 37.02221
A112: 103 | B112: IRFC | C112: 158.9 | D112: 158.77 | E112: 156.33 | F112: 153.77 | G112: 151.33 | H112: 161.33 | I112: 163.77 | J112: 166.33 | K112: 161.2 | L112: 156.2 | M112: 379.76109
A113: 104 | B113: IGL | C113: 463.6 | D113: 464.45 | E113: 456.15 | F113: 448.70 | G113: 440.40 | H113: 471.90 | I113: 480.20 | J113: 487.65 | K113: 472.75 | L113: 457 | M113: 29.59722
A114: 105 | B114: INDUSTOWER | C114: 352.95 | D114: 355.00 | E114: 346.40 | F114: 339.85 | G114: 331.25 | H114: 361.55 | I114: 370.15 | J114: 376.70 | K114: 363.6 | L114: 348.45 | M114: 191.36966
A115: 106 | B115: INDUSINDBK | C115: 1505.2 | D115: 1508.85 | E115: 1496.40 | F115: 1487.60 | G115: 1475.15 | H115: 1517.65 | I115: 1530.10 | J115: 1538.90 | K115: 1521.3 | L115: 1500.05 | M115: 25.54549
A116: 107 | B116: NAUKRI | C116: 6061.25 | D116: 5993.72 | E116: 5885.53 | F116: 5709.82 | G116: 5601.63 | H116: 6169.43 | I116: 6277.62 | J116: 6453.33 | K116: 6101.9 | L116: 5818 | M116: 1.60608
A117: 108 | B117: INFY | C117: 1414.45 | D117: 1416.77 | E117: 1409.53 | F117: 1404.62 | G117: 1397.38 | H117: 1421.68 | I117: 1428.92 | J117: 1433.83 | K117: 1424 | L117: 1411.85 | M117: 100.76354
A118: 109 | B118: INDIGO | C118: 4108.25 | D118: 4067.08 | E118: 4011.27 | F118: 3914.28 | G118: 3858.47 | H118: 4164.07 | I118: 4219.88 | J118: 4316.87 | K118: 4122.9 | L118: 3970.1 | M118: 11.97616
A119: 110 | B119: IPCALAB | C119: 1351 | D119: 1346.20 | E119: 1337.40 | F119: 1323.80 | G119: 1315.00 | H119: 1359.80 | I119: 1368.60 | J119: 1382.20 | K119: 1355 | L119: 1332.6 | M119: 2.9115
A120: 111 | B120: JSWENERGY | C120: 638.25 | D120: 638.53 | E120: 630.72 | F120: 623.18 | G120: 615.37 | H120: 646.07 | I120: 653.88 | J120: 661.42 | K120: 646.35 | L120: 631 | M120: 29.27025
A121: 112 | B121: JSWSTEEL | C121: 890.35 | D121: 889.32 | E121: 884.03 | F121: 877.72 | G121: 872.43 | H121: 895.63 | I121: 900.92 | J121: 907.23 | K121: 894.6 | L121: 883 | M121: 24.48369
A122: 113 | B122: JINDALSTEL | C122: 941.85 | D122: 942.15 | E122: 930.40 | F122: 918.95 | G122: 907.20 | H122: 953.60 | I122: 965.35 | J122: 976.80 | K122: 953.9 | L122: 930.7 | M122: 16.15306
A123: 114 | B123: JUBLFOOD | C123: 457.55 | D123: 460.15 | E123: 450.45 | F123: 443.35 | G123: 433.65 | H123: 467.25 | I123: 476.95 | J123: 484.05 | K123: 469.85 | L123: 453.05 | M123: 38.03106
A124: 115 | B124: KPITTECH | C124: 1512.2 | D124: 1506.42 | E124: 1482.93 | F124: 1453.67 | G124: 1430.18 | H124: 1535.68 | I124: 1559.17 | J124: 1588.43 | K124: 1529.9 | L124: 1477.15 | M124: 12.16214
A125: 116 | B125: KOTAKBANK | C125: 1575.65 | D125: 1574.18 | E125: 1553.87 | F125: 1532.08 | G125: 1511.77 | H125: 1595.97 | I125: 1616.28 | J125: 1638.07 | K125: 1594.5 | L125: 1552.4 | M125: 266.40478
A126: 117 | B126: LTF | C126: 169.75 | D126: 168.80 | E126: 167.35 | F126: 164.95 | G126: 163.50 | H126: 171.20 | I126: 172.65 | J126: 175.05 | K126: 170.25 | L126: 166.4 | M126: 43.36832
A127: 118 | B127: LTTS | C127: 4623.65 | D127: 4631.77 | E127: 4603.53 | F127: 4583.42 | G127: 4555.18 | H127: 4651.88 | I127: 4680.12 | J127: 4700.23 | K127: 4660 | L127: 4611.65 | M127: 2.05486
A128: 119 | B128: LICHSGFIN | C128: 669.1 | D128: 672.70 | E128: 662.40 | F128: 655.70 | G128: 645.40 | H128: 679.40 | I128: 689.70 | J128: 696.40 | K128: 683 | L128: 666 | M128: 22.69415
A129: 120 | B129: LTIM | C129: 4692.7 | D129: 4705.57 | E129: 4662.68 | F129: 4632.67 | G129: 4589.78 | H129: 4735.58 | I129: 4778.47 | J129: 4808.48 | K129: 4748.45 | L129: 4675.55 | M129: 4.23233
A130: 121 | B130: LT | C130: 3599.5 | D130: 3603.23 | E130: 3572.32 | F130: 3545.13 | G130: 3514.22 | H130: 3630.42 | I130: 3661.33 | J130: 3688.52 | K130: 3634.15 | L130: 3576.05 | M130: 37.48847
A131: 122 | B131: LAURUSLABS | C131: 450.2 | D131: 452.10 | E131: 446.80 | F131: 443.40 | G131: 438.10 | H131: 455.50 | I131: 460.80 | J131: 464.20 | K131: 457.4 | L131: 448.7 | M131: 18.04275
A132: 123 | B132: LICI | C132: 999.15 | D132: 996.55 | E132: 983.30 | F132: 967.45 | G132: 954.20 | H132: 1012.40 | I132: 1025.65 | J132: 1041.50 | K132: 1009.8 | L132: 980.7 | M132: 49.6165
A133: 124 | B133: LUPIN | C133: 1647.65 | D133: 1649.75 | E133: 1638.50 | F133: 1629.35 | G133: 1618.10 | H133: 1658.90 | I133: 1670.15 | J133: 1679.30 | K133: 1661 | L133: 1640.6 | M133: 3.86502
A134: 125 | B134: MRF | C134: 133861.95 | D134: 133787.32 | E134: 132574.63 | F134: 131287.32 | G134: 130074.63 | H134: 135074.63 | I134: 136287.32 | J134: 137574.63 | K134: 135000 | L134: 132500 | M134: 0.09911
A135: 126 | B135: LODHA | C135: 1243.3 | D135: 1238.43 | E135: 1220.87 | F135: 1198.43 | G135: 1180.87 | H135: 1260.87 | I135: 1278.43 | J135: 1300.87 | K135: 1256 | L135: 1216 | M135: 6.12996
A136: 127 | B136: M&MFIN | C136: 264.7 | D136: 264.37 | E136: 262.33 | F136: 259.97 | G136: 257.93 | H136: 266.73 | I136: 268.77 | J136: 271.13 | K136: 266.4 | L136: 262 | M136: 42.142
A137: 128 | B137: M&M | C137: 2185.15 | D137: 2184.75 | E137: 2165.50 | F137: 2145.85 | G137: 2126.60 | H137: 2204.40 | I137: 2223.65 | J137: 2243.30 | K137: 2204 | L137: 2165.1 | M137: 33.47541
A138: 129 | B138: MANKIND | C138: 2333.8 | D138: 2353.25 | E138: 2307.45 | F138: 2281.10 | G138: 2235.30 | H138: 2379.60 | I138: 2425.40 | J138: 2451.75 | K138: 2399.05 | L138: 2326.9 | M138: 3.35563
A139: 130 | B139: MARICO | C139: 517.85 | D139: 518.02 | E139: 513.23 | F139: 508.62 | G139: 503.83 | H139: 522.63 | I139: 527.42 | J139: 532.03 | K139: 522.8 | L139: 513.4 | M139: 9.26594
A140: 131 | B140: MARUTI | C140: 12805.35 | D140: 12721.43 | E140: 12598.72 | F140: 12392.08 | G140: 12269.37 | H140: 12928.07 | I140: 13050.78 | J140: 13257.42 | K140: 12844.15 | L140: 12514.8 | M140: 8.14923
A141: 132 | B141: MFSL | C141: 1023.85 | D141: 1024.73 | E141: 1011.12 | F141: 998.38 | G141: 984.77 | H141: 1037.47 | I141: 1051.08 | J141: 1063.82 | K141: 1038.35 | L141: 1012 | M141: 10.49815
A142: 133 | B142: MAXHEALTH | C142: 814.9 | D142: 819.82 | E142: 805.63 | F142: 796.37 | G142: 782.18 | H142: 829.08 | I142: 843.27 | J142: 852.53 | K142: 834 | L142: 810.55 | M142: 15.79718
A143: 134 | B143: MAZDOCK | C143: 2351.65 | D143: 2351.03 | E143: 2313.07 | F143: 2274.48 | G143: 2236.52 | H143: 2389.62 | I143: 2427.58 | J143: 2466.17 | K143: 2389 | L143: 2312.45 | M143: 12.15494
A144: 135 | B144: MSUMI | C144: 68.9 | D144: 69.05 | E144: 68.45 | F144: 68.00 | G144: 67.40 | H144: 69.50 | I144: 70.10 | J144: 70.55 | K144: 69.65 | L144: 68.6 | M144: 27.9824
A145: 136 | B145: MPHASIS | C145: 2319.4 | D145: 2318.87 | E145: 2302.53 | F145: 2285.67 | G145: 2269.33 | H145: 2335.73 | I145: 2352.07 | J145: 2368.93 | K145: 2335.2 | L145: 2302 | M145: 2.13301
A146: 137 | B146: MUTHOOTFIN | C146: 1716.85 | D146: 1720.98 | E146: 1698.92 | F146: 1680.98 | G146: 1658.92 | H146: 1738.92 | I146: 1760.98 | J146: 1778.92 | K146: 1743.05 | L146: 1703.05 | M146: 2.327
A147: 138 | B147: NHPC | C147: 98 | D147: 98.07 | E147: 96.93 | F147: 95.87 | G147: 94.73 | H147: 99.13 | I147: 100.27 | J147: 101.33 | K147: 99.2 | L147: 97 | M147: 989.93366
A148: 139 | B148: NMDC | C148: 258.5 | D148: 257.03 | E148: 253.67 | F148: 248.83 | G148: 245.47 | H148: 261.87 | I148: 265.23 | J148: 270.07 | K148: 260.4 | L148: 252.2 | M148: 144.20844
A149: 140 | B149: NTPC | C149: 369.05 | D149: 368.28 | E149: 363.97 | F149: 358.88 | G149: 354.57 | H149: 373.37 | I149: 377.68 | J149: 382.77 | K149: 372.6 | L149: 363.2 | M149: 278.92188
A150: 141 | B150: NAVINFLUOR | C150: 3428.35 | D150: 3434.52 | E150: 3399.03 | F150: 3369.72 | G150: 3334.23 | H150: 3463.83 | I150: 3499.32 | J150: 3528.63 | K150: 3470 | L150: 3405.2 | M150: 1.83341
A151: 142 | B151: NESTLEIND | C151: 2512.3 | D151: 2519.43 | E151: 2497.87 | F151: 2483.43 | G151: 2461.87 | H151: 2533.87 | I151: 2555.43 | J151: 2569.87 | K151: 2541 | L151: 2505 | M151: 11.11913
A152: 143 | B152: OBEROIRLTY | C152: 1529.35 | D152: 1507.38 | E152: 1478.27 | F152: 1427.18 | G152: 1398.07 | H152: 1558.47 | I152: 1587.58 | J152: 1638.67 | K152: 1536.5 | L152: 1456.3 | M152: 7.6077
A153: 144 | B153: ONGC | C153: 282.8 | D153: 282.15 | E153: 279.70 | F153: 276.60 | G153: 274.15 | H153: 285.25 | I153: 287.70 | J153: 290.80 | K153: 284.6 | L153: 279.05 | M153: 156.77336
A154: 145 | B154: OIL | C154: 630.45 | D154: 622.48 | E154: 612.97 | F154: 595.48 | G154: 585.97 | H154: 639.97 | I154: 649.48 | J154: 666.97 | K154: 632 | L154: 605 | M154: 47.02531
A155: 146 | B155: PAYTM | C155: 372.2 | D155: 374.92 | E155: 363.83 | F155: 355.47 | G155: 344.38 | H155: 383.28 | I155: 394.37 | J155: 402.73 | K155: 386 | L155: 366.55 | M155: 20.43727
A156: 147 | B156: POLICYBZR | C156: 1292.1 | D156: 1288.52 | E156: 1259.03 | F156: 1225.97 | G156: 1196.48 | H156: 1321.58 | I156: 1351.07 | J156: 1384.13 | K156: 1318 | L156: 1255.45 | M156: 20.35177
A157: 148 | B157: PIIND | C157: 3640.9 | D157: 3651.68 | E157: 3616.22 | F157: 3591.53 | G157: 3556.07 | H157: 3676.37 | I157: 3711.83 | J157: 3736.52 | K157: 3687.15 | L157: 3627 | M157: 2.11272
A158: 149 | B158: PAGEIND | C158: 34941.15 | D158: 34896.67 | E158: 34744.48 | F158: 34547.82 | G158: 34395.63 | H158: 35093.33 | I158: 35245.52 | J158: 35442.18 | K158: 35048.85 | L158: 34700 | M158: 0.12805
A159: 150 | B159: PATANJALI | C159: 1451.35 | D159: 1464.50 | E159: 1430.95 | F159: 1410.55 | G159: 1377.00 | H159: 1484.90 | I159: 1518.45 | J159: 1538.85 | K159: 1498.05 | L159: 1444.1 | M159: 8.34989
A160: 151 | B160: PERSISTENT | C160: 3407.7 | D160: 3400.53 | E160: 3372.17 | F160: 3336.63 | G160: 3308.27 | H160: 3436.07 | I160: 3464.43 | J160: 3499.97 | K160: 3428.9 | L160: 3365 | M160: 4.3223
A161: 152 | B161: PETRONET | C161: 320.75 | D161: 316.37 | E161: 310.28 | F161: 299.82 | G161: 293.73 | H161: 326.83 | I161: 332.92 | J161: 343.38 | K161: 322.45 | L161: 305.9 | M161: 167.15887
A162: 153 | B162: PIDILITIND | C162: 2988.05 | D162: 3023.90 | E162: 2929.80 | F162: 2871.55 | G162: 2777.45 | H162: 3082.15 | I162: 3176.25 | J162: 3234.50 | K162: 3118 | L162: 2965.65 | M162: 5.45207
A163: 154 | B163: PEL | C163: 943 | D163: 933.67 | E163: 916.08 | F163: 889.17 | G163: 871.58 | H163: 960.58 | I163: 978.17 | J163: 1005.08 | K163: 951.25 | L163: 906.75 | M163: 20.46325
A164: 155 | B164: POLYCAB | C164: 5792.5 | D164: 5762.50 | E164: 5721.00 | F164: 5649.50 | G164: 5608.00 | H164: 5834.00 | I164: 5875.50 | J164: 5947.00 | K164: 5804 | L164: 5691 | M164: 2.8624
A165: 156 | B165: POONAWALLA | C165: 492.25 | D165: 490.12 | E165: 484.23 | F165: 476.22 | G165: 470.33 | H165: 498.13 | I165: 504.02 | J165: 512.03 | K165: 496 | L165: 482.1 | M165: 44.41977
A166: 157 | B166: PFC | C166: 467.85 | D166: 462.58 | E166: 448.42 | F166: 428.98 | G166: 414.82 | H166: 482.02 | I166: 496.18 | J166: 515.62 | K166: 476.75 | L166: 443.15 | M166: 557.5296
A167: 158 | B167: POWERGRID | C167: 313.6 | D167: 310.90 | E167: 304.55 | F167: 295.50 | G167: 289.15 | H167: 319.95 | I167: 326.30 | J167: 335.35 | K167: 317.25 | L167: 301.85 | M167: 440.59506
A168: 159 | B168: PRESTIGE | C168: 1400.85 | D168: 1390.07 | E168: 1365.13 | F168: 1329.42 | G168: 1304.48 | H168: 1425.78 | I168: 1450.72 | J168: 1486.43 | K168: 1415 | L168: 1354.35 | M168: 6.98169
A169: 160 | B169: PGHH | C169: 15948.75 | D169: 15961.62 | E169: 15787.13 | F169: 15625.52 | G169: 15451.03 | H169: 16123.23 | I169: 16297.72 | J169: 16459.33 | K169: 16136.1 | L169: 15800 | M169: 0.08547
A170: 161 | B170: PNB | C170: 138.05 | D170: 139.30 | E170: 136.10 | F170: 134.15 | G170: 130.95 | H170: 141.25 | I170: 144.45 | J170: 146.40 | K170: 142.5 | L170: 137.35 | M170: 584.20041
A171: 162 | B171: RECLTD | C171: 553.9 | D171: 540.80 | E171: 523.75 | F171: 493.60 | G171: 476.55 | H171: 570.95 | I171: 588.00 | J171: 618.15 | K171: 557.85 | L171: 510.65 | M171: 831.60192
A172: 163 | B172: RVNL | C172: 288.85 | D172: 288.50 | E172: 285.15 | F172: 281.45 | G172: 278.10 | H172: 292.20 | I172: 295.55 | J172: 299.25 | K172: 291.85 | L172: 284.8 | M172: 91.81814
A173: 164 | B173: RELIANCE | C173: 2933.1 | D173: 2938.67 | E173: 2922.68 | F173: 2912.27 | G173: 2896.28 | H173: 2949.08 | I173: 2965.07 | J173: 2975.48 | K173: 2954.65 | L173: 2928.25 | M173: 72.56323
A174: 165 | B174: SBICARD | C174: 729.4 | D174: 730.25 | E174: 724.70 | F174: 720.00 | G174: 714.45 | H174: 734.95 | I174: 740.50 | J174: 745.20 | K174: 735.8 | L174: 725.55 | M174: 9.23194
A175: 166 | B175: SBILIFE | C175: 1460.9 | D175: 1447.33 | E175: 1429.92 | F175: 1398.93 | G175: 1381.52 | H175: 1478.32 | I175: 1495.73 | J175: 1526.72 | K175: 1464.75 | L175: 1416.35 | M175: 21.94261
A176: 167 | B176: SRF | C176: 2669.05 | D176: 2658.70 | E176: 2631.40 | F176: 2593.75 | G176: 2566.45 | H176: 2696.35 | I176: 2723.65 | J176: 2761.30 | K176: 2686 | L176: 2621.05 | M176: 3.83008
A177: 168 | B177: MOTHERSON | C177: 130.2 | D177: 130.40 | E177: 129.05 | F177: 127.90 | G177: 126.55 | H177: 131.55 | I177: 132.90 | J177: 134.05 | K177: 131.75 | L177: 129.25 | M177: 111.6369
A178: 169 | B178: SHREECEM | C178: 24827.2 | D178: 24890.63 | E178: 24408.72 | F178: 23990.23 | G178: 23508.32 | H178: 25309.12 | I178: 25791.03 | J178: 26209.52 | K178: 25372.55 | L178: 24472.15 | M178: 0.98202
A179: 170 | B179: SHRIRAMFIN | C179: 2582.1 | D179: 2572.03 | E179: 2545.07 | F179: 2508.03 | G179: 2481.07 | H179: 2609.07 | I179: 2636.03 | J179: 2673.07 | K179: 2599 | L179: 2535 | M179: 18.48695
A180: 171 | B180: SIEMENS | C180: 5871.5 | D180: 5895.65 | E180: 5815.85 | F180: 5760.20 | G180: 5680.40 | H180: 5951.30 | I180: 6031.10 | J180: 6086.75 | K180: 5975.45 | L180: 5840 | M180: 2.50487
A181: 172 | B181: SONACOMS | C181: 608.25 | D181: 619.97 | E181: 592.93 | F181: 577.62 | G181: 550.58 | H181: 635.28 | I181: 662.32 | J181: 677.63 | K181: 647 | L181: 604.65 | M181: 38.94011
A182: 173 | B182: SBIN | C182: 830.05 | D182: 829.65 | E182: 825.40 | F182: 820.75 | G182: 816.50 | H182: 834.30 | I182: 838.55 | J182: 843.20 | K182: 833.9 | L182: 825 | M182: 199.43724
A183: 174 | B183: SAIL | C183: 165.45 | D183: 165.77 | E183: 163.28 | F183: 161.12 | G183: 158.63 | H183: 167.93 | I183: 170.42 | J183: 172.58 | K183: 168.25 | L183: 163.6 | M183: 442.64557
A184: 175 | B184: SUNPHARMA | C184: 1519 | D184: 1517.00 | E184: 1504.00 | F184: 1489.00 | G184: 1476.00 | H184: 1532.00 | I184: 1545.00 | J184: 1560.00 | K184: 1530 | L184: 1502 | M184: 24.94925
A185: 176 | B185: SUNTV | C185: 657.8 | D185: 657.48 | E185: 651.37 | F185: 644.93 | G185: 638.82 | H185: 663.92 | I185: 670.03 | J185: 676.47 | K185: 663.6 | L185: 651.05 | M185: 4.13769
A186: 177 | B186: SYNGENE | C186: 687.25 | D186: 689.65 | E186: 683.05 | F186: 678.85 | G186: 672.25 | H186: 693.85 | I186: 700.45 | J186: 704.65 | K186: 696.25 | L186: 685.45 | M186: 11.72026
A187: 178 | B187: TVSMOTOR | C187: 2072.95 | D187: 2085.78 | E187: 2053.72 | F187: 2034.48 | G187: 2002.42 | H187: 2105.02 | I187: 2137.08 | J187: 2156.32 | K187: 2117.85 | L187: 2066.55 | M187: 15.95338
A188: 179 | B188: TATACHEM | C188: 1100.65 | D188: 1092.23 | E188: 1073.52 | F188: 1046.38 | G188: 1027.67 | H188: 1119.37 | I188: 1138.08 | J188: 1165.22 | K188: 1110.95 | L188: 1065.1 | M188: 30.08089
A189: 180 | B189: TATACOMM | C189: 1743.7 | D189: 1740.68 | E189: 1731.22 | F189: 1718.73 | G189: 1709.27 | H189: 1753.17 | I189: 1762.63 | J189: 1775.12 | K189: 1750.15 | L189: 1728.2 | M189: 3.02126
A190: 181 | B190: TCS | C190: 3863.3 | D190: 3837.48 | E190: 3803.87 | F190: 3744.43 | G190: 3710.82 | H190: 3896.92 | I190: 3930.53 | J190: 3989.97 | K190: 3871.1 | L190: 3778.05 | M190: 24.91044
A191: 182 | B191: TATACONSUM | C191: 1091.15 | D191: 1095.42 | E191: 1076.83 | F191: 1062.52 | G191: 1043.93 | H191: 1109.73 | I191: 1128.32 | J191: 1142.63 | K191: 1114 | L191: 1081.1 | M191: 34.23995
A192: 183 | B192: TATAELXSI | C192: 7151.45 | D192: 7137.45 | E192: 7079.90 | F192: 7008.35 | G192: 6950.80 | H192: 7209.00 | I192: 7266.55 | J192: 7338.10 | K192: 7195 | L192: 7065.9 | M192: 1.17397
A193: 184 | B193: TATAMTRDVR | C193: 693.05 | D193: 691.02 | E193: 685.28 | F193: 677.52 | G193: 671.78 | H193: 698.78 | I193: 704.52 | J193: 712.28 | K193: 696.75 | L193: 683.25 | M193: 19.46964
A194: 185 | B194: TATAMOTORS | C194: 1027.8 | D194: 1023.12 | E194: 1016.23 | F194: 1004.67 | G194: 997.78 | H194: 1034.68 | I194: 1041.57 | J194: 1053.13 | K194: 1030 | L194: 1011.55 | M194: 126.95047
A195: 186 | B195: TATAPOWER | C195: 457.85 | D195: 455.68 | E195: 451.42 | F195: 444.98 | G195: 440.72 | H195: 462.12 | I195: 466.38 | J195: 472.82 | K195: 459.95 | L195: 449.25 | M195: 158.80502
A196: 187 | B196: TATASTEEL | C196: 167.35 | D196: 167.08 | E196: 165.27 | F196: 163.18 | G196: 161.37 | H196: 169.17 | I196: 170.98 | J196: 173.07 | K196: 168.9 | L196: 165 | M196: 693.20283
A197: 188 | B197: TECHM | C197: 1266.9 | D197: 1264.92 | E197: 1255.48 | F197: 1244.07 | G197: 1234.63 | H197: 1276.33 | I197: 1285.77 | J197: 1297.18 | K197: 1274.35 | L197: 1253.5 | M197: 21.24221
A198: 189 | B198: RAMCOCEM | C198: 771.35 | D198: 780.43 | E198: 760.92 | F198: 750.48 | G198: 730.97 | H198: 790.87 | I198: 810.38 | J198: 820.82 | K198: 799.95 | L198: 770 | M198: 10.05128
A199: 190 | B199: TITAN | C199: 3568.45 | D199: 3570.92 | E199: 3543.83 | F199: 3519.22 | G199: 3492.13 | H199: 3595.53 | I199: 3622.62 | J199: 3647.23 | K199: 3598 | L199: 3546.3 | M199: 14.35891
A200: 191 | B200: TORNTPHARM | C200: 2670 | D200: 2666.97 | E200: 2645.53 | F200: 2621.07 | G200: 2599.63 | H200: 2691.43 | I200: 2712.87 | J200: 2737.33 | K200: 2688.4 | L200: 2642.5 | M200: 0.93529
A201: 192 | B201: TORNTPOWER | C201: 1506.05 | D201: 1500.27 | E201: 1485.28 | F201: 1464.52 | G201: 1449.53 | H201: 1521.03 | I201: 1536.02 | J201: 1556.78 | K201: 1515.25 | L201: 1479.5 | M201: 4.24948
A202: 193 | B202: TRENT | C202: 4646.7 | D202: 4572.83 | E202: 4468.97 | F202: 4291.23 | G202: 4187.37 | H202: 4750.57 | I202: 4854.43 | J202: 5032.17 | K202: 4676.7 | L202: 4395.1 | M202: 19.98618
A203: 194 | B203: TIINDIA | C203: 3791 | D203: 3770.95 | E203: 3746.05 | F203: 3701.10 | G203: 3676.20 | H203: 3815.90 | I203: 3840.80 | J203: 3885.75 | K203: 3795.85 | L203: 3726 | M203: 3.8832
A204: 195 | B204: UPL | C204: 498.2 | D204: 501.97 | E204: 493.53 | F204: 488.87 | G204: 480.43 | H204: 506.63 | I204: 515.07 | J204: 519.73 | K204: 510.4 | L204: 497.3 | M204: 24.05482
A205: 196 | B205: ULTRACEMCO | C205: 9983.45 | D205: 9991.65 | E205: 9938.30 | F205: 9893.15 | G205: 9839.80 | H205: 10036.80 | I205: 10090.15 | J205: 10135.30 | K205: 10045 | L205: 9946.5 | M205: 3.18855
... 30 more rows

Sheet MidCap Intra
L5: Back To Main Page
A6: FOR INTRA DAY TRADING | K6: =Main!B10 -> 2024-05-03
A9: Sr.no | B9: Scrip | C9: CLOSE RATE | D9: Pivot Point | E9: Supports | H9: Resistances
E10: S1 | F10: S2 | G10: S3 | H10: R1 | I10: R2 | J10: R3 | K10: HIGH | L10: LOW | M10: Total Trade Quanity in Lakhs
A11: 1 | B11: 360ONE | C11: 774.05 | D11: 776.97 | E11: 762.18 | F11: 750.32 | G11: 735.53 | H11: 788.83 | I11: 803.62 | J11: 815.48 | K11: 791.75 | L11: 765.1 | M11: 5.30029
A12: 2 | B12: 3MINDIA | C12: 29733.25 | D12: 29977.77 | E12: 29355.53 | F12: 28977.82 | G12: 28355.58 | H12: 30355.48 | I12: 30977.72 | J12: 31355.43 | K12: 30600 | L12: 29600.05 | M12: 0.11917
A13: 3 | B13: ABB | C13: 6682.5 | D13: 6658.48 | E13: 6569.02 | F13: 6455.53 | G13: 6366.07 | H13: 6771.97 | I13: 6861.43 | J13: 6974.92 | K13: 6747.95 | L13: 6545 | M13: 3.17802
A14: 4 | B14: ACC | C14: 2529.45 | D14: 2534.32 | E14: 2516.63 | F14: 2503.82 | G14: 2486.13 | H14: 2547.13 | I14: 2564.82 | J14: 2577.63 | K14: 2552 | L14: 2521.5 | M14: 4.77663
A15: 5 | B15: AIAENG | C15: 3780.2 | D15: 3794.97 | E15: 3745.23 | F15: 3710.27 | G15: 3660.53 | H15: 3829.93 | I15: 3879.67 | J15: 3914.63 | K15: 3844.7 | L15: 3760 | M15: 0.46938
A16: 6 | B16: APLAPOLLO | C16: 1590.2 | D16: 1583.33 | E16: 1570.67 | F16: 1551.13 | G16: 1538.47 | H16: 1602.87 | I16: 1615.53 | J16: 1635.07 | K16: 1596 | L16: 1563.8 | M16: 5.39141
A17: 7 | B17: AUBANK | C17: 645.3 | D17: 642.77 | E17: 636.53 | F17: 627.77 | G17: 621.53 | H17: 651.53 | I17: 657.77 | J17: 666.53 | K17: 649 | L17: 634 | M17: 43.10835
A18: 8 | B18: AARTIDRUGS | C18: 500.8 | D18: 502.92 | E18: 496.88 | F18: 492.97 | G18: 486.93 | H18: 506.83 | I18: 512.87 | J18: 516.78 | K18: 508.95 | L18: 499 | M18: 0.62037
A19: 9 | B19: AARTIIND | C19: 742.75 | D19: 741.60 | E19: 736.95 | F19: 731.15 | G19: 726.50 | H19: 747.40 | I19: 752.05 | J19: 757.85 | K19: 746.25 | L19: 735.8 | M19: 8.83662
A20: 10 | B20: AAVAS | C20: 1597.35 | D20: 1606.12 | E20: 1584.23 | F20: 1571.12 | G20: 1549.23 | H20: 1619.23 | I20: 1641.12 | J20: 1654.23 | K20: 1628 | L20: 1593 | M20: 3.11886
A21: 11 | B21: ABBOTINDIA | C21: 26643.35 | D21: 26554.78 | E21: 26343.57 | F21: 26043.78 | G21: 25832.57 | H21: 26854.57 | I21: 27065.78 | J21: 27365.57 | K21: 26766 | L21: 26255 | M21: 0.0821
A22: 12 | B22: ADANIENSOL | C22: 1052.85 | D22: 1054.82 | E22: 1043.63 | F22: 1034.42 | G22: 1023.23 | H22: 1064.03 | I22: 1075.22 | J22: 1084.43 | K22: 1066 | L22: 1045.6 | M22: 31.69241
A23: 13 | B23: ADANIENT | C23: 3039.6 | D23: 3058.17 | E23: 2996.48 | F23: 2953.37 | G23: 2891.68 | H23: 3101.28 | I23: 3162.97 | J23: 3206.08 | K23: 3119.85 | L23: 3015.05 | M23: 22.19085
A24: 14 | B24: ADANIGREEN | C24: 1786.85 | D24: 1783.68 | E24: 1762.37 | F24: 1737.88 | G24: 1716.57 | H24: 1808.17 | I24: 1829.48 | J24: 1853.97 | K24: 1805 | L24: 1759.2 | M24: 5.17699
A25: 15 | B25: ADANIPORTS | C25: 1338.8 | D25: 1331.35 | E25: 1314.00 | F25: 1289.20 | G25: 1271.85 | H25: 1356.15 | I25: 1373.50 | J25: 1398.30 | K25: 1348.7 | L25: 1306.55 | M25: 79.91511
A26: 16 | B26: ADANIPOWER | C26: 608.1 | D26: 612.47 | E26: 600.33 | F26: 592.57 | G26: 580.43 | H26: 620.23 | I26: 632.37 | J26: 640.13 | K26: 624.6 | L26: 604.7 | M26: 58.88418
A27: 17 | B27: ATGL | C27: 932.15 | D27: 942.33 | E27: 914.82 | F27: 897.48 | G27: 869.97 | H27: 959.67 | I27: 987.18 | J27: 1004.52 | K27: 969.85 | L27: 925 | M27: 25.05289
A28: 18 | B28: AWL | C28: 351.45 | D28: 354.48 | E28: 347.67 | F28: 343.88 | G28: 337.07 | H28: 358.27 | I28: 365.08 | J28: 368.87 | K28: 361.3 | L28: 350.7 | M28: 26.32127
A29: 19 | B29: ABCAPITAL | C29: 232.4 | D29: 232.92 | E29: 231.08 | F29: 229.77 | G29: 227.93 | H29: 234.23 | I29: 236.07 | J29: 237.38 | K29: 234.75 | L29: 231.6 | M29: 90.52439
A30: 20 | B30: ABFRL | C30: 263.85 | D30: 264.77 | E30: 262.08 | F30: 260.32 | G30: 257.63 | H30: 266.53 | I30: 269.22 | J30: 270.98 | K30: 267.45 | L30: 263 | M30: 31.56674
A31: 21 | B31: AEGISCHEM | C31: 647.3 | D31: 658.25 | E31: 624.45 | F31: 601.60 | G31: 567.80 | H31: 681.10 | I31: 714.90 | J31: 737.75 | K31: 692.05 | L31: 635.4 | M31: 18.90391
A32: 22 | B32: AETHER | C32: 832.3 | D32: 831.62 | E32: 826.68 | F32: 821.07 | G32: 816.13 | H32: 837.23 | I32: 842.17 | J32: 847.78 | K32: 836.55 | L32: 826 | M32: 0.27422
A33: 23 | B33: AFFLE | C33: 1124.65 | D33: 1130.12 | E33: 1111.28 | F33: 1097.92 | G33: 1079.08 | H33: 1143.48 | I33: 1162.32 | J33: 1175.68 | K33: 1148.95 | L33: 1116.75 | M33: 3.94658
A34: 24 | B34: AJANTPHARM | C34: 2234 | D34: 2234.67 | E34: 2209.33 | F34: 2184.67 | G34: 2159.33 | H34: 2259.33 | I34: 2284.67 | J34: 2309.33 | K34: 2260 | L34: 2210 | M34: 0.83782
A35: 25 | B35: APLLTD | C35: 994.65 | D35: 999.97 | E35: 985.28 | F35: 975.92 | G35: 961.23 | H35: 1009.33 | I35: 1024.02 | J35: 1033.38 | K35: 1014.65 | L35: 990.6 | M35: 0.60548
A36: 26 | B36: ALKEM | C36: 4787.8 | D36: 4791.00 | E36: 4736.30 | F36: 4684.80 | G36: 4630.10 | H36: 4842.50 | I36: 4897.20 | J36: 4948.70 | K36: 4845.7 | L36: 4739.5 | M36: 2.16072
A37: 27 | B37: ALKYLAMINE | C37: 2028.5 | D37: 2031.87 | E37: 2016.58 | F37: 2004.67 | G37: 1989.38 | H37: 2043.78 | I37: 2059.07 | J37: 2070.98 | K37: 2047.15 | L37: 2019.95 | M37: 0.22753
A38: 28 | B38: ALLCARGO | C38: 72.55 | D38: 73.07 | E38: 71.68 | F38: 70.82 | G38: 69.43 | H38: 73.93 | I38: 75.32 | J38: 76.18 | K38: 74.45 | L38: 72.2 | M38: 15.08545
A39: 29 | B39: ALOKINDS | C39: 26.95 | D39: 27.08 | E39: 26.62 | F39: 26.28 | G39: 25.82 | H39: 27.42 | I39: 27.88 | J39: 28.22 | K39: 27.55 | L39: 26.75 | M39: 51.6635
A40: 30 | B40: ARE&M | C40: 1115.7 | D40: 1112.23 | E40: 1094.47 | F40: 1073.23 | G40: 1055.47 | H40: 1133.47 | I40: 1151.23 | J40: 1172.47 | K40: 1130 | L40: 1091 | M40: 8.46621
A41: 31 | B41: AMBER | C41: 3909.85 | D41: 3900.97 | E41: 3876.93 | F41: 3844.02 | G41: 3819.98 | H41: 3933.88 | I41: 3957.92 | J41: 3990.83 | K41: 3925 | L41: 3868.05 | M41: 1.13852
A42: 32 | B42: AMBUJACEM | C42: 625.7 | D42: 621.92 | E42: 612.93 | F42: 600.17 | G42: 591.18 | H42: 634.68 | I42: 643.67 | J42: 656.43 | K42: 630.9 | L42: 609.15 | M42: 62.86712
A43: 33 | B43: ANGELONE | C43: 2777.3 | D43: 2785.88 | E43: 2761.02 | F43: 2744.73 | G43: 2719.87 | H43: 2802.17 | I43: 2827.03 | J43: 2843.32 | K43: 2810.75 | L43: 2769.6 | M43: 5.95938
A44: 34 | B44: ANURAS | C44: 835.8 | D44: 834.80 | E44: 829.60 | F44: 823.40 | G44: 818.20 | H44: 841.00 | I44: 846.20 | J44: 852.40 | K44: 840 | L44: 828.6 | M44: 0.73266
A45: 35 | B45: APARINDS | C45: 8009.8 | D45: 7981.62 | E45: 7858.23 | F45: 7706.67 | G45: 7583.28 | H45: 8133.18 | I45: 8256.57 | J45: 8408.13 | K45: 8105 | L45: 7830.05 | M45: 0.9898
A46: 36 | B46: APOLLOHOSP | C46: 5958.55 | D46: 5966.00 | E46: 5932.00 | F46: 5905.45 | G46: 5871.45 | H46: 5992.55 | I46: 6026.55 | J46: 6053.10 | K46: 6000 | L46: 5939.45 | M46: 5.72406
A47: 37 | B47: APOLLOTYRE | C47: 513.35 | D47: 514.12 | E47: 509.43 | F47: 505.52 | G47: 500.83 | H47: 518.03 | I47: 522.72 | J47: 526.63 | K47: 518.8 | L47: 510.2 | M47: 14.86206
A48: 38 | B48: APTUS | C48: 330.05 | D48: 328.28 | E48: 324.57 | F48: 319.08 | G48: 315.37 | H48: 333.77 | I48: 337.48 | J48: 342.97 | K48: 332 | L48: 322.8 | M48: 2.14209
A49: 39 | B49: ACI | C49: 639.8 | D49: 645.43 | E49: 630.87 | F49: 621.93 | G49: 607.37 | H49: 654.37 | I49: 668.93 | J49: 677.87 | K49: 660 | L49: 636.5 | M49: 3.17892
A50: 40 | B50: ASAHIINDIA | C50: 606.05 | D50: 604.63 | E50: 599.27 | F50: 592.48 | G50: 587.12 | H50: 611.42 | I50: 616.78 | J50: 623.57 | K50: 610 | L50: 597.85 | M50: 0.71497
A51: 41 | B51: ASHOKLEY | C51: 201.35 | D51: 199.27 | E51: 196.58 | F51: 191.82 | G51: 189.13 | H51: 204.03 | I51: 206.72 | J51: 211.48 | K51: 201.95 | L51: 194.5 | M51: 505.11799
A52: 42 | B52: ASIANPAINT | C52: 2975.4 | D52: 2946.17 | E52: 2904.33 | F52: 2833.27 | G52: 2791.43 | H52: 3017.23 | I52: 3059.07 | J52: 3130.13 | K52: 2988 | L52: 2875.1 | M52: 24.93406
A53: 43 | B53: ASTERDM | C53: 343.4 | D53: 345.92 | E53: 339.48 | F53: 335.57 | G53: 329.13 | H53: 349.83 | I53: 356.27 | J53: 360.18 | K53: 352.35 | L53: 342 | M53: 18.9859
A54: 44 | B54: ASTRAL | C54: 2062.9 | D54: 2086.75 | E54: 2031.50 | F54: 2000.10 | G54: 1944.85 | H54: 2118.15 | I54: 2173.40 | J54: 2204.80 | K54: 2142 | L54: 2055.35 | M54: 4.63442
A55: 45 | B55: ATUL | C55: 5999 | D55: 5986.10 | E55: 5947.20 | F55: 5895.40 | G55: 5856.50 | H55: 6037.90 | I55: 6076.80 | J55: 6128.60 | K55: 6025 | L55: 5934.3 | M55: 1.32585
A56: 46 | B56: AUROPHARMA | C56: 1156.35 | D56: 1154.97 | E56: 1146.98 | F56: 1137.62 | G56: 1129.63 | H56: 1164.33 | I56: 1172.32 | J56: 1181.68 | K56: 1162.95 | L56: 1145.6 | M56: 7.13707
A57: 47 | B57: AVANTIFEED | C57: 558.2 | D57: 558.60 | E57: 532.20 | F57: 506.20 | G57: 479.80 | H57: 584.60 | I57: 611.00 | J57: 637.00 | K57: 585 | L57: 532.6 | M57: 50.00113
A58: 48 | B58: DMART | C58: 4605.05 | D58: 4608.50 | E58: 4574.55 | F58: 4544.05 | G58: 4510.10 | H58: 4639.00 | I58: 4672.95 | J58: 4703.45 | K58: 4642.45 | L58: 4578 | M58: 2.56067
A59: 49 | B59: AXISBANK | C59: 1149.85 | D59: 1157.28 | E59: 1140.57 | F59: 1131.28 | G59: 1114.57 | H59: 1166.57 | I59: 1183.28 | J59: 1192.57 | K59: 1174 | L59: 1148 | M59: 123.02236
A60: 50 | B60: BEML | C60: 3479.55 | D60: 3497.72 | E60: 3451.53 | F60: 3423.52 | G60: 3377.33 | H60: 3525.73 | I60: 3571.92 | J60: 3599.93 | K60: 3543.9 | L60: 3469.7 | M60: 1.16851
A61: 51 | B61: BLS | C61: 349.8 | D61: 350.38 | E61: 345.72 | F61: 341.63 | G61: 336.97 | H61: 354.47 | I61: 359.13 | J61: 363.22 | K61: 355.05 | L61: 346.3 | M61: 31.68715
A62: 52 | B62: BSE | C62: 2858.75 | D62: 2862.92 | E62: 2825.83 | F62: 2792.92 | G62: 2755.83 | H62: 2895.83 | I62: 2932.92 | J62: 2965.83 | K62: 2900 | L62: 2830 | M62: 20.42181
A63: 53 | B63: BAJAJ-AUTO | C63: 9110.65 | D63: 9027.73 | E63: 8909.02 | F63: 8707.38 | G63: 8588.67 | H63: 9229.37 | I63: 9348.08 | J63: 9549.72 | K63: 9146.45 | L63: 8826.1 | M63: 6.38239
A64: 54 | B64: BAJFINANCE | C64: 6882.7 | D64: 6905.88 | E64: 6841.82 | F64: 6800.93 | G64: 6736.87 | H64: 6946.77 | I64: 7010.83 | J64: 7051.72 | K64: 6969.95 | L64: 6865 | M64: 11.39572
A65: 55 | B65: BAJAJFINSV | C65: 1615.45 | D65: 1620.48 | E65: 1605.97 | F65: 1596.48 | G65: 1581.97 | H65: 1629.97 | I65: 1644.48 | J65: 1653.97 | K65: 1635 | L65: 1611 | M65: 13.04846
A66: 56 | B66: BAJAJHLDNG | C66: 8110.5 | D66: 8124.93 | E66: 7999.87 | F66: 7889.23 | G66: 7764.17 | H66: 8235.57 | I66: 8360.63 | J66: 8471.27 | K66: 8250 | L66: 8014.3 | M66: 0.37195
A67: 57 | B67: BALAMINES | C67: 2175.7 | D67: 2182.10 | E67: 2164.60 | F67: 2153.50 | G67: 2136.00 | H67: 2193.20 | I67: 2210.70 | J67: 2221.80 | K67: 2199.6 | L67: 2171 | M67: 0.22544
A68: 58 | B68: BALKRISIND | C68: 2460.55 | D68: 2451.57 | E68: 2436.13 | F68: 2411.72 | G68: 2396.28 | H68: 2475.98 | I68: 2491.42 | J68: 2515.83 | K68: 2467 | L68: 2427.15 | M68: 1.83928
A69: 59 | B69: BALRAMCHIN | C69: 395.75 | D69: 396.08 | E69: 392.77 | F69: 389.78 | G69: 386.47 | H69: 399.07 | I69: 402.38 | J69: 405.37 | K69: 399.4 | L69: 393.1 | M69: 6.94932
A70: 60 | B70: BANDHANBNK | C70: 190.75 | D70: 190.18 | E70: 189.07 | F70: 187.38 | G70: 186.27 | H70: 191.87 | I70: 192.98 | J70: 194.67 | K70: 191.3 | L70: 188.5 | M70: 119.38817
A71: 61 | B71: BANKBARODA | C71: 279.4 | D71: 280.77 | E71: 277.63 | F71: 275.87 | G71: 272.73 | H71: 282.53 | I71: 285.67 | J71: 287.43 | K71: 283.9 | L71: 279 | M71: 123.66464
A72: 62 | B72: BANKINDIA | C72: 151.65 | D72: 153.05 | E72: 149.70 | F72: 147.75 | G72: 144.40 | H72: 155.00 | I72: 158.35 | J72: 160.30 | K72: 156.4 | L72: 151.1 | M72: 91.30409
A73: 63 | B73: MAHABANK | C73: 69.8 | D73: 69.83 | E73: 69.07 | F73: 68.33 | G73: 67.57 | H73: 70.57 | I73: 71.33 | J73: 72.07 | K73: 70.6 | L73: 69.1 | M73: 303.60298
A74: 64 | B74: BATAINDIA | C74: 1354.25 | D74: 1360.02 | E74: 1345.23 | F74: 1336.22 | G74: 1321.43 | H74: 1369.03 | I74: 1383.82 | J74: 1392.83 | K74: 1374.8 | L74: 1351 | M74: 2.99319
A75: 65 | B75: BAYERCROP | C75: 5443.4 | D75: 5479.97 | E75: 5393.93 | F75: 5344.47 | G75: 5258.43 | H75: 5529.43 | I75: 5615.47 | J75: 5664.93 | K75: 5566 | L75: 5430.5 | M75: 0.0801
A76: 66 | B76: BERGEPAINT | C76: 522.45 | D76: 519.78 | E76: 513.57 | F76: 504.68 | G76: 498.47 | H76: 528.67 | I76: 534.88 | J76: 543.77 | K76: 526 | L76: 510.9 | M76: 11.10923
A77: 67 | B77: BDL | C77: 1967.25 | D77: 1976.18 | E77: 1955.07 | F77: 1942.88 | G77: 1921.77 | H77: 1988.37 | I77: 2009.48 | J77: 2021.67 | K77: 1997.3 | L77: 1964 | M77: 4.72393
A78: 68 | B78: BEL | C78: 234.75 | D78: 234.30 | E78: 231.20 | F78: 227.65 | G78: 224.55 | H78: 237.85 | I78: 240.95 | J78: 244.50 | K78: 237.4 | L78: 230.75 | M78: 191.71145
A79: 69 | B79: BHARATFORG | C79: 1274.25 | D79: 1274.02 | E79: 1263.03 | F79: 1251.82 | G79: 1240.83 | H79: 1285.23 | I79: 1296.22 | J79: 1307.43 | K79: 1285 | L79: 1262.8 | M79: 4.92405
A80: 70 | B80: BHEL | C80: 292.7 | D80: 291.70 | E80: 283.15 | F80: 273.60 | G80: 265.05 | H80: 301.25 | I80: 309.80 | J80: 319.35 | K80: 300.25 | L80: 282.15 | M80: 523.94156
A81: 71 | B81: BPCL | C81: 634.65 | D81: 628.73 | E81: 620.42 | F81: 606.18 | G81: 597.87 | H81: 642.97 | I81: 651.28 | J81: 665.52 | K81: 637.05 | L81: 614.5 | M81: 158.83066
A82: 72 | B82: BHARTIARTL | C82: 1304.05 | D82: 1305.85 | E82: 1291.80 | F82: 1279.55 | G82: 1265.50 | H82: 1318.10 | I82: 1332.15 | J82: 1344.40 | K82: 1319.9 | L82: 1293.6 | M82: 79.95432
A83: 73 | B83: BIKAJI | C83: 531.6 | D83: 530.35 | E83: 524.75 | F83: 517.90 | G83: 512.30 | H83: 537.20 | I83: 542.80 | J83: 549.65 | K83: 535.95 | L83: 523.5 | M83: 0.94155
A84: 74 | B84: BIOCON | C84: 310.9 | D84: 306.82 | E84: 300.58 | F84: 290.27 | G84: 284.03 | H84: 317.13 | I84: 323.37 | J84: 333.68 | K84: 313.05 | L84: 296.5 | M84: 151.69926
A85: 75 | B85: BIRLACORPN | C85: 1492.7 | D85: 1475.92 | E85: 1455.83 | F85: 1418.97 | G85: 1398.88 | H85: 1512.78 | I85: 1532.87 | J85: 1569.73 | K85: 1496 | L85: 1439.05 | M85: 1.33825
A86: 76 | B86: BSOFT | C86: 643.2 | D86: 644.58 | E86: 635.37 | F86: 627.53 | G86: 618.32 | H86: 652.42 | I86: 661.63 | J86: 669.47 | K86: 653.8 | L86: 636.75 | M86: 43.30078
A87: 77 | B87: BLUEDART | C87: 6241.1 | D87: 6278.37 | E87: 6172.73 | F87: 6104.37 | G87: 5998.73 | H87: 6346.73 | I87: 6452.37 | J87: 6520.73 | K87: 6384 | L87: 6210 | M87: 0.29741
A88: 78 | B88: BLUESTARCO | C88: 1470.6 | D88: 1479.53 | E88: 1445.07 | F88: 1419.53 | G88: 1385.07 | H88: 1505.07 | I88: 1539.53 | J88: 1565.07 | K88: 1514 | L88: 1454 | M88: 9.19071
A89: 79 | B89: BBTC | C89: 1560.55 | D89: 1558.35 | E89: 1546.70 | F89: 1532.85 | G89: 1521.20 | H89: 1572.20 | I89: 1583.85 | J89: 1597.70 | K89: 1570 | L89: 1544.5 | M89: 0.24296
A90: 80 | B90: BORORENEW | C90: 518.3 | D90: 520.40 | E90: 513.40 | F90: 508.50 | G90: 501.50 | H90: 525.30 | I90: 532.30 | J90: 537.20 | K90: 527.4 | L90: 515.5 | M90: 3.71725
A91: 81 | B91: BOSCHLTD | C91: 30670.45 | D91: 30308.82 | E91: 29717.68 | F91: 28764.92 | G91: 28173.78 | H91: 31261.58 | I91: 31852.72 | J91: 32805.48 | K91: 30899.95 | L91: 29356.05 | M91: 0.87649
A92: 82 | B92: BRIGADE | C92: 1032.3 | D92: 1031.18 | E92: 1020.92 | F92: 1009.53 | G92: 999.27 | H92: 1042.57 | I92: 1052.83 | J92: 1064.22 | K92: 1041.45 | L92: 1019.8 | M92: 1.75935
A93: 83 | B93: BCG
A94: 84 | B94: BRITANNIA | C94: 4759.65 | D94: 4773.90 | E94: 4735.80 | F94: 4711.95 | G94: 4673.85 | H94: 4797.75 | I94: 4835.85 | J94: 4859.70 | K94: 4812 | L94: 4750.05 | M94: 3.56664
A95: 85 | B95: MAPMYINDIA | C95: 2035.25 | D95: 2033.02 | E95: 1992.03 | F95: 1948.82 | G95: 1907.83 | H95: 2076.23 | I95: 2117.22 | J95: 2160.43 | K95: 2074 | L95: 1989.8 | M95: 1.69191
A96: 86 | B96: CCL | C96: 583.85 | D96: 586.80 | E96: 579.10 | F96: 574.35 | G96: 566.65 | H96: 591.55 | I96: 599.25 | J96: 604.00 | K96: 594.5 | L96: 582.05 | M96: 0.67035
A97: 87 | B97: CESC | C97: 152.7 | D97: 151.72 | E97: 147.93 | F97: 143.17 | G97: 139.38 | H97: 156.48 | I97: 160.27 | J97: 165.03 | K97: 155.5 | L97: 146.95 | M97: 202.38147
A98: 88 | B98: CGPOWER | C98: 549.05 | D98: 551.27 | E98: 545.88 | F98: 542.72 | G98: 537.33 | H98: 554.43 | I98: 559.82 | J98: 562.98 | K98: 556.65 | L98: 548.1 | M98: 12.00681
A99: 89 | B99: CIEINDIA | C99: 486.95 | D99: 491.32 | E99: 479.63 | F99: 472.32 | G99: 460.63 | H99: 498.63 | I99: 510.32 | J99: 517.63 | K99: 503 | L99: 484 | M99: 6.32976
A100: 90 | B100: CRISIL | C100: 4317.4 | D100: 4342.47 | E100: 4284.93 | F100: 4252.47 | G100: 4194.93 | H100: 4374.93 | I100: 4432.47 | J100: 4464.93 | K100: 4400 | L100: 4310 | M100: 0.23434
A101: 91 | B101: CSBBANK | C101: 371.2 | D101: 372.67 | E101: 368.53 | F101: 365.87 | G101: 361.73 | H101: 375.33 | I101: 379.47 | J101: 382.13 | K101: 376.8 | L101: 370 | M101: 2.75008
A102: 92 | B102: CAMPUS | C102: 250.75 | D102: 252.18 | E102: 248.57 | F102: 246.38 | G102: 242.77 | H102: 254.37 | I102: 257.98 | J102: 260.17 | K102: 255.8 | L102: 250 | M102: 7.74647
A103: 93 | B103: CANFINHOME | C103: 775.95 | D103: 777.28 | E103: 762.57 | F103: 749.18 | G103: 734.47 | H103: 790.67 | I103: 805.38 | J103: 818.77 | K103: 792 | L103: 763.9 | M103: 15.2014
A104: 94 | B104: CANBK | C104: 628.6 | D104: 627.55 | E104: 624.10 | F104: 619.60 | G104: 616.15 | H104: 632.05 | I104: 635.50 | J104: 640.00 | K104: 631 | L104: 623.05 | M104: 43.21216
A105: 95 | B105: CGCL | C105: 222.65 | D105: 223.05 | E105: 220.60 | F105: 218.55 | G105: 216.10 | H105: 225.10 | I105: 227.55 | J105: 229.60 | K105: 225.5 | L105: 221 | M105: 1.24038
A106: 96 | B106: CARBORUNIV | C106: 1506.6 | D106: 1494.18 | E106: 1438.37 | F106: 1370.13 | G106: 1314.32 | H106: 1562.42 | I106: 1618.23 | J106: 1686.47 | K106: 1550 | L106: 1425.95 | M106: 6.88173
A107: 97 | B107: CASTROLIND | C107: 202.1 | D107: 204.95 | E107: 198.70 | F107: 195.30 | G107: 189.05 | H107: 208.35 | I107: 214.60 | J107: 218.00 | K107: 211.2 | L107: 201.55 | M107: 60.76118
A108: 98 | B108: CEATLTD | C108: 2622.35 | D108: 2614.72 | E108: 2583.43 | F108: 2544.52 | G108: 2513.23 | H108: 2653.63 | I108: 2684.92 | J108: 2723.83 | K108: 2646 | L108: 2575.8 | M108: 2.2441
A109: 99 | B109: CENTRALBK | C109: 66.2 | D109: 66.70 | E109: 65.50 | F109: 64.80 | G109: 63.60 | H109: 67.40 | I109: 68.60 | J109: 69.30 | K109: 67.9 | L109: 66 | M109: 150.85713
A110: 100 | B110: CDSL | C110: 2077 | D110: 2093.07 | E110: 2054.93 | F110: 2032.87 | G110: 1994.73 | H110: 2115.13 | I110: 2153.27 | J110: 2175.33 | K110: 2131.2 | L110: 2071 | M110: 9.57633
A111: 101 | B111: CENTURYPLY | C111: 658 | D111: 650.37 | E111: 640.73 | F111: 623.47 | G111: 613.83 | H111: 667.63 | I111: 677.27 | J111: 694.53 | K111: 660 | L111: 633.1 | M111: 3.72847
A112: 102 | B112: CENTURYTEX | C112: 2009.65 | D112: 2020.97 | E112: 1986.48 | F112: 1963.32 | G112: 1928.83 | H112: 2044.13 | I112: 2078.62 | J112: 2101.78 | K112: 2055.45 | L112: 1997.8 | M112: 7.49384
A113: 103 | B113: CERA | C113: 7046.6 | D113: 7090.85 | E113: 6955.80 | F113: 6865.00 | G113: 6729.95 | H113: 7181.65 | I113: 7316.70 | J113: 7407.50 | K113: 7225.9 | L113: 7000.05 | M113: 0.16149
A114: 104 | B114: CHALET | C114: 879.6 | D114: 874.45 | E114: 856.15 | F114: 832.70 | G114: 814.40 | H114: 897.90 | I114: 916.20 | J114: 939.65 | K114: 892.75 | L114: 851 | M114: 1.2202
A115: 105 | B115: CHAMBLFERT | C115: 415.4 | D115: 419.67 | E115: 410.73 | F115: 406.07 | G115: 397.13 | H115: 424.33 | I115: 433.27 | J115: 437.93 | K115: 428.6 | L115: 415 | M115: 17.35535
A116: 106 | B116: CHEMPLASTS | C116: 485 | D116: 488.88 | E116: 478.32 | F116: 471.63 | G116: 461.07 | H116: 495.57 | I116: 506.13 | J116: 512.82 | K116: 499.45 | L116: 482.2 | M116: 1.39364
A117: 107 | B117: CHOLAHLDNG | C117: 1143.05 | D117: 1125.60 | E117: 1100.50 | F117: 1057.95 | G117: 1032.85 | H117: 1168.15 | I117: 1193.25 | J117: 1235.80 | K117: 1150.7 | L117: 1083.05 | M117: 5.47087
A118: 108 | B118: CHOLAFIN | C118: 1301.6 | D118: 1272.47 | E118: 1235.13 | F118: 1168.67 | G118: 1131.33 | H118: 1338.93 | I118: 1376.27 | J118: 1442.73 | K118: 1309.8 | L118: 1206 | M118: 73.45047
A119: 109 | B119: CIPLA | C119: 1420.05 | D119: 1414.73 | E119: 1403.47 | F119: 1386.88 | G119: 1375.62 | H119: 1431.32 | I119: 1442.58 | J119: 1459.17 | K119: 1426 | L119: 1398.15 | M119: 15.4021
A120: 110 | B120: CUB | C120: 162.15 | D120: 161.22 | E120: 159.78 | F120: 157.42 | G120: 155.98 | H120: 163.58 | I120: 165.02 | J120: 167.38 | K120: 162.65 | L120: 158.85 | M120: 40.09958
A121: 111 | B121: CLEAN | C121: 1310.9 | D121: 1315.25 | E121: 1301.65 | F121: 1292.40 | G121: 1278.80 | H121: 1324.50 | I121: 1338.10 | J121: 1347.35 | K121: 1328.85 | L121: 1306 | M121: 0.68467
A122: 112 | B122: COALINDIA | C122: 453.9 | D122: 454.28 | E122: 449.02 | F122: 444.13 | G122: 438.87 | H122: 459.17 | I122: 464.43 | J122: 469.32 | K122: 459.55 | L122: 449.4 | M122: 149.80896
A123: 113 | B123: COCHINSHIP | C123: 1325.65 | D123: 1311.47 | E123: 1288.18 | F123: 1250.72 | G123: 1227.43 | H123: 1348.93 | I123: 1372.22 | J123: 1409.68 | K123: 1334.75 | L123: 1274 | M123: 30.08078
A124: 114 | B124: COFORGE | C124: 4985.7 | D124: 5024.88 | E124: 4928.82 | F124: 4871.93 | G124: 4775.87 | H124: 5081.77 | I124: 5177.83 | J124: 5234.72 | K124: 5120.95 | L124: 4968 | M124: 4.49137
A125: 115 | B125: COLPAL | C125: 2811.8 | D125: 2820.32 | E125: 2776.88 | F125: 2741.97 | G125: 2698.53 | H125: 2855.23 | I125: 2898.67 | J125: 2933.58 | K125: 2863.75 | L125: 2785.4 | M125: 2.69458
A126: 116 | B126: CAMS | C126: 3309.55 | D126: 3278.55 | E126: 3241.05 | F126: 3172.55 | G126: 3135.05 | H126: 3347.05 | I126: 3384.55 | J126: 3453.05 | K126: 3316.05 | L126: 3210.05 | M126: 2.49943
A127: 117 | B127: CONCORDBIO | C127: 1658.9 | D127: 1661.43 | E127: 1647.57 | F127: 1636.23 | G127: 1622.37 | H127: 1672.77 | I127: 1686.63 | J127: 1697.97 | K127: 1675.3 | L127: 1650.1 | M127: 0.36414
A128: 118 | B128: CONCOR | C128: 1050.5 | D128: 1044.88 | E128: 1034.22 | F128: 1017.93 | G128: 1007.27 | H128: 1061.17 | I128: 1071.83 | J128: 1088.12 | K128: 1055.55 | L128: 1028.6 | M128: 15.30017
A129: 119 | B129: COROMANDEL | C129: 1208.8 | D129: 1207.57 | E129: 1197.78 | F129: 1186.77 | G129: 1176.98 | H129: 1218.58 | I129: 1228.37 | J129: 1239.38 | K129: 1217.35 | L129: 1196.55 | M129: 2.54334
A130: 120 | B130: CRAFTSMAN | C130: 4435.55 | D130: 4437.20 | E130: 4399.40 | F130: 4363.25 | G130: 4325.45 | H130: 4473.35 | I130: 4511.15 | J130: 4547.30 | K130: 4475 | L130: 4401.05 | M130: 0.21629
A131: 121 | B131: CREDITACC | C131: 1466.95 | D131: 1480.82 | E131: 1444.63 | F131: 1422.32 | G131: 1386.13 | H131: 1503.13 | I131: 1539.32 | J131: 1561.63 | K131: 1517 | L131: 1458.5 | M131: 2.75387
A132: 122 | B132: CROMPTON | C132: 324.05 | D132: 325.17 | E132: 318.88 | F132: 313.72 | G132: 307.43 | H132: 330.33 | I132: 336.62 | J132: 341.78 | K132: 331.45 | L132: 320 | M132: 85.99222
A133: 123 | B133: CUMMINSIND | C133: 3304.2 | D133: 3294.17 | E133: 3255.83 | F133: 3207.47 | G133: 3169.13 | H133: 3342.53 | I133: 3380.87 | J133: 3429.23 | K133: 3332.5 | L133: 3245.8 | M133: 3.6182
A134: 124 | B134: CYIENT | C134: 1798.3 | D134: 1804.33 | E134: 1778.67 | F134: 1759.03 | G134: 1733.37 | H134: 1823.97 | I134: 1849.63 | J134: 1869.27 | K134: 1830 | L134: 1784.7 | M134: 10.07029
A135: 125 | B135: DCMSHRIRAM | C135: 964.4 | D135: 968.83 | E135: 955.67 | F135: 946.93 | G135: 933.77 | H135: 977.57 | I135: 990.73 | J135: 999.47 | K135: 982 | L135: 960.1 | M135: 0.53503
A136: 126 | B136: DLF | C136: 896.45 | D136: 893.15 | E136: 885.30 | F136: 874.15 | G136: 866.30 | H136: 904.30 | I136: 912.15 | J136: 923.30 | K136: 901 | L136: 882 | M136: 30.99475
A137: 127 | B137: DABUR | C137: 525.3 | D137: 523.12 | E137: 510.18 | F137: 495.07 | G137: 482.13 | H137: 538.23 | I137: 551.17 | J137: 566.28 | K137: 536.05 | L137: 508 | M137: 70.92006
A138: 128 | B138: DALBHARAT | C138: 1791.15 | D138: 1808.68 | E138: 1772.47 | F138: 1753.78 | G138: 1717.57 | H138: 1827.37 | I138: 1863.58 | J138: 1882.27 | K138: 1844.9 | L138: 1790 | M138: 7.44412
A139: 129 | B139: DATAPATTNS | C139: 2948.1 | D139: 2964.20 | E139: 2925.90 | F139: 2903.70 | G139: 2865.40 | H139: 2986.40 | I139: 3024.70 | J139: 3046.90 | K139: 3002.5 | L139: 2942 | M139: 1.54056
A140: 130 | B140: DEEPAKFERT | C140: 590.65 | D140: 594.13 | E140: 581.77 | F140: 572.88 | G140: 560.52 | H140: 603.02 | I140: 615.38 | J140: 624.27 | K140: 606.5 | L140: 585.25 | M140: 5.64306
A141: 131 | B141: DEEPAKNTR | C141: 2479.75 | D141: 2465.30 | E141: 2431.30 | F141: 2382.85 | G141: 2348.85 | H141: 2513.75 | I141: 2547.75 | J141: 2596.20 | K141: 2499.3 | L141: 2416.85 | M141: 3.37409
A142: 132 | B142: DELHIVERY | C142: 450.25 | D142: 451.18 | E142: 446.07 | F142: 441.88 | G142: 436.77 | H142: 455.37 | I142: 460.48 | J142: 464.67 | K142: 456.3 | L142: 447 | M142: 13.3818
A143: 133 | B143: DELTACORP | C143: 121.85 | D143: 122.10 | E143: 121.10 | F143: 120.35 | G143: 119.35 | H143: 122.85 | I143: 123.85 | J143: 124.60 | K143: 123.1 | L143: 121.35 | M143: 9.92465
A144: 134 | B144: DEVYANI | C144: 165.15 | D144: 166.02 | E144: 163.73 | F144: 162.32 | G144: 160.03 | H144: 167.43 | I144: 169.72 | J144: 171.13 | K144: 168.3 | L144: 164.6 | M144: 25.18276
A145: 135 | B145: DIVISLAB | C145: 3964.65 | D145: 3969.72 | E145: 3930.43 | F145: 3896.22 | G145: 3856.93 | H145: 4003.93 | I145: 4043.22 | J145: 4077.43 | K145: 4009 | L145: 3935.5 | M145: 8.6845
A146: 136 | B146: DIXON | C146: 8410.3 | D146: 8368.25 | E146: 8312.50 | F146: 8214.70 | G146: 8158.95 | H146: 8466.05 | I146: 8521.80 | J146: 8619.60 | K146: 8424 | L146: 8270.45 | M146: 2.37333
A147: 137 | B147: LALPATHLAB | C147: 2349.75 | D147: 2363.57 | E147: 2329.18 | F147: 2308.62 | G147: 2274.23 | H147: 2384.13 | I147: 2418.52 | J147: 2439.08 | K147: 2397.95 | L147: 2343 | M147: 0.82141
A148: 138 | B148: DRREDDY | C148: 6287.5 | D148: 6260.85 | E148: 6221.90 | F148: 6156.30 | G148: 6117.35 | H148: 6326.45 | I148: 6365.40 | J148: 6431.00 | K148: 6299.8 | L148: 6195.25 | M148: 6.26953
A149: 139 | B149: EIDPARRY | C149: 623.15 | D149: 622.38 | E149: 614.77 | F149: 606.38 | G149: 598.77 | H149: 630.77 | I149: 638.38 | J149: 646.77 | K149: 630 | L149: 614 | M149: 2.27859
A150: 140 | B150: EIHOTEL | C150: 467.15 | D150: 471.47 | E150: 461.03 | F150: 454.92 | G150: 444.48 | H150: 477.58 | I150: 488.02 | J150: 494.13 | K150: 481.9 | L150: 465.35 | M150: 3.96813
A151: 141 | B151: EPL | C151: 182.2 | D151: 181.90 | E151: 180.80 | F151: 179.40 | G151: 178.30 | H151: 183.30 | I151: 184.40 | J151: 185.80 | K151: 183 | L151: 180.5 | M151: 2.61085
A152: 142 | B152: EASEMYTRIP | C152: 46 | D152: 46.22 | E152: 45.58 | F152: 45.17 | G152: 44.53 | H152: 46.63 | I152: 47.27 | J152: 47.68 | K152: 46.85 | L152: 45.8 | M152: 75.16533
A153: 143 | B153: EICHERMOT | C153: 4602.4 | D153: 4594.30 | E153: 4554.50 | F153: 4506.60 | G153: 4466.80 | H153: 4642.20 | I153: 4682.00 | J153: 4729.90 | K153: 4634.1 | L153: 4546.4 | M153: 9.08139
A154: 144 | B154: ELGIEQUIP | C154: 658.3 | D154: 658.80 | E154: 650.60 | F154: 642.90 | G154: 634.70 | H154: 666.50 | I154: 674.70 | J154: 682.40 | K154: 667 | L154: 651.1 | M154: 3.05054
A155: 145 | B155: EMAMILTD | C155: 485.45 | D155: 485.45 | E155: 482.50 | F155: 479.55 | G155: 476.60 | H155: 488.40 | I155: 491.35 | J155: 494.30 | K155: 488.4 | L155: 482.5 | M155: 3.97038
A156: 146 | B156: ENDURANCE | C156: 1957.4 | D156: 1965.80 | E156: 1936.25 | F156: 1915.10 | G156: 1885.55 | H156: 1986.95 | I156: 2016.50 | J156: 2037.65 | K156: 1995.35 | L156: 1944.65 | M156: 0.71078
A157: 147 | B157: ENGINERSIN | C157: 244.8 | D157: 246.93 | E157: 241.37 | F157: 237.93 | G157: 232.37 | H157: 250.37 | I157: 255.93 | J157: 259.37 | K157: 252.5 | L157: 243.5 | M157: 80.76505
A158: 148 | B158: EPIGRAL | C158: 1309 | D158: 1328.65 | E158: 1276.35 | F158: 1243.70 | G158: 1191.40 | H158: 1361.30 | I158: 1413.60 | J158: 1446.25 | K158: 1380.95 | L158: 1296 | M158: 1.21114
A159: 149 | B159: EQUITASBNK | C159: 95 | D159: 95.92 | E159: 93.83 | F159: 92.67 | G159: 90.58 | H159: 97.08 | I159: 99.17 | J159: 100.33 | K159: 98 | L159: 94.75 | M159: 45.74824
A160: 150 | B160: ERIS | C160: 890.25 | D160: 891.95 | E160: 880.95 | F160: 871.65 | G160: 860.65 | H160: 901.25 | I160: 912.25 | J160: 921.55 | K160: 902.95 | L160: 882.65 | M160: 3.59161
A161: 151 | B161: ESCORTS | C161: 3479.8 | D161: 3434.25 | E161: 3376.65 | F161: 3273.50 | G161: 3215.90 | H161: 3537.40 | I161: 3595.00 | J161: 3698.15 | K161: 3491.85 | L161: 3331.1 | M161: 4.30222
A162: 152 | B162: EXIDEIND | C162: 464 | D162: 469.85 | E162: 454.15 | F162: 444.30 | G162: 428.60 | H162: 479.70 | I162: 495.40 | J162: 505.25 | K162: 485.55 | L162: 460 | M162: 82.27489
A163: 153 | B163: FDC | C163: 446.8 | D163: 449.18 | E163: 442.67 | F163: 438.53 | G163: 432.02 | H163: 453.32 | I163: 459.83 | J163: 463.97 | K163: 455.7 | L163: 445.05 | M163: 0.60549
A164: 154 | B164: NYKAA | C164: 176.75 | D164: 176.10 | E164: 173.15 | F164: 169.55 | G164: 166.60 | H164: 179.70 | I164: 182.65 | J164: 186.25 | K164: 179.05 | L164: 172.5 | M164: 62.94633
A165: 155 | B165: FEDERALBNK | C165: 168 | D165: 167.05 | E165: 163.80 | F165: 159.60 | G165: 156.35 | H165: 171.25 | I165: 174.50 | J165: 178.70 | K165: 170.3 | L165: 162.85 | M165: 758.75713
A166: 156 | B166: FACT | C166: 714.7 | D166: 717.58 | E166: 705.17 | F166: 695.63 | G166: 683.22 | H166: 727.12 | I166: 739.53 | J166: 749.07 | K166: 730 | L166: 708.05 | M166: 2.65265
A167: 157 | B167: FINEORG | C167: 4365.1 | D167: 4380.05 | E167: 4330.10 | F167: 4295.10 | G167: 4245.15 | H167: 4415.05 | I167: 4465.00 | J167: 4500.00 | K167: 4430 | L167: 4345.05 | M167: 0.13931
A168: 158 | B168: FINCABLES | C168: 1066 | D168: 1061.33 | E168: 1045.67 | F168: 1025.33 | G168: 1009.67 | H168: 1081.67 | I168: 1097.33 | J168: 1117.67 | K168: 1077 | L168: 1041 | M168: 2.51084
A169: 159 | B169: FINPIPE | C169: 269.05 | D169: 268.33 | E169: 265.27 | F169: 261.48 | G169: 258.42 | H169: 272.12 | I169: 275.18 | J169: 278.97 | K169: 271.4 | L169: 264.55 | M169: 5.73573
A170: 160 | B170: FSL | C170: 210.3 | D170: 211.03 | E170: 209.27 | F170: 208.23 | G170: 206.47 | H170: 212.07 | I170: 213.83 | J170: 214.87 | K170: 212.8 | L170: 210 | M170: 12.04487
A171: 161 | B171: FIVESTAR | C171: 738.2 | D171: 748.40 | E171: 721.80 | F171: 705.40 | G171: 678.80 | H171: 764.80 | I171: 791.40 | J171: 807.80 | K171: 775 | L171: 732 | M171: 14.90308
A172: 162 | B172: FORTIS | C172: 440.3 | D172: 439.13 | E172: 436.27 | F172: 432.23 | G172: 429.37 | H172: 443.17 | I172: 446.03 | J172: 450.07 | K172: 442 | L172: 435.1 | M172: 5.2369
A173: 163 | B173: GRINFRA | C173: 1405.9 | D173: 1398.70 | E173: 1377.40 | F173: 1348.90 | G173: 1327.60 | H173: 1427.20 | I173: 1448.50 | J173: 1477.00 | K173: 1420 | L173: 1370.2 | M173: 2.18976
A174: 164 | B174: GAIL | C174: 205.05 | D174: 205.63 | E174: 201.12 | F174: 197.18 | G174: 192.67 | H174: 209.57 | I174: 214.08 | J174: 218.02 | K174: 210.15 | L174: 201.7 | M174: 174.30514
A175: 165 | B175: GMMPFAUDLR | C175: 1427.25 | D175: 1425.77 | E175: 1415.68 | F175: 1404.12 | G175: 1394.03 | H175: 1437.33 | I175: 1447.42 | J175: 1458.98 | K175: 1435.85 | L175: 1414.2 | M175: 0.62585
A176: 166 | B176: GMRINFRA | C176: 88.15 | D176: 86.82 | E176: 84.83 | F176: 81.52 | G176: 79.53 | H176: 90.13 | I176: 92.12 | J176: 95.43 | K176: 88.8 | L176: 83.5 | M176: 693.72247
A177: 167 | B177: GALAXYSURF | C177: 2573.85 | D177: 2586.30 | E177: 2542.60 | F177: 2511.35 | G177: 2467.65 | H177: 2617.55 | I177: 2661.25 | J177: 2692.50 | K177: 2630 | L177: 2555.05 | M177: 0.1426
A178: 168 | B178: GICRE | C178: 341.25 | D178: 343.25 | E178: 338.00 | F178: 334.75 | G178: 329.50 | H178: 346.50 | I178: 351.75 | J178: 355.00 | K178: 348.5 | L178: 340 | M178: 8.41645
A179: 169 | B179: GILLETTE | C179: 6771.6 | D179: 6725.55 | E179: 6631.10 | F179: 6490.60 | G179: 6396.15 | H179: 6866.05 | I179: 6960.50 | J179: 7101.00 | K179: 6820 | L179: 6585.05 | M179: 0.49288
A180: 170 | B180: GLAND | C180: 1722.3 | D180: 1720.95 | E180: 1702.45 | F180: 1682.60 | G180: 1664.10 | H180: 1740.80 | I180: 1759.30 | J180: 1779.15 | K180: 1739.45 | L180: 1701.1 | M180: 4.12615
A181: 171 | B181: GLAXO | C181: 2101.75 | D181: 2101.52 | E181: 2079.03 | F181: 2056.32 | G181: 2033.83 | H181: 2124.23 | I181: 2146.72 | J181: 2169.43 | K181: 2124 | L181: 2078.8 | M181: 0.60837
A182: 172 | B182: GLS | C182: 841.15 | D182: 835.87 | E182: 826.28 | F182: 811.42 | G182: 801.83 | H182: 850.73 | I182: 860.32 | J182: 875.18 | K182: 845.45 | L182: 821 | M182: 2.30238
A183: 173 | B183: GLENMARK | C183: 1060.5 | D183: 1061.03 | E183: 1053.12 | F183: 1045.73 | G183: 1037.82 | H183: 1068.42 | I183: 1076.33 | J183: 1083.72 | K183: 1068.95 | L183: 1053.65 | M183: 3.24107
A184: 174 | B184: MEDANTA | C184: 1424.45 | D184: 1445.15 | E184: 1400.30 | F184: 1376.15 | G184: 1331.30 | H184: 1469.30 | I184: 1514.15 | J184: 1538.30 | K184: 1490 | L184: 1421 | M184: 1.72148
A185: 175 | B185: GOCOLORS | C185: 1058.25 | D185: 1072.47 | E185: 1042.03 | F185: 1025.82 | G185: 995.38 | H185: 1088.68 | I185: 1119.12 | J185: 1135.33 | K185: 1102.9 | L185: 1056.25 | M185: 1.10661
A186: 176 | B186: GPIL | C186: 905.2 | D186: 904.87 | E186: 888.33 | F186: 871.47 | G186: 854.93 | H186: 921.73 | I186: 938.27 | J186: 955.13 | K186: 921.4 | L186: 888 | M186: 4.01592
A187: 177 | B187: GODFRYPHLP | C187: 3291 | D187: 3301.32 | E187: 3215.83 | F187: 3140.67 | G187: 3055.18 | H187: 3376.48 | I187: 3461.97 | J187: 3537.13 | K187: 3386.8 | L187: 3226.15 | M187: 0.96066
A188: 178 | B188: GODREJCP | C188: 1233.3 | D188: 1235.13 | E188: 1215.67 | F188: 1198.03 | G188: 1178.57 | H188: 1252.77 | I188: 1272.23 | J188: 1289.87 | K188: 1254.6 | L188: 1217.5 | M188: 11.48854
A189: 179 | B189: GODREJIND | C189: 894.15 | D189: 919.02 | E189: 848.03 | F189: 801.92 | G189: 730.93 | H189: 965.13 | I189: 1036.12 | J189: 1082.23 | K189: 990 | L189: 872.9 | M189: 37.30137
A190: 180 | B190: GODREJPROP | C190: 2532.7 | D190: 2556.28 | E190: 2455.77 | F190: 2378.83 | G190: 2278.32 | H190: 2633.22 | I190: 2733.73 | J190: 2810.67 | K190: 2656.8 | L190: 2479.35 | M190: 18.46888
A191: 181 | B191: GRANULES | C191: 424.65 | D191: 423.20 | E191: 419.70 | F191: 414.75 | G191: 411.25 | H191: 428.15 | I191: 431.65 | J191: 436.60 | K191: 426.7 | L191: 418.25 | M191: 6.57586
A192: 182 | B192: GRAPHITE | C192: 666.65 | D192: 670.22 | E192: 659.43 | F192: 652.22 | G192: 641.43 | H192: 677.43 | I192: 688.22 | J192: 695.43 | K192: 681 | L192: 663 | M192: 8.56129
A193: 183 | B193: GRASIM | C193: 2437.35 | D193: 2430.13 | E193: 2408.27 | F193: 2379.18 | G193: 2357.32 | H193: 2459.22 | I193: 2481.08 | J193: 2510.17 | K193: 2452 | L193: 2401.05 | M193: 14.66226
A194: 184 | B194: GESHIP | C194: 1064.7 | D194: 1083.02 | E194: 1037.03 | F194: 1009.37 | G194: 963.38 | H194: 1110.68 | I194: 1156.67 | J194: 1184.33 | K194: 1129 | L194: 1055.35 | M194: 6.92517
A195: 185 | B195: GRINDWELL | C195: 2124.45 | D195: 2128.00 | E195: 2103.00 | F195: 2081.55 | G195: 2056.55 | H195: 2149.45 | I195: 2174.45 | J195: 2195.90 | K195: 2153 | L195: 2106.55 | M195: 0.19487
A196: 186 | B196: GUJALKALI | C196: 789.25 | D196: 790.52 | E196: 778.73 | F196: 768.22 | G196: 756.43 | H196: 801.03 | I196: 812.82 | J196: 823.33 | K196: 802.3 | L196: 780 | M196: 0.47172
A197: 187 | B197: GAEL | C197: 167.25 | D197: 167.75 | E197: 166.00 | F197: 164.75 | G197: 163.00 | H197: 169.00 | I197: 170.75 | J197: 172.00 | K197: 169.5 | L197: 166.5 | M197: 2.87532
A198: 188 | B198: FLUOROCHEM | C198: 3640.9 | D198: 3642.90 | E198: 3599.60 | F198: 3558.30 | G198: 3515.00 | H198: 3684.20 | I198: 3727.50 | J198: 3768.80 | K198: 3686.2 | L198: 3601.6 | M198: 0.74648
A199: 189 | B199: GUJGASLTD | C199: 537.1 | D199: 540.70 | E199: 531.10 | F199: 525.10 | G199: 515.50 | H199: 546.70 | I199: 556.30 | J199: 562.30 | K199: 550.3 | L199: 534.7 | M199: 14.35634
A200: 190 | B200: GNFC | C200: 698.25 | D200: 703.02 | E200: 690.33 | F200: 682.42 | G200: 669.73 | H200: 710.93 | I200: 723.62 | J200: 731.53 | K200: 715.7 | L200: 695.1 | M200: 8.28969
A201: 191 | B201: GPPL | C201: 212.05 | D201: 211.83 | E201: 208.77 | F201: 205.48 | G201: 202.42 | H201: 215.12 | I201: 218.18 | J201: 221.47 | K201: 214.9 | L201: 208.55 | M201: 19.82857
A202: 192 | B202: GSFC | C202: 246.8 | D202: 245.78 | E202: 243.72 | F202: 240.63 | G202: 238.57 | H202: 248.87 | I202: 250.93 | J202: 254.02 | K202: 247.85 | L202: 242.7 | M202: 24.29476
A203: 193 | B203: GSPL | C203: 294.15 | D203: 295.12 | E203: 292.48 | F203: 290.82 | G203: 288.18 | H203: 296.78 | I203: 299.42 | J203: 301.08 | K203: 297.75 | L203: 293.45 | M203: 32.39964
A204: 194 | B204: HEG | C204: 2341.9 | D204: 2352.38 | E204: 2324.52 | F204: 2307.13 | G204: 2279.27 | H204: 2369.77 | I204: 2397.63 | J204: 2415.02 | K204: 2380.25 | L204: 2335 | M204: 1.66491
A205: 195 | B205: HCLTECH | C205: 1360.7 | D205: 1365.53 | E205: 1353.17 | F205: 1345.63 | G205: 1333.27 | H205: 1373.07 | I205: 1385.43 | J205: 1392.97 | K205: 1377.9 | L205: 1358 | M205: 65.55505
A206: 196 | B206: HDFCAMC | C206: 3938.4 | D206: 3927.17 | E206: 3904.23 | F206: 3870.07 | G206: 3847.13 | H206: 3961.33 | I206: 3984.27 | J206: 4018.43 | K206: 3950.1 | L206: 3893 | M206: 2.34196
... 319 more rows

Sheet Bulk Deals
E6: Back To Main Page
A7: Subject : | B7: BULK DEAL | D7: =Main!B10 -> 2024-05-03
A9: Date | B9: Scrip code | C9: Scrip Name | D9: Client Name | E9: Buy / Sell | F9: Quantity Traded | G9: Trade Price / Wt.Avg.trade price | H9: Exchange
A10: 2024-05-02 | B10: 543319 | C10: AAPLUSTRAD | D10: MAHADEV MANUBHAI MAKVANA | E10: BUY | F10: 168,000 | G10: 17.59 | H10: BSE
A11: 2024-05-02 | B11: 543804 | C11: AMANAYA | D11: SOMANI VENTURES AND INNOVATIONS LIMITED | E11: BUY | F11: 24,000 | G11: 24.95 | H11: BSE
A12: 2024-05-02 | B12: 537069 | C12: ARNOLD | D12: LAKSHMISHREE INVESTMENT & SECURITIES PRIVATE LIMITED | E12: BUY | F12: 125,000 | G12: 41.07 | H12: BSE
A13: 2024-05-02 | B13: 539662 | C13: BFLAFL | D13: NIPA MANTHAN SANGHAVI | E13: SELL | F13: 124,215 | G13: 18.64 | H13: BSE
A14: 2024-05-02 | B14: 539662 | C14: BFLAFL | D14: DEEPIKA MURTY MALLA | E14: SELL | F14: 50,590 | G14: 18.4 | H14: BSE
A15: 2024-05-02 | B15: 539662 | C15: BFLAFL | D15: NIPA MANTHAN SANGHAVI | E15: BUY | F15: 160,000 | G15: 19 | H15: BSE
A16: 2024-05-02 | B16: 539662 | C16: BFLAFL | D16: NANDAN KANAN BARTER PVT LTD | E16: SELL | F16: 151,283 | G16: 17.76 | H16: BSE
A17: 2024-05-02 | B17: 539662 | C17: BFLAFL | D17: SETU SECURITIES PVT. LTD. | E17: SELL | F17: 50,000 | G17: 18.28 | H17: BSE
A18: 2024-05-02 | B18: 539662 | C18: BFLAFL | D18: SETU SECURITIES PVT. LTD. | E18: BUY | F18: 55,000 | G18: 17.63 | H18: BSE
A19: 2024-05-02 | B19: 539662 | C19: BFLAFL | D19: PRAGATI DREAMLAND DEVELOPERS PRIVATE LIMITED | E19: SELL | F19: 382,244 | G19: 19.56 | H19: BSE
A20: 2024-05-02 | B20: 539662 | C20: BFLAFL | D20: NIRANJANA PRIME DEVELOPERS PRIVATE LIMITED | E20: SELL | F20: 90,000 | G20: 18.78 | H20: BSE
A21: 2024-05-02 | B21: 539662 | C21: BFLAFL | D21: KAMAL KUMAR JALAN SEC. PVT. LTD | E21: BUY | F21: 70,730 | G21: 18.91 | H21: BSE
A22: 2024-05-02 | B22: 539662 | C22: BFLAFL | D22: KAMAL KUMAR JALAN SEC. PVT. LTD | E22: SELL | F22: 70,730 | G22: 18.45 | H22: BSE
A23: 2024-05-02 | B23: 539662 | C23: BFLAFL | D23: JAI VINAYAK SECURITIES | E23: BUY | F23: 70,134 | G23: 18.84 | H23: BSE
A24: 2024-05-02 | B24: 539662 | C24: BFLAFL | D24: JAI VINAYAK SECURITIES | E24: SELL | F24: 69,824 | G24: 18.36 | H24: BSE
A25: 2024-05-02 | B25: 539662 | C25: BFLAFL | D25: DEEPIKA MURTY MALLA | E25: BUY | F25: 97,526 | G25: 18.65 | H25: BSE
A26: 2024-05-02 | B26: 543333 | C26: CARTRADE | D26: CMDB II | E26: SELL | F26: 375,000 | G26: 710.08 | H26: BSE
A27: 2024-05-02 | B27: 530457 | C27: CINERAD | D27: PARESH DHIRAJLAL SHAH | E27: SELL | F27: 36,000 | G27: 74.85 | H27: BSE
A28: 2024-05-02 | B28: 530457 | C28: CINERAD | D28: GREEN PEAKS ENTERPRISES LLP | E28: SELL | F28: 42,923 | G28: 74.71 | H28: BSE
A29: 2024-05-02 | B29: 531460 | C29: CONTICON | D29: PARESH DHIRAJLAL SHAH | E29: SELL | F29: 52,000 | G29: 15.39 | H29: BSE
A30: 2024-05-02 | B30: 532175 | C30: CYIENT | D30: HDFC MUTUAL FUND | E30: BUY | F30: 1,133,893 | G30: 1800 | H30: BSE
A31: 2024-05-02 | B31: 539596 | C31: DELTA | D31: PITAM GOEL | E31: SELL | F31: 27,975 | G31: 45.94 | H31: BSE
A32: 2024-05-02 | B32: 539596 | C32: DELTA | D32: RAMESH KUMAR | E32: BUY | F32: 50,000 | G32: 45.94 | H32: BSE
A33: 2024-05-02 | B33: 539596 | C33: DELTA | D33: MULTIPLIER SHARE & STOCK ADVISORS PRIVATE LIMITED | E33: BUY | F33: 10,000 | G33: 45.94 | H33: BSE
A34: 2024-05-02 | B34: 539596 | C34: DELTA | D34: MULTIPLIER SHARE & STOCK ADVISORS PRIVATE LIMITED | E34: SELL | F34: 35,423 | G34: 45.94 | H34: BSE
A35: 2024-05-02 | B35: 539596 | C35: DELTA | D35: SAHILSHARMA | E35: SELL | F35: 27,000 | G35: 45.94 | H35: BSE
A36: 2024-05-02 | B36: 543713 | C36: DRONACHRYA | D36: SHANKAR SHARMA | E36: SELL | F36: 200,000 | G36: 153.46 | H36: BSE
A37: 2024-05-02 | B37: 523732 | C37: ECOBOAR | D37: SHAH DIPAK KANAYALAL | E37: BUY | F37: 101,499 | G37: 40.51 | H37: BSE
A38: 2024-05-02 | B38: 544166 | C38: EMMFORCE | D38: MULTIPLIER SHARE & STOCK ADVISORS PRIVATE LIMITED | E38: SELL | F38: 190,800 | G38: 205.25 | H38: BSE
A39: 2024-05-02 | B39: 544166 | C39: EMMFORCE | D39: CINCO STOCK VISION LLP | E39: BUY | F39: 240,000 | G39: 205.25 | H39: BSE
A40: 2024-05-02 | B40: 544164 | C40: FAALCON | D40: NURUL AMIN | E40: BUY | F40: 44,000 | G40: 77.39 | H40: BSE
A41: 2024-05-02 | B41: 544164 | C41: FAALCON | D41: F3 ADVISORS PRIVATE LIMITED | E41: BUY | F41: 40,000 | G41: 85.51 | H41: BSE
A42: 2024-05-02 | B42: 544164 | C42: FAALCON | D42: BINOD KUMAR GUPTA | E42: SELL | F42: 40,000 | G42: 77.39 | H42: BSE
A43: 2024-05-02 | B43: 544164 | C43: FAALCON | D43: ROHAN GUPTA | E43: BUY | F43: 100,000 | G43: 77.39 | H43: BSE
A44: 2024-05-02 | B44: 540190 | C44: FRANKLININD | D44: MULTIPLIER SHARE & STOCK ADVISORS PRIVATE LIMITED | E44: BUY | F44: 203,703 | G44: 5.85 | H44: BSE
A45: 2024-05-02 | B45: 544156 | C45: GCONNECT | D45: VAXFAB ENTERPRISES LIMITED | E45: SELL | F45: 30,000 | G45: 34.17 | H45: BSE
A46: 2024-05-02 | B46: 513309 | C46: GOLKONDA | D46: TINA JAIN | E46: BUY | F46: 27,000 | G46: 13.99 | H46: BSE
A47: 2024-05-02 | B47: 513309 | C47: GOLKONDA | D47: SHUBHAM ASHOKBHAI PATEL | E47: SELL | F47: 34,891 | G47: 13.43 | H47: BSE
A48: 2024-05-02 | B48: 513337 | C48: GUJTLRM | D48: SHUBHAM ASHOKBHAI PATEL | E48: SELL | F48: 892,219 | G48: 29.32 | H48: BSE
A49: 2024-05-02 | B49: 513337 | C49: GUJTLRM | D49: SHUBHAM ASHOKBHAI PATEL | E49: BUY | F49: 520,493 | G49: 29.32 | H49: BSE
A50: 2024-05-02 | B50: 544163 | C50: GVL | D50: MULTIPLIER SHARE & STOCK ADVISORS PRIVATE LIMITED | E50: BUY | F50: 30,000 | G50: 140.3 | H50: BSE
A51: 2024-05-02 | B51: 543546 | C51: HEALTHYLIFE | D51: AMIT RAMANLAL LODHA | E51: BUY | F51: 180,000 | G51: 8.27 | H51: BSE
A52: 2024-05-02 | B52: 543546 | C52: HEALTHYLIFE | D52: RAJESH TRIPATHI | E52: BUY | F52: 130,000 | G52: 8.38 | H52: BSE
A53: 2024-05-02 | B53: 543546 | C53: HEALTHYLIFE | D53: JR SEAMLESS PRIVATE LIMITED | E53: SELL | F53: 150,000 | G53: 8.38 | H53: BSE
A54: 2024-05-02 | B54: 539175 | C54: INDRAIND | D54: RDS CORPORATE SERVICES PRIVATE LIMITED | E54: BUY | F54: 106,585 | G54: 12.7 | H54: BSE
A55: 2024-05-02 | B55: 539175 | C55: INDRAIND | D55: TANVI BANSAL | E55: SELL | F55: 72,950 | G55: 12.71 | H55: BSE
A56: 2024-05-02 | B56: 539175 | C56: INDRAIND | D56: KALPANA ASHOK THACKER | E56: SELL | F56: 43,270 | G56: 12.71 | H56: BSE
A57: 2024-05-02 | B57: 539175 | C57: INDRAIND | D57: POOJA KOCHAR | E57: SELL | F57: 86,349 | G57: 12.71 | H57: BSE
A58: 2024-05-02 | B58: 539175 | C58: INDRAIND | D58: RDS CORPORATE SERVICES PRIVATE LIMITED | E58: SELL | F58: 9,080 | G58: 12.71 | H58: BSE
A59: 2024-05-02 | B59: 539175 | C59: INDRAIND | D59: ROSHANI HERBAL AGRO PRIVATE LIMITED | E59: SELL | F59: 200,000 | G59: 12.71 | H59: BSE
A60: 2024-05-02 | B60: 539175 | C60: INDRAIND | D60: GREEN PEAKS ENTERPRISES LLP | E60: SELL | F60: 75,000 | G60: 12.7 | H60: BSE
A61: 2024-05-02 | B61: 539175 | C61: INDRAIND | D61: GREEN PEAKS ENTERPRISES LLP | E61: BUY | F61: 100,000 | G61: 12.71 | H61: BSE
A62: 2024-05-02 | B62: 536709 | C62: INDRENEW | D62: MANALIBEN VIRALKUMAR PANCHAL | E62: SELL | F62: 80,000 | G62: 13.11 | H62: BSE
A63: 2024-05-02 | B63: 536709 | C63: INDRENEW | D63: PROFIN COMMODITIES PRIVATE LIMITED | E63: SELL | F63: 167,797 | G63: 13.61 | H63: BSE
A64: 2024-05-02 | B64: 536709 | C64: INDRENEW | D64: HIMANSHU MAHESH OZA | E64: BUY | F64: 70,000 | G64: 13.48 | H64: BSE
A65: 2024-05-02 | B65: 541983 | C65: INNOVATIVE | D65: NANDINI ALOK BANSAL | E65: BUY | F65: 161,000 | G65: 32.22 | H65: BSE
A66: 2024-05-02 | B66: 517423 | C66: INTEGSW | D66: MULTIPLIER SHARE & STOCK ADVISORS PRIVATE LIMITED | E66: SELL | F66: 20,085 | G66: 134.1 | H66: BSE
A67: 2024-05-02 | B67: 530145 | C67: KISAN | D67: CAMELLIA TRADEX PRIVATE LIMITED | E67: SELL | F67: 420,463 | G67: 91.64 | H67: BSE
A68: 2024-05-02 | B68: 530145 | C68: KISAN | D68: MULTIPLIER SHARE & STOCK ADVISORS PRIVATE LIMITED | E68: SELL | F68: 601,510 | G68: 91.64 | H68: BSE
A69: 2024-05-02 | B69: 530145 | C69: KISAN | D69: SNEHLATA RAJESH NUWAL | E69: SELL | F69: 319,182 | G69: 91.64 | H69: BSE
A70: 2024-05-02 | B70: 530145 | C70: KISAN | D70: MANISH CHAMPALAL JAIN | E70: BUY | F70: 200,000 | G70: 91.64 | H70: BSE
A71: 2024-05-02 | B71: 530145 | C71: KISAN | D71: BHARATH CHAMPALAL JAIN | E71: BUY | F71: 200,000 | G71: 91.64 | H71: BSE
A72: 2024-05-02 | B72: 530119 | C72: NATRAJPR | D72: PARTHIV RAMESHCHANDRA PATEL | E72: SELL | F72: 26,492 | G72: 68.81 | H72: BSE
A73: 2024-05-02 | B73: 523242 | C73: NBFOOT | D73: GRANDEUR CORPORATION PRIVATE LIMITED | E73: SELL | F73: 700,000 | G73: 7.74 | H73: BSE
A74: 2024-05-02 | B74: 523242 | C74: NBFOOT | D74: VIRAL PRAFUL JHAVERI | E74: BUY | F74: 100,000 | G74: 7.67 | H74: BSE
A75: 2024-05-02 | B75: 523242 | C75: NBFOOT | D75: YOGESH JOTIRAM KALE | E75: BUY | F75: 75,000 | G75: 7.65 | H75: BSE
A76: 2024-05-02 | B76: 523242 | C76: NBFOOT | D76: MINIBOSS CONSULTANCY PRIVATE LIMITED | E76: BUY | F76: 86,400 | G76: 7.65 | H76: BSE
A77: 2024-05-02 | B77: 523242 | C77: NBFOOT | D77: MALAV PRAKASHKUMAR SHAH | E77: BUY | F77: 70,000 | G77: 7.69 | H77: BSE
A78: 2024-05-02 | B78: 523242 | C78: NBFOOT | D78: DEV GANPAT PAWAR | E78: SELL | F78: 40,000 | G78: 8.45 | H78: BSE
A79: 2024-05-02 | B79: 523242 | C79: NBFOOT | D79: YOGESH JOTIRAM KALE | E79: SELL | F79: 40,000 | G79: 8.45 | H79: BSE
A80: 2024-05-02 | B80: 523242 | C80: NBFOOT | D80: SYNEMATIC MEDIA AND CONSULTING PRIVATE LIMITED | E80: BUY | F80: 100,000 | G80: 7.65 | H80: BSE
A81: 2024-05-02 | B81: 523242 | C81: NBFOOT | D81: DEV GANPAT PAWAR | E81: BUY | F81: 75,000 | G81: 7.65 | H81: BSE
A82: 2024-05-02 | B82: 531512 | C82: ORIENTTR | D82: N L RUNGTA (HUF) | E82: BUY | F82: 67,104 | G82: 9.62 | H82: BSE
A83: 2024-05-02 | B83: 532911 | C83: PARLEIND | D83: SRIDHARAN NARASIMHAN | E83: SELL | F83: 178,829 | G83: 10.02 | H83: BSE
A84: 2024-05-02 | B84: 536659 | C84: PVVINFRA | D84: CTIL MEDIA PRIVATE LIMITED | E84: SELL | F84: 251,989 | G84: 41.95 | H84: BSE
A85: 2024-05-02 | B85: 541703 | C85: RACONTEUR | D85: ECOMATIX SOLUTIONS PRIVATE LIMITED . | E85: SELL | F85: 22,400 | G85: 22.32 | H85: BSE
A86: 2024-05-02 | B86: 531260 | C86: REFEXRENEW | D86: KAMLESH JAIN | E86: SELL | F86: 23,633 | G86: 565 | H86: BSE
A87: 2024-05-02 | B87: 519191 | C87: RGRL | D87: SUMANCHEPURI | E87: BUY | F87: 50,629 | G87: 9.7 | H87: BSE
A88: 2024-05-02 | B88: 544121 | C88: RUDRAGAS | D88: VORA FINANCIAL SERVICES PVT LTD | E88: SELL | F88: 50,000 | G88: 189.37 | H88: BSE
A89: 2024-05-02 | B89: 530433 | C89: SHIVAAGRO | D89: RAJESH MADHAVAN UNNI(HUF) | E89: SELL | F89: 108,588 | G89: 40.28 | H89: BSE
A90: 2024-05-02 | B90: 544165 | C90: SHIVAM | D90: KALPESH H MAGIA HUF | E90: BUY | F90: 108,000 | G90: 49.32 | H90: BSE
A91: 2024-05-02 | B91: 544165 | C91: SHIVAM | D91: HELI SUDHIR SHAH | E91: BUY | F91: 198,000 | G91: 48.7 | H91: BSE
A92: 2024-05-02 | B92: 539584 | C92: SIPTL | D92: MAHADEV MANUBHAI MAKVANA | E92: SELL | F92: 3,269,234 | G92: 0.98 | H92: BSE
A93: 2024-05-02 | B93: 539584 | C93: SIPTL | D93: MAHADEV MANUBHAI MAKVANA | E93: BUY | F93: 147,968 | G93: 0.97 | H93: BSE
A94: 2024-05-02 | B94: 516038 | C94: SOMAPPR | D94: MEGHNA JIGAM GANDHI | E94: BUY | F94: 5,000 | G94: 99.12 | H94: BSE
A95: 2024-05-02 | B95: 516038 | C95: SOMAPPR | D95: MEGHNA JIGAM GANDHI | E95: SELL | F95: 8,968 | G95: 98.99 | H95: BSE
A96: 2024-05-02 | B96: 516038 | C96: SOMAPPR | D96: RUCHIRA GOYAL | E96: SELL | F96: 8,000 | G96: 98.99 | H96: BSE
A97: 2024-05-02 | B97: 516038 | C97: SOMAPPR | D97: RUCHIRA GOYAL | E97: BUY | F97: 4,000 | G97: 99.12 | H97: BSE
A98: 2024-05-02 | B98: 516038 | C98: SOMAPPR | D98: PARESH DHIRAJLAL SHAH | E98: SELL | F98: 10,000 | G98: 99.12 | H98: BSE
A99: 2024-05-02 | B99: 516038 | C99: SOMAPPR | D99: N L RUNGTA (HUF) | E99: SELL | F99: 11,050 | G99: 98.99 | H99: BSE
A100: 2024-05-02 | B100: 516038 | C100: SOMAPPR | D100: MULTIPLIER SHARE & STOCK ADVISORS PRIVATE LIMITED | E100: BUY | F100: 2,000 | G100: 99.12 | H100: BSE
A101: 2024-05-02 | B101: 516038 | C101: SOMAPPR | D101: SHANAY VIKRAM KOTHARI | E101: BUY | F101: 8,000 | G101: 99.12 | H101: BSE
A102: 2024-05-02 | B102: 516038 | C102: SOMAPPR | D102: MULTIPLIER SHARE & STOCK ADVISORS PRIVATE LIMITED | E102: SELL | F102: 14,453 | G102: 98.99 | H102: BSE
A103: 2024-05-02 | B103: 516038 | C103: SOMAPPR | D103: ESWARA REDDY YEDDULA | E103: BUY | F103: 40,475 | G103: 98.99 | H103: BSE
A104: 2024-05-02 | B104: 516038 | C104: SOMAPPR | D104: MANOJ KUMAR KANDA | E104: SELL | F104: 7,733 | G104: 99.12 | H104: BSE
A105: 2024-05-02 | B105: 517548 | C105: STARLITE | D105: ANUP GUPTA | E105: SELL | F105: 150,198 | G105: 2.08 | H105: BSE
A106: 2024-05-02 | B106: 517548 | C106: STARLITE | D106: ANUP GUPTA (HUF) | E106: SELL | F106: 166,580 | G106: 2.08 | H106: BSE
A107: 2024-05-02 | B107: 517548 | C107: STARLITE | D107: SEEMAA GUPTHA | E107: SELL | F107: 133,918 | G107: 2.08 | H107: BSE
A108: 2024-05-02 | B108: 517548 | C108: STARLITE | D108: N L RUNGTA (HUF) | E108: SELL | F108: 28,500 | G108: 2.14 | H108: BSE
A109: 2024-05-02 | B109: 517548 | C109: STARLITE | D109: N L RUNGTA (HUF) | E109: BUY | F109: 178,500 | G109: 2.09 | H109: BSE
A110: 2024-05-02 | B110: 517548 | C110: STARLITE | D110: RAAS CONSULTING PRIVATE LIMITED | E110: SELL | F110: 241,746 | G110: 2.11 | H110: BSE
A111: 2024-05-02 | B111: 517548 | C111: STARLITE | D111: GLADISMENEZES | E111: BUY | F111: 100,000 | G111: 2.08 | H111: BSE
A112: 2024-05-02 | B112: 517548 | C112: STARLITE | D112: GOPALVERMA | E112: BUY | F112: 100,216 | G112: 2.08 | H112: BSE
A113: 2024-05-02 | B113: 537253 | C113: SUNLOC | D113: SHAILESH KUMAR | E113: BUY | F113: 64,000 | G113: 97.33 | H113: BSE
A114: 2024-05-02 | B114: 533629 | C114: TIJARIA | D114: PREETI BHAUKA | E114: BUY | F114: 149,000 | G114: 22.6 | H114: BSE
A115: 2024-05-02 | B115: 539097 | C115: URSUGAR | D115: ARHAM SHARE PRIVATE LIMITED | E115: BUY | F115: 600,000 | G115: 17.89 | H115: BSE
A116: 2024-05-02 | B116: 539097 | C116: URSUGAR | D116: SKSE SECURITIES LIMITED CORP CM/TM PROP A/C | E116: SELL | F116: 547,456 | G116: 17.87 | H116: BSE
A117: 2024-05-02 | B117: 539097 | C117: URSUGAR | D117: SKSE SECURITIES LIMITED CORP CM/TM PROP A/C | E117: BUY | F117: 12,017 | G117: 17.73 | H117: BSE
A118: 2024-05-02 | B118: 519224 | C118: WILLAMAGOR | D118: PATRONUS TRADETECH LLP | E118: BUY | F118: 43,479 | G118: 41.48 | H118: BSE
A119: 2024-05-02 | B119: 519224 | C119: WILLAMAGOR | D119: PATRONUS TRADETECH LLP | E119: SELL | F119: 60,834 | G119: 44.01 | H119: BSE
A120: 2024-05-02 | B120: ARROWGREEN | C120: Arrow Greentech Limited | D120: GRAVITON RESEARCH CAPITAL LLP | E120: BUY | F120: 104,095 | G120: 485.43 | H120: NSE
A121: 2024-05-02 | B121: ATALREAL | C121: Atal Realtech Limited | D121: KAMAL JEET GUPTA | E121: BUY | F121: 596,829 | G121: 9.65 | H121: NSE
A122: 2024-05-02 | B122: ATALREAL | C122: Atal Realtech Limited | D122: EPITOME TRADING AND INVESTMENTS | E122: BUY | F122: 510,920 | G122: 9.7 | H122: NSE
A123: 2024-05-02 | B123: ATULAUTO | C123: Atul Auto Limited | D123: GRAVITON RESEARCH CAPITAL LLP | E123: BUY | F123: 232,969 | G123: 578.64 | H123: NSE
A124: 2024-05-02 | B124: ATULAUTO | C124: Atul Auto Limited | D124: QE SECURITIES LLP | E124: BUY | F124: 182,299 | G124: 589.66 | H124: NSE
A125: 2024-05-02 | B125: ATULAUTO | C125: Atul Auto Limited | D125: NK SECURITIES RESEARCH PRIVATE LIMITED | E125: BUY | F125: 166,899 | G125: 591.51 | H125: NSE
A126: 2024-05-02 | B126: AVONMORE | C126: Avonmore Cap&Mgt Serv Ltd | D126: SAHI TRADING PRIVATE LIMITED | E126: BUY | F126: 200,000 | G126: 120.75 | H126: NSE
A127: 2024-05-02 | B127: AVONMORE | C127: Avonmore Cap&Mgt Serv Ltd | D127: SUBHASH PHOOTARMAL RATHOD | E127: BUY | F127: 282,629 | G127: 112 | H127: NSE
A128: 2024-05-02 | B128: AVONMORE | C128: Avonmore Cap&Mgt Serv Ltd | D128: THOMSON AND WYMAN ENTERPRISES PRIVATE LIMITED | E128: BUY | F128: 304,000 | G128: 117.47 | H128: NSE
A129: 2024-05-02 | B129: BASILIC | C129: Basilic Fly Studio Ltd | D129: TOPGAIN FINANCE PRIVATE LIMITED | E129: BUY | F129: 144,900 | G129: 383.38 | H129: NSE
A130: 2024-05-02 | B130: BFUTILITIE | C130: BF Utilities Limited | D130: GRAVITON RESEARCH CAPITAL LLP | E130: BUY | F130: 227,897 | G130: 892.14 | H130: NSE
A131: 2024-05-02 | B131: BTML | C131: Bodhi Tree Multimedia Ltd | D131: ASHAPURA COMMODITIES | E131: BUY | F131: 650,000 | G131: 17.51 | H131: NSE
A132: 2024-05-02 | B132: BTML | C132: Bodhi Tree Multimedia Ltd | D132: FAST TRACK FINSEC PRIVATE LIMITED | E132: BUY | F132: 655,980 | G132: 17.45 | H132: NSE
A133: 2024-05-02 | B133: BTML | C133: Bodhi Tree Multimedia Ltd | D133: BENGAL TIGER CAPITAL ADVISORS LLP | E133: BUY | F133: 700,000 | G133: 17.2 | H133: NSE
A134: 2024-05-02 | B134: DUGLOBAL | C134: DUDIGITAL GLOBAL LIMITED | D134: IND SWIFT LABORATORIES LIMITED | E134: BUY | F134: 500,000 | G134: 73.97 | H134: NSE
A135: 2024-05-02 | B135: DYNAMIC | C135: Dynamic Srvcs & Sec Ltd | D135: LATHE DERIVATIVES TRADING PRIVATE LIMITED . | E135: BUY | F135: 89,000 | G135: 276.27 | H135: NSE
A136: 2024-05-02 | B136: DYNAMIC | C136: Dynamic Srvcs & Sec Ltd | D136: ANKUSH KEDIA | E136: BUY | F136: 100,000 | G136: 276.7 | H136: NSE
A137: 2024-05-02 | B137: GEOJITFSL | C137: Geojit Fin Serv Ltd | D137: GRAVITON RESEARCH CAPITAL LLP | E137: BUY | F137: 1,855,039 | G137: 107.18 | H137: NSE
A138: 2024-05-02 | B138: HINDMOTORS | C138: Hindustan Motors Limited | D138: TOPGAIN FINANCE PRIVATE LIMITED | E138: BUY | F138: 702,035 | G138: 38.02 | H138: NSE
A139: 2024-05-02 | B139: INOXGREEN | C139: Inox Green Energy Ser Ltd | D139: SIXTEENTH STREET ASIAN GEMS FUND | E139: BUY | F139: 4,000,000 | G139: 144.5 | H139: NSE
A140: 2024-05-02 | B140: JNKINDIA | C140: JNK India Limited | D140: GRAVITON RESEARCH CAPITAL LLP | E140: BUY | F140: 331,719 | G140: 679.17 | H140: NSE
A141: 2024-05-02 | B141: JSFB | C141: Jana Small Fin Bank Ltd | D141: GRAVITON RESEARCH CAPITAL LLP | E141: BUY | F141: 742,616 | G141: 645.28 | H141: NSE
A142: 2024-05-02 | B142: JTLIND | C142: JTL INDUSTRIES LIMITED | D142: SRESTHA FINVEST LIMITED | E142: BUY | F142: 1,300,808 | G142: 234.98 | H142: NSE
A143: 2024-05-02 | B143: JTLIND | C143: JTL INDUSTRIES LIMITED | D143: RAJAN GUPTA | E143: BUY | F143: 1,393,450 | G143: 235.01 | H143: NSE
A144: 2024-05-02 | B144: LAXMICOT | C144: Laxmi Cotspin Limited | D144: SANDIP SUKHABHAI KHANT | E144: BUY | F144: 95,632 | G144: 33.82 | H144: NSE
A145: 2024-05-02 | B145: MADHUSUDAN | C145: Madhusudan Masala Limited | D145: UMANG RELAN | E145: BUY | F145: 75,000 | G145: 121.59 | H145: NSE
A146: 2024-05-02 | B146: MEP | C146: MEP Infra. Developers Ltd | D146: VINOD COMMODITIES LIMITED | E146: BUY | F146: 1,145,000 | G146: 8.15 | H146: NSE
A147: 2024-05-02 | B147: MOIL | C147: MOIL Limited | D147: GRAVITON RESEARCH CAPITAL LLP | E147: BUY | F147: 1,440,585 | G147: 437.3 | H147: NSE
A148: 2024-05-02 | B148: MOS | C148: Mos Utility Limited | D148: SKSE SECURITIES LTD | E148: BUY | F148: 201,600 | G148: 191.74 | H148: NSE
A149: 2024-05-02 | B149: MOS | C149: Mos Utility Limited | D149: MOTISONS SHARES PVT LTD | E149: BUY | F149: 222,400 | G149: 193.56 | H149: NSE
A150: 2024-05-02 | B150: MOS | C150: Mos Utility Limited | D150: SAINT CAPITAL FUND | E150: BUY | F150: 149,600 | G150: 193.96 | H150: NSE
A151: 2024-05-02 | B151: MOS | C151: Mos Utility Limited | D151: MATALIA STOCK BROKING PRIVATE LIMITED | E151: BUY | F151: 127,200 | G151: 192.73 | H151: NSE
A152: 2024-05-02 | B152: MOS | C152: Mos Utility Limited | D152: ZINNIA GLOBAL FUND PCC - CELL DEWCAP FUND | E152: BUY | F152: 149,600 | G152: 191.98 | H152: NSE
A153: 2024-05-02 | B153: NIPPOBATRY | C153: Indo-National Limited | D153: MANSI SHARE AND STOCK ADVISORS PVT LTD | E153: BUY | F153: 37,596 | G153: 656.24 | H153: NSE
A154: 2024-05-02 | B154: ORIENTPPR | C154: Orient Paper & Ind Ltd | D154: GRAVITON RESEARCH CAPITAL LLP | E154: BUY | F154: 1,668,755 | G154: 55.53 | H154: NSE
A155: 2024-05-02 | B155: PDMJEPAPER | C155: Pudumjee Paper Pro. Ltd | D155: GRAVITON RESEARCH CAPITAL LLP | E155: BUY | F155: 543,803 | G155: 89.45 | H155: NSE
A156: 2024-05-02 | B156: PEARLPOLY | C156: Pearl Polymers Ltd | D156: YUGA STOCKS AND COMMODITIES PRIVATE LIMITED . | E156: BUY | F156: 100,000 | G156: 44.43 | H156: NSE
A157: 2024-05-02 | B157: RAMRAT | C157: Ram Ratna Wires Limited | D157: GRAVITON RESEARCH CAPITAL LLP | E157: BUY | F157: 290,861 | G157: 394.28 | H157: NSE
A158: 2024-05-02 | B158: SCML | C158: Sharp Chucks N Machines L | D158: LATHE DERIVATIVES TRADING PRIVATE LIMITED . | E158: BUY | F158: 68,000 | G158: 126.8 | H158: NSE
A159: 2024-05-02 | B159: SHAH | C159: Shah Metacorp Limited | D159: HI GROWTH CORPORATE SERVICES PVT LTD | E159: BUY | F159: 3,185,527 | G159: 4.25 | H159: NSE
A160: 2024-05-02 | B160: SKIPPER | C160: Skipper Limited | D160: GRAVITON RESEARCH CAPITAL LLP | E160: BUY | F160: 633,497 | G160: 353.76 | H160: NSE
A161: 2024-05-02 | B161: SPARC | C161: Sun Pharma Advanced Resea | D161: MANSI SHARE AND STOCK ADVISORS PVT LTD | E161: BUY | F161: 1,536,426 | G161: 222.5 | H161: NSE
A162: 2024-05-02 | B162: SSFL | C162: Srivari Spices N Foods L | D162: AVNEESH KUMAR RANA | E162: BUY | F162: 37,000 | G162: 315.97 | H162: NSE
A163: 2024-05-02 | B163: TCL | C163: Thaai Casting Limited | D163: ANKUSH KEDIA | E163: BUY | F163: 180,000 | G163: 197.15 | H163: NSE
A164: 2024-05-02 | B164: TGL | C164: Teerth Gopicon Limited | D164: MANSI SHARE AND STOCK ADVISORS PVT LTD | E164: BUY | F164: 182,400 | G164: 223.25 | H164: NSE
A165: 2024-05-02 | B165: TGL | C165: Teerth Gopicon Limited | D165: ASHWIN STOCKS AND INVESTMENT PRIVATE LIMITED | E165: BUY | F165: 66,000 | G165: 222.25 | H165: NSE
A166: 2024-05-02 | B166: TGL | C166: Teerth Gopicon Limited | D166: LATHE DERIVATIVES TRADING PRIVATE LIMITED . | E166: BUY | F166: 111,600 | G166: 223.49 | H166: NSE
A167: 2024-05-02 | B167: TRU | C167: TruCap Finance Limited | D167: IND SWIFT LABORATORIES LIMITED | E167: BUY | F167: 828,092 | G167: 67.15 | H167: NSE
A168: 2024-05-02 | B168: TVSELECT | C168: TVS Electronics Limited | D168: NK SECURITIES RESEARCH PRIVATE LIMITED | E168: BUY | F168: 103,271 | G168: 345.56 | H168: NSE
A169: 2024-05-02 | B169: TVSELECT | C169: TVS Electronics Limited | D169: MANSI SHARE AND STOCK ADVISORS PVT LTD | E169: BUY | F169: 308,918 | G169: 362.14 | H169: NSE
A170: 2024-05-02 | B170: TVSELECT | C170: TVS Electronics Limited | D170: GRAVITON RESEARCH CAPITAL LLP | E170: BUY | F170: 133,699 | G170: 332.25 | H170: NSE
A171: 2024-05-02 | B171: VASCONEQ | C171: Vascon Engineers Ltd | D171: GRAVITON RESEARCH CAPITAL LLP | E171: BUY | F171: 1,442,655 | G171: 77.29 | H171: NSE
A172: 2024-05-02 | B172: VASCONEQ | C172: Vascon Engineers Ltd | D172: CRONY VYAPAR PVT LTD | E172: BUY | F172: 2,545,555 | G172: 77.42 | H172: NSE
A173: 2024-05-02 | B173: WILLAMAGOR | C173: Williamson Magor & Co | D173: PATRONUS TRADETECH LLP | E173: BUY | F173: 60,655 | G173: 43.43 | H173: NSE
A174: 2024-05-02 | B174: ZAGGLE | C174: Zaggle Prepa Ocean Ser L | D174: ICICI PRUDENTIAL MUTUAL FUND | E174: BUY | F174: 1,158,940 | G174: 302 | H174: NSE
A175: 2024-05-02 | B175: ACCORD | C175: Accord Synergy Limited | D175: AGAM RAHUL SHAH | E175: SELL | F175: 24,000 | G175: 26.9 | H175: NSE
A176: 2024-05-02 | B176: ARROWGREEN | C176: Arrow Greentech Limited | D176: GRAVITON RESEARCH CAPITAL LLP | E176: SELL | F176: 104,095 | G176: 484.47 | H176: NSE
A177: 2024-05-02 | B177: ATALREAL | C177: Atal Realtech Limited | D177: KAMAL JEET GUPTA | E177: SELL | F177: 602,119 | G177: 9.7 | H177: NSE
A178: 2024-05-02 | B178: ATALREAL | C178: Atal Realtech Limited | D178: EPITOME TRADING AND INVESTMENTS | E178: SELL | F178: 650,000 | G178: 9.67 | H178: NSE
A179: 2024-05-02 | B179: ATULAUTO | C179: Atul Auto Limited | D179: QE SECURITIES LLP | E179: SELL | F179: 190,388 | G179: 592.01 | H179: NSE
A180: 2024-05-02 | B180: ATULAUTO | C180: Atul Auto Limited | D180: NK SECURITIES RESEARCH PRIVATE LIMITED | E180: SELL | F180: 166,899 | G180: 591.9 | H180: NSE
A181: 2024-05-02 | B181: ATULAUTO | C181: Atul Auto Limited | D181: GRAVITON RESEARCH CAPITAL LLP | E181: SELL | F181: 232,969 | G181: 578.33 | H181: NSE
A182: 2024-05-02 | B182: AVONMORE | C182: Avonmore Cap&Mgt Serv Ltd | D182: VEENA GASES & CHEMICALS PRIVATE LIMITED | E182: SELL | F182: 586,608 | G182: 118.18 | H182: NSE
A183: 2024-05-02 | B183: AVONMORE | C183: Avonmore Cap&Mgt Serv Ltd | D183: RAMBLE MARKETS PRIVATE LIMITED | E183: SELL | F183: 384,876 | G183: 113.8 | H183: NSE
A184: 2024-05-02 | B184: BASILIC | C184: Basilic Fly Studio Ltd | D184: TOPGAIN FINANCE PRIVATE LIMITED | E184: SELL | F184: 144,600 | G184: 402.07 | H184: NSE
A185: 2024-05-02 | B185: BFUTILITIE | C185: BF Utilities Limited | D185: GRAVITON RESEARCH CAPITAL LLP | E185: SELL | F185: 227,897 | G185: 891.36 | H185: NSE
A186: 2024-05-02 | B186: BLUEPEBBLE | C186: Blue Pebble Limited | D186: ABSOLUTE RETURNS SCHEME | E186: SELL | F186: 31,200 | G186: 274.13 | H186: NSE
A187: 2024-05-02 | B187: BTML | C187: Bodhi Tree Multimedia Ltd | D187: FAST TRACK FINSEC PRIVATE LIMITED | E187: SELL | F187: 647,213 | G187: 17.25 | H187: NSE
A188: 2024-05-02 | B188: BTML | C188: Bodhi Tree Multimedia Ltd | D188: NIRAJ RAJNIKANT SHAH | E188: SELL | F188: 1,027,605 | G188: 17.34 | H188: NSE
A189: 2024-05-02 | B189: BTML | C189: Bodhi Tree Multimedia Ltd | D189: RAJENDRA KUMAR AGARWAL (HUF) | E189: SELL | F189: 700,000 | G189: 17.2 | H189: NSE
A190: 2024-05-02 | B190: DELAPLEX | C190: Delaplex Limited | D190: KINGSMAN WEALTH FUND PCC - KIF II | E190: SELL | F190: 52,200 | G190: 230.01 | H190: NSE
A191: 2024-05-02 | B191: DYNAMIC | C191: Dynamic Srvcs & Sec Ltd | D191: LATHE DERIVATIVES TRADING PRIVATE LIMITED . | E191: SELL | F191: 89,000 | G191: 275.39 | H191: NSE
A192: 2024-05-02 | B192: GEOJITFSL | C192: Geojit Fin Serv Ltd | D192: GRAVITON RESEARCH CAPITAL LLP | E192: SELL | F192: 1,855,039 | G192: 107.26 | H192: NSE
A193: 2024-05-02 | B193: HINDMOTORS | C193: Hindustan Motors Limited | D193: TOPGAIN FINANCE PRIVATE LIMITED | E193: SELL | F193: 1,100,000 | G193: 37.85 | H193: NSE
A194: 2024-05-02 | B194: INOXGREEN | C194: Inox Green Energy Ser Ltd | D194: ICM FINANCE PRIVATE LIMITED | E194: SELL | F194: 1,500,000 | G194: 144.58 | H194: NSE
A195: 2024-05-02 | B195: INOXGREEN | C195: Inox Green Energy Ser Ltd | D195: ICM FINANCE PRIVATE LIMITED | E195: SELL | F195: 2,912,880 | G195: 144.53 | H195: NSE
A196: 2024-05-02 | B196: JNKINDIA | C196: JNK India Limited | D196: GRAVITON RESEARCH CAPITAL LLP | E196: SELL | F196: 331,719 | G196: 679.33 | H196: NSE
A197: 2024-05-02 | B197: JSFB | C197: Jana Small Fin Bank Ltd | D197: GRAVITON RESEARCH CAPITAL LLP | E197: SELL | F197: 742,616 | G197: 645.2 | H197: NSE
A198: 2024-05-02 | B198: JTLIND | C198: JTL INDUSTRIES LIMITED | D198: SRESTHA FINVEST LIMITED | E198: SELL | F198: 1,300,808 | G198: 235.26 | H198: NSE
A199: 2024-05-02 | B199: JTLIND | C199: JTL INDUSTRIES LIMITED | D199: RAJAN GUPTA | E199: SELL | F199: 1,393,450 | G199: 237.13 | H199: NSE
A200: 2024-05-02 | B200: MEP | C200: MEP Infra. Developers Ltd | D200: SHIR COMMODITIES AND FUTURES PRIVATE LIMITED | E200: SELL | F200: 1,145,000 | G200: 8.15 | H200: NSE
A201: 2024-05-02 | B201: MOIL | C201: MOIL Limited | D201: GRAVITON RESEARCH CAPITAL LLP | E201: SELL | F201: 1,440,585 | G201: 437.5 | H201: NSE
A202: 2024-05-02 | B202: MOS | C202: Mos Utility Limited | D202: MOTISONS SHARES PVT LTD | E202: SELL | F202: 222,400 | G202: 191.45 | H202: NSE
A203: 2024-05-02 | B203: MOS | C203: Mos Utility Limited | D203: MATALIA STOCK BROKING PRIVATE LIMITED | E203: SELL | F203: 127,200 | G203: 192.91 | H203: NSE
A204: 2024-05-02 | B204: MOS | C204: Mos Utility Limited | D204: SKSE SECURITIES LTD | E204: SELL | F204: 201,600 | G204: 191.67 | H204: NSE
A205: 2024-05-02 | B205: NIPPOBATRY | C205: Indo-National Limited | D205: MANSI SHARE AND STOCK ADVISORS PVT LTD | E205: SELL | F205: 58,091 | G205: 660.13 | H205: NSE
A206: 2024-05-02 | B206: ORIENTPPR | C206: Orient Paper & Ind Ltd | D206: GRAVITON RESEARCH CAPITAL LLP | E206: SELL | F206: 1,668,755 | G206: 55.65 | H206: NSE
... 21 more rows

Sheet Call Tracker (Equity & F&O)
M5: Back To Main Page
A6: Retail Research Technical Calls & Fundamental Performance Report for the month of May-2024
M7: =Main!B10 -> 2024-05-03
B8: Positional Call
A9: Sr.no | B9: Date | D9: Company | E9: Rec | F9: Rec Price | G9: Stop Loss*** | H9: Call Closed At | I9: Target | J9: Remark | K9: Profit / Loss per Share | L9: All charges | M9: Net Gain / Loss % | N9: Status | O9: Closed Date | P9: Market Closing Price | Q9: Second Buying Date
A10: 1 | B10: 2024-03-11 | D10: NESTLEIND | E10: Accu | F10: 2485-2585 | G10: 2390 | I10: 2800-3000 | J10: Open | P10: =VLOOKUP(D10,'MidCap Intra'!$B$11:$C$568,2,0) -> 2512.30 | S10: H
A11: 2 | B11: 2024-03-22 | D11: TCS | E11: Accu | F11: 3780-3880 | G11: 3640 | I11: 4100-4200 | J11: Open | P11: =VLOOKUP(D11,'MidCap Intra'!$B$11:$C$568,2,0) -> 3863.30 | S11: H
A12: 3 | B12: 2024-04-03 | D12: BRITANNIA | E12: Accu | F12: 4710-4810 | G12: 4580 | I12: 5050-5300 | J12: Open | P12: =VLOOKUP(D12,'MidCap Intra'!$B$11:$C$568,2,0) -> 4759.65 | S12: H
A13: 4 | B13: 2024-04-12 | D13: GLAND | E13: Accu | F13: 1705-1750 | G13: 1625 | I13: 1875-2000 | J13: Open | P13: =VLOOKUP(D13,'MidCap Intra'!$B$11:$C$568,2,0) -> 1722.30 | S13: K
A14: 5 | B14: 2024-04-15 | D14: HDFCBANK | E14: Accu | F14: 1445-1497 | G14: 1377 | I14: 1630-1750 | J14: Open | P14: =VLOOKUP(D14,'MidCap Intra'!$B$11:$C$568,2,0) -> 1532.25 | S14: H
A15: 6 | B15: 2024-04-23 | D15: PRSMJOHNSN | E15: Accu | F15: 158-164 | G15: 149.5 | I15: 180-195 | J15: Open | P15: =VLOOKUP(D15,'MidCap Intra'!$B$11:$C$568,2,0) -> 162.75 | S15: H
A16: 7 | B16: 2024-04-29 | D16: SUNTV | E16: Accu | F16: 632.5-652.5 | G16: 618 | I16: 695-730 | J16: Open | P16: =VLOOKUP(D16,'MidCap Intra'!$B$11:$C$568,2,0) -> 657.80 | S16: H
A17: 8 | B17: 2024-04-30 | D17: LTF | E17: Accu | F17: 162-169 | G17: 159 | I17: 180-190 | J17: Open | P17: =VLOOKUP(D17,'MidCap Intra'!$B$11:$C$568,2,0) -> 169.75 | S17: H
A18: 9 | B18: 2024-04-30 | D18: KPITTECH | E18: Accu | F18: 1410-1480 | G18: 1360 | I18: 1600-1700 | J18: Open | P18: =VLOOKUP(D18,'MidCap Intra'!$B$11:$C$568,2,0) -> 1512.20 | S18: H
A19: 10 | B19: 2024-05-02 | D19: HCLTECH | E19: Accu | F19: 1310-1360 | G19: 1285 | I19: 1435-1510 | J19: Open | P19: =VLOOKUP(D19,'MidCap Intra'!$B$11:$C$568,2,0) -> 1360.70 | S19: H
A23: CLBS = Closing Basis ***
A24: Dividend adjusted <> | F24: Reinitiated $
A25: Part book {} | D25: s | F25: Revised stoploss #
A29: Master Trade High Risk
A30: Sr.no | B30: Date | D30: Company | E30: Rec | F30: Rec Price | G30: Stop Loss | H30: Call Closed At | I30: Target | J30: Remark | K30: Profit / Loss per share | L30: All charges | M30: Gain / Loss per Lot | N30: Lot | O30: Status | P30: Closed Date
A31: 1 | B31: 2024-04-26 | D31: TATACONSUM MAY FUT | E31: Buy | F31: 1100-1105 | G31: 1078 | I31: 1128-1150 | J31: Open | S31: H
A32: 2 | B32: 2024-05-02 | D32: JUBLFOOD MAY FUT | E32: Buy | F32: 456-458 | G32: 448 | I32: 468-478 | J32: Open | S32: H
A33: 3 | B33: 2024-05-02 | D33: ASIANPAINT MAY FUT | E33: Buy | F33: 3000-3005 | G33: 2950 | I33: 3055-3108 | J33: Open | S33: N
A38: Master Trade Medium Risk
A39: Sr.no | B39: Date | D39: Company | E39: Rec | F39: Rec Price | G39: Stop Loss | H39: Call Closed At | I39: Target | J39: Remark | K39: Profit/ Loss per lot | L39: All charges | M39: Gain / Loss per Lot | N39: Lot | O39: Status | P39: Closed Date
A40: 1 | B40: 2024-04-29 | D40: NIFTY 21800 PE 30 MAY | E40: Sell | F40: 80-82 | J40: Open | S40: H
D41: NIFTY 23200 CE 30 MAY | E41: Sell | F41: 94-96
A42: 2 | B42: 2024-05-02 | D42: KOTAKBANK 1600 CE 30 MAY | E42: Buy | F42: 32 | H42: 44 | J42: Profit of Rs.7/- | K42: =H42-F42 -> 12 | L42: 50.00 | M42: 2700.0 | N42: 400 | O42: Successful | P42: 2024-05-02 | S42: H
D43: KOTAKBANK 1660 CE 30 MAY | E43: Sell | F43: 16 | H43: 21 | K43: =F43-H43 -> -5 | L43: 50.00 | N43: 400
A44: 3 | B44: 2024-05-02 | D44: NIFTY 22700 PE 2-MAY | E44: Buy | F44: 40 | G44: 10 | H44: 65.5 | I44: 80-120 | J44: Profit of Rs.25.5/- | K44: =H44-F44 -> 25.5 | L44: 50.00 | M44: =(K44*N44)-L44 -> 1225.0 | N44: 50 | O44: Successful | P44: 2024-05-02 | S44: H
A45: 4 | B45: 2024-05-02 | D45: NIFTY 22700 PE 2-MAY | E45: Buy | F45: 37.5 | G45: 10 | H45: 57.5 | I45: 80-120 | J45: Profit of Rs.20/- | K45: =H45-F45 -> 20 | L45: 50.00 | M45: =(K45*N45)-L45 -> 950.0 | N45: 50 | O45: Successful | P45: 2024-05-02 | S45: H
A46: 5 | B46: 2024-05-02 | D46: KOTAKBANK 1600 CE 30 MAY | E46: Buy | F46: 38-40 | S46: H
D47: KOTAKBANK 1660 CE 30 MAY | E47: Sell | F47: 18-20
A48: 6 | B48: 2024-04-29 | D48: NIFTY 22600 CE 2-MAY | E48: Sell | F48: 132 | H48: 87 | J48: Profit of Rs.24/- | K48: =F48-H48 -> 45 | L48: 50.00 | M48: 1100.0 | N48: 50 | O48: Successful | P48: 2024-05-02 | S48: N
D49: NIFTY 22750 CE 2-MAY | E49: Buy | F49: 26 | H49: 5 | K49: =H49-F49 -> -21 | L49: 50.00 | N49: 50
A54: Techno -Funda (positional)
A55: Sr.no | B55: Date | D55: Company | E55: Rec | F55: Rec Price | G55: Stop Loss*** | H55: Call Closed At | I55: Target | J55: Remark | K55: Profit / Loss per Share/Lot | L55: All charges | M55: Net Gain / Loss % | N55: Status | O55: Closed Date | P55: Market Closing Price | Q55: Second Buying Date
A56: 1 | B56: 2024-03-05 | D56: TRIDENT | E56: Accu | F56: 37.3-41.30 | G56: 35 | I56: 48-52 | J56: Open | P56: =VLOOKUP(D56,'MidCap Intra'!$B$11:$C$568,2,0) -> 39.70 | S56: H
A57: 2 | B57: 2024-04-08 | D57: NILKAMAL | E57: Accu | F57: 1855-1955 | G57: 1770 | I57: 2150-2350 | J57: Open | S57: H
A59: CLBS = Closing Basis *** | F59: Reinitiated $
A60: Dividend adjusted <> | F60: Revised stoploss # | H60: .................
B69: Investment Idea
A70: Sr.no | B70: Date | D70: Company | E70: Rec | F70: Rec Price | G70: Point of Review | H70: Close Rate | I70: Target | J70: Remark | K70: Profit / Loss per Share | L70: Gain / Loss % | M70: Status | N70: Closed Date
A71: 1 | B71: 2013-11-01 | D71: L&T Finance Holding | E71: Accu | F71: 82.00 | G71: - | H71: 100 | I71: 100.00 | J71: Target Achieved | K71: =H71-F71 -> 18.00 | L71: =K71/F71 -> 21.95% | M71: Successful | N71: 2016-10-14
A72: 2 | B72: 2014-06-04 | D72: Finolex Inds | E72: Buy | F72: 257.00 | G72: - | H72: 300 | I72: 300.00 | J72: Target Achieved | K72: 43.00 | L72: 16.73% | M72: Successful | N72: 2014-07-02
A73: 3 | B73: 2014-07-08 | D73: JK Cement | E73: Buy | F73: 393.00 | G73: - | H73: 468 | I73: 468.00 | J73: Target Achieved | K73: 75.00 | L73: 19.08% | M73: Successful | N73: 2014-08-12
A74: 4 | B74: 2014-08-06 | D74: Finolex Cables | E74: Buy | F74: 205.00 | G74: - | H74: 275 | I74: 250.00 | J74: Target Achieved | K74: 70.00 | L74: 34.15% | M74: Successful | N74: 2014-11-19
A75: 5 | B75: 2014-09-04 | D75: Exide Inds | E75: Buy | F75: 162.00 | G75: - | H75: 190 | I75: 190.00 | J75: Target Achieved | K75: 28.00 | L75: 17.28% | M75: Successful | N75: 2015-01-02
A76: 6 | B76: 2014-09-04 | D76: Deepak Nitrite | E76: Buy | F76: 75.00 | G76: - | H76: 91.5 | I76: 95-100 | J76: Profit of Rs.16.50/- | K76: 16.50 | L76: 22.00% | M76: Successful | N76: 2014-11-11
A77: 7 | B77: 2014-10-01 | D77: Mercks | E77: Buy | F77: 850.00 | G77: - | H77: 982.5 | I77: 1050.00 | J77: Profit of Rs.132.50/- | K77: 132.50 | L77: 15.59% | M77: Successful | N77: 2015-02-04
A78: 8 | B78: 2014-10-01 | D78: Grindwell Norton | E78: Buy | F78: 475.00 | G78: - | H78: 515 | I78: 600.00 | J78: Profit of Rs.40/- | K78: 40.00 | L78: 8.42% | M78: Successful | N78: 2014-10-27
A79: 9 | B79: 2014-10-01 | D79: Snowman Logistics | E79: Buy | F79: 86.00 | G79: - | H79: 99 | I79: 140.00 | J79: Profit of Rs.13.00/- | K79: 13.00 | L79: 15.12% | M79: Successful | N79: 2014-10-27
A80: 10 | B80: 2014-10-14 | D80: Birla Corp | E80: Buy | F80: 496.60 | G80: - | H80: 621 | I80: 580.00 | J80: Target Achieved | K80: 124.40 | L80: 25.05% | M80: Successful | N80: 2016-08-23
A81: 11 | B81: 2014-10-14 | D81: Ultratech Cem | E81: Buy | F81: 2481.90 | G81: - | H81: 2840 | I81: 2870.00 | J81: Profit of Rs.358.10/- | K81: 358.10 | L81: 14.43% | M81: Successful | N81: 2015-01-13
A82: 12 | B82: 2014-10-16 | D82: Sintex Inds | E82: Buy | F82: 84.50 | G82: - | H82: 93 | I82: 110.00 | J82: Profit of Rs.8.50/- | K82: 8.50 | L82: 10.06% | M82: Successful | N82: 2014-10-27
A83: 13 | B83: 2014-10-16 | D83: HSIL | E83: Buy | F83: 401.00 | G83: - | H83: 428 | I83: 450.00 | J83: Profit of Rs.27.00/- | K83: 27.00 | L83: 6.73% | M83: Successful | N83: 2015-01-16
A84: 14 | B84: 2014-10-16 | D84: Eveready Inds | E84: Buy | F84: 101.00 | G84: - | H84: 112 | I84: 120.00 | J84: Profit of Rs.11.00/- | K84: 11.00 | L84: 10.89% | M84: Successful | N84: 2014-10-27
A85: 15 | B85: 2014-11-11 | D85: Pennar Inds | E85: Buy | F85: 59.00 | G85: - | H85: 76 | I85: 76.00 | J85: Target Achieved | K85: 17.00 | L85: 28.81% | M85: Successful | N85: 2017-10-24
A86: 16 | B86: 2014-11-11 | D86: Snowman Logistics | E86: Buy | F86: 99.00 | G86: - | H86: 120 | I86: 120.00 | J86: Profit of Rs.21/- | K86: 21.00 | L86: 21.21% | M86: Successful | N86: 2014-11-17
A87: 17 | B87: 2014-11-13 | D87: Dharamsi Morarji Chem | E87: Buy | F87: 22.00 | G87: - | H87: 33.55 | I87: 32.00 | J87: Profit of Rs 11.55/- | K87: 11.55 | L87: 52.50% | M87: Successful | N87: 2015-07-03
A88: 18 | B88: 2014-12-03 | D88: Tatachem | E88: Buy | F88: 440.00 | G88: - | H88: 520 | I88: 520.00 | J88: Profit of Rs 80.00/- | K88: 80.00 | L88: 18.18% | M88: Successful | N88: 2015-07-23
A89: 19 | B89: 2014-12-03 | D89: Advanta | E89: Buy | F89: 360.00 | G89: - | H89: 427 | I89: 425.00 | J89: Profit of Rs.67.00/- | K89: 67.00 | L89: 18.61% | M89: Successful | N89: 2015-02-23
A90: 20 | B90: 2015-01-08 | D90: GDL | E90: Buy | F90: 360.00 | G90: - | H90: 455 | I90: 420.00 | J90: Profit of Rs.95.00/- | K90: 95.00 | L90: 26.39% | M90: Successful | N90: 2015-01-20
A91: 21 | B91: 2015-01-08 | D91: NRB Bearing | E91: Buy | F91: 130.00 | H91: 175.5 | I91: 165.00 | J91: Profit of Rs 45.50/- | K91: 45.50 | L91: 35.00% | M91: Successful | N91: 2017-12-19
A92: 22 | B92: 2015-02-05 | D92: GSFC | E92: Accu | F92: 98.00 | H92: 120 | I92: 120.00 | J92: Target Achieved | K92: 22.00 | L92: 22.45% | M92: Successful | N92: 2017-01-18
A93: 23 | B93: 2015-02-05 | D93: Sundrmfast | E93: Accu | F93: 196.00 | H93: 262 | I93: 255.00 | J93: Target Achieved | K93: 66.00 | L93: 33.67% | M93: Successful | N93: 2016-08-17
A94: 24 | B94: 2015-03-04 | D94: GPPL | E94: Accu | F94: 235 | H94: 77.00 | I94: 280-285 | J94: Loss of Rs.158/- | K94: -158.00 | L94: -67.23% | M94: Unsuccessful | N94: 2019-02-26
A95: 25 | B95: 2015-03-04 | D95: ORIENTCEM | E95: Accu | F95: 185.00 | H95: 224 | I95: 220-225 | J95: Target Achieved | K95: 39.00 | L95: 21.08% | M95: Successful | N95: 2016-10-04
A96: 26 | B96: 2015-03-27 | D96: PFS | E96: Accu | F96: 49.5 | H96: 15.85 | I96: 67.00 | J96: Loss of Rs.33.65/- | K96: -33.65 | L96: -68% | M96: Unsuccessful | N96: 2019-06-11
A97: 27 | B97: 2015-03-30 | D97: Walchandnagar Ind Ltd | E97: Accu | F97: 183.50 | H97: 219 | I97: 218.00 | J97: Profit of Rs.35.50/- | K97: 35.50 | L97: 19.35% | M97: Successful | N97: 2015-04-09
A98: 28 | B98: 2015-04-20 | D98: Kalpataru Power Transmission Ltd | E98: Accu | F98: =(227+237)/2 -> 232.00 | H98: 298 | I98: 298.00 | J98: Target Achieved | K98: 66.00 | L98: 28.45% | M98: Successful | N98: 2017-03-29
A99: 29 | B99: 2015-05-04 | D99: Mastek Ltd | E99: Buy | F99: 385.00 | H99: =212.5+331 -> 543.5 | I99: 510.00 | J99: Profit of Rs 158.50/- | K99: 158.50 | L99: 41.17% | M99: Successful | N99: 2015-08-19
A100: 30 | B100: 2015-05-04 | D100: Suprajit Eng | E100: Buy | F100: 115.50 | H100: 146 | I100: 142.00 | J100: Profit of Rs 30.50/- | K100: 30.50 | L100: 26.41% | M100: Successful | N100: 2015-07-17
A101: 31 | B101: 2015-05-27 | D101: TCI | E101: Buy | F101: 237.50 | H101: 279.5 | I101: 278.00 | J101: Target Achieved | K101: 42.00 | L101: 17.68% | M101: Successful | N101: 2015-08-06
A102: 32 | B102: 2015-06-19 | D102: HSIL | E102: Accu | F102: 340.00 | H102: 448 | I102: 448.00 | J102: Target Achieved | K102: 108.00 | L102: 31.76% | M102: Successful | N102: 2017-10-10
A103: 33 | B103: 2015-07-06 | D103: Capital First | E103: Accu | F103: 390.00 | H103: 460 | I103: 460.00 | J103: Target Achieved | K103: =H103-F103 -> 70.00 | L103: =K103/F103 -> 17.95% | M103: Successful | N103: 2016-04-18
A104: 34 | B104: 2015-07-10 | D104: Dolphin OffShore | E104: Accu | F104: 122.5 | H104: 61.00 | I104: 172.00 | J104: Loss of Rs.61.50/- | K104: -61.50 | L104: -50.20% | M104: Unsuccessful | N104: 2018-08-21
A105: 35 | B105: 2015-08-03 | D105: Allcargo logistics | E105: Accu | F105: 297.50 | H105: 350 | I105: 360.00 | J105: Profit of Rs 52.50/- | K105: 52.50 | L105: 17.65% | M105: Successful | N105: 2015-08-16
A106: 36 | B106: 2015-08-03 | D106: Camline Fine | E106: Accu | F106: 115.50 | H106: 149 | I106: 140.00 | J106: Profit of Rs 33.50/- | K106: 33.50 | L106: 29.00% | M106: Successful | N106: 2017-01-05
A107: 37 | B107: 2015-09-04 | D107: TCI | E107: Accu | F107: 226.00 | H107: 292 | I107: 292.00 | J107: Target Achieved | K107: 66.00 | L107: 29.20% | M107: Successful | N107: 2015-10-09
A108: 38 | B108: 2015-09-07 | D108: Kalpataru Power Transmission Ltd | E108: Accu | F108: 232.50 | H108: 312.5 | I108: 310.00 | J108: Target Achieved | K108: 80.00 | L108: 34.41% | M108: Successful | N108: 2017-03-29
A109: 39 | B109: 2015-09-21 | D109: LLOYD ELECTRIC & ENG LTD | E109: Accu | F109: 196.50 | H109: 238 | I109: 238.00 | J109: Target Achieved | K109: 41.50 | L109: 21.12% | M109: Successful | N109: 2015-10-14
A110: 40 | B110: 2015-09-24 | D110: L&T Finance Holding | E110: Accu | F110: 65.00 | H110: 82 | I110: 82.00 | J110: Target Achieved | K110: 17.00 | L110: 26.15% | M110: Successful | N110: 2016-07-27
A111: 41 | B111: 2015-10-14 | D111: KEC International ltd | E111: Accu | F111: 144.00 | H111: 182.5 | I111: 181.00 | J111: Target Achieved | K111: 38.50 | L111: 26.74% | M111: Successful | N111: 2017-03-23
A112: 42 | B112: 2015-10-14 | D112: Gruh Finance | E112: Accu | F112: 264.00 | H112: 311 | I112: 311.00 | J112: Target Achieved | K112: 47.00 | L112: 17.80% | M112: Successful | N112: 2016-08-22
A113: 43 | B113: 2015-11-10 | D113: Pidilitind | E113: Buy | F113: 549.50 | H113: 630 | I113: 630.00 | J113: Target Achieved | K113: 80.50 | L113: 14.65% | M113: Successful | N113: 2016-02-19
A114: 44 | B114: 2015-12-04 | D114: Zensar Technology | E114: Accu | F114: 1027.50 | H114: 1315 | I114: 1250.00 | J114: Target Achieved | K114: 287.50 | L114: 27.98% | M114: Successful | N114: 2018-05-24
A115: 45 | B115: 2015-12-29 | D115: Vinati Organics Ltd | E115: Accu | F115: 465.00 | H115: 540 | I115: 540.00 | J115: Target Achieved | K115: 75.00 | L115: 16.13% | M115: Successful | N115: 2016-06-09
A116: 46 | B116: 2016-01-11 | D116: GSFC | E116: Buy | F116: 81.00 | H116: 110 | I116: 110.00 | J116: Target Achieved | K116: 29.00 | L116: 35.80% | M116: Successful | N116: 2017-01-10
A117: 47 | B117: 2016-01-13 | D117: SSWL | E117: Buy | F117: 417.50 | H117: 547 | I117: 535.00 | J117: Target Achieved | K117: 129.50 | L117: 31.02% | M117: Successful | N117: 2016-07-27
A118: 48 | B118: 2016-02-08 | D118: Persistent System Ltd | E118: Accu | F118: 650.00 | H118: 800 | I118: 800.00 | J118: Target Achieved | K118: 150.00 | L118: 23.08% | M118: Successful | N118: 2018-02-23
A119: 49 | B119: 2016-03-04 | D119: UPL | E119: Accu | F119: 437.50 | H119: 504.5 | I119: 522.00 | J119: Profit of Rs.67/- | K119: 67.00 | L119: 15.31% | M119: Successful | N119: 2016-04-20
A120: 50 | B120: 2016-03-09 | D120: Ashoka Buildcon Ltd | E120: Accu | F120: 189.50 | H120: 218 | I120: 218.00 | J120: Target Achieved | K120: 28.50 | L120: 15.04% | M120: Successful | N120: 2017-10-26
A121: 51 | B121: 2016-04-11 | D121: PTC INDIA FIN SERV LTD | E121: Accu | F121: 36.5 | H121: 15.85 | I121: 60.00 | J121: Loss of Rs.20.65/- | K121: -20.65 | L121: -56.58% | M121: Unsuccessful | N121: 2019-06-11
A122: 52 | B122: 2016-04-12 | D122: CAMLINFINE $ | E122: Accu | F122: 93.00 | H122: 149 | I122: 140.00 | J122: Profit of Rs 56/- | K122: 56.00 | L122: 60.22% | M122: Successful | N122: 2017-01-05
A123: 53 | B123: 2016-04-12 | D123: Greaves Cotton Ltd. | E123: Accu | F123: 130.00 | H123: 150 | I123: 150-155 | J123: Target Achieved | K123: 20.00 | L123: 15.38% | M123: Successful | N123: 2016-07-13
A124: 54 | B124: 2016-04-13 | D124: DHFL | E124: Accu | F124: 196.00 | H124: 299 | I124: 299.00 | J124: Target Achieved | K124: 103.00 | L124: 52.55% | M124: Successful | N124: 2016-09-07
A125: 55 | B125: 2016-04-13 | D125: Magma | E125: Accu | F125: 88.00 | H125: 103 | I125: 103.00 | J125: Target Achieved | K125: 15.00 | L125: 17.05% | M125: Successful | N125: 2016-06-09
A126: 56 | B126: 2016-05-02 | D126: KEC International ltd $ | E126: Accu | F126: 127.50 | H126: 148 | I126: 148-150 | J126: Target Achieved | K126: =H126-F126 -> 20.50 | L126: =K126/F126 -> 16.08% | M126: Successful | N126: 2016-07-13
A127: 57 | B127: 2016-05-03 | D127: Mindtree | E127: Accu | F127: 675.00 | H127: 815 | I127: 790-800 | J127: Target Achieved | K127: =H127-F127 -> 140.00 | L127: =K127/F127 -> 20.74% | M127: Successful | N127: 2018-02-23
A128: 58 | B128: 2016-06-01 | D128: Atulauto | E128: Accu | F128: 500 | H128: 232.50 | I128: 565-570 | J128: Loss of Rs.267.50 /- | K128: =H128-F128 -> -267.50 | L128: =K128/F128 -> -53.50% | M128: Unsuccessful | N128: 2019-09-27
A129: 59 | B129: 2016-06-06 | D129: TRITURBINE | E129: Accu | F129: 110.00 | H129: 126.5 | I129: 125.00 | J129: Profit of Rs.16.50/- | K129: =H129-F129 -> 16.50 | L129: =K129/F129 -> 15.00% | M129: Successful | N129: 2016-07-01
A130: 60 | B130: 2016-06-17 | D130: Pennar Industries Ltd | E130: Accu | F130: 44.00 | H130: 69.5 | I130: 69.50 | J130: Profit of Rs.25.50/- | K130: =H130-F130 -> 25.50 | L130: =K130/F130 -> 57.95% | M130: Successful | N130: 2017-08-30
A131: 61 | B131: 2016-06-28 | D131: EVEREADY | E131: Accu | F131: 262.50 | H131: 340 | I131: 333.00 | J131: Profit of Rs.77.50/- | K131: 77.50 | L131: 29.52% | M131: Successful | N131: 2017-10-09
A132: 62 | B132: 2016-06-28 | D132: FIEMIND | E132: Accu | F132: 840.00 | H132: 1230 | I132: 1230.00 | J132: Target Achieved | K132: 390.00 | L132: 46.43% | M132: Successful | N132: 2016-10-06
A133: 63 | B133: 2016-07-05 | D133: Bajaj Corp Ltd | E133: Accu | F133: 395 | H133: =(468.5+342.5)/2 -> 405.50 | I133: 510.00 | J133: Profit of Rs.10.50/- | K133: =H133-F133 -> 10.50 | L133: =K133/F133 -> 3% | M133: Neutral | N133: 2019-05-21
A134: 64 | B134: 2016-08-02 | D134: GPPL $ | E134: Buy | F134: =169.5-12.8 -> 156.7 | H134: 77.00 | I134: 198-200 | J134: Loss of Rs.79.7/- | K134: -79.70 | L134: -50.86% | M134: Unsuccessful | N134: 2019-02-26
A135: 65 | B135: 2016-08-04 | D135: WONDERLA HOLIDAYS LTD | E135: Accu | F135: 400 | H135: 305.00 | I135: 475.00 | J135: Loss of Rs.95/- | K135: -95.00 | L135: -23.75% | M135: Unsuccessful | N135: 2019-05-21
A136: 66 | B136: 2016-08-11 | D136: CAMLINFINE | E136: Accu | F136: 86.50 | H136: 130 | I136: 130.00 | J136: Profit of Rs.43.50/- | K136: 43.50 | L136: 50.29% | M136: Successful | N136: 2017-12-22
A137: 67 | B137: 2016-08-18 | D137: GRANULES | E137: Accu | F137: 133.5 | H137: 126.50 | I137: 178.00 | J137: Exit | K137: -7.00 | L137: -5.24% | M137: Unsuccessful | N137: 2016-09-02
A138: 68 | B138: 2016-08-31 | D138: VA TECH WABAG | E138: Accu | F138: 560.00 | H138: 725 | I138: 725.00 | J138: Target Achieved | K138: 165.00 | L138: 29.46% | M138: Successful | N138: 2016-03-27
A139: 69 | B139: 2016-09-01 | D139: SKIPPER LIMITED | E139: Accu | F139: 160.50 | H139: 210 | I139: 210.00 | J139: Target Achieved | K139: 49.50 | L139: 30.84% | M139: Successful | N139: 2017-05-16
A140: 70 | B140: 2016-10-03 | D140: IFBIND | E140: Accu | F140: 430.00 | H140: 596 | I140: 575.00 | J140: Profit of Rs.166/- | K140: 166.00 | L140: 38.60% | M140: Successful | N140: 2017-02-03
A141: 71 | B141: 2016-10-14 | D141: ASIANTILES | E141: Accu | F141: 280.00 | H141: 345 | I141: 345.00 | J141: Target Achieved | K141: =H141-F141 -> 65.00 | L141: =K141/F141 -> 23.21% | M141: Successful | N141: 2017-03-20
A142: 72 | B142: 2016-10-14 | D142: DEEPIND | E142: Accu | F142: 245.00 | H142: 325.5 | I142: 330.00 | J142: Profit of Rs.80.5/- | K142: 80.50 | L142: =K142/F142 -> 32.86% | M142: Successful | N142: 2017-02-03
A143: 73 | B143: 2016-10-17 | D143: DCBBANK | E143: Accu | F143: 125.00 | H143: 160 | I143: 160.00 | J143: Target Achieved | K143: 35.00 | L143: 28.00% | M143: Successful | N143: 2017-03-09
A144: 74 | B144: 2016-10-17 | D144: ORIENTREF | E144: Accu | F144: 114.00 | H144: 145 | I144: 145.00 | J144: Target Achieved | K144: 31.00 | L144: =K144/F144 -> 27.19% | M144: Successful | N144: 2017-05-04
A145: 75 | B145: 2016-10-17 | D145: GANECOS | E145: Accu | F145: 212.00 | H145: 280 | I145: 276.00 | J145: Profit of Rs.68/- | K145: 68.00 | L145: =K145/F145 -> 32.08% | M145: Successful | N145: 2017-05-03
A146: 76 | B146: 2016-11-04 | D146: NBCC | E146: Accu | F146: 155.00 | H146: 210 | I146: 210.00 | J146: Profit of Rs.55/- | K146: 55.00 | L146: =K146/F146 -> 35.48% | M146: Successful | N146: 2017-07-28
A147: 77 | B147: 2016-12-06 | D147: PRECAM | E147: Accu | F147: 150.5 | H147: 72.50 | I147: 174.00 | J147: Loss of Rs.78/- | K147: -78.00 | L147: -51.83% | M147: Unsuccessful | N147: 2018-08-21
A148: 78 | B148: 2016-12-08 | D148: INFRATEL | E148: Accu | F148: 380.00 | H148: 478 | I148: 468.00 | J148: Target Achieved | K148: =H148-F148 -> 98.00 | L148: =K148/F148 -> 25.79% | M148: Successful | N148: 2017-10-17
A149: 79 | B149: 2016-12-30 | D149: GODREJPROP | E149: Accu | F149: 305.00 | H149: 375 | I149: 375.00 | J149: Target Achieved | K149: =H149-F149 -> 70.00 | L149: =K149/F149 -> 22.95% | M149: Successful | N149: 2017-02-02
A150: 80 | B150: 2017-01-04 | D150: DEEPAKNTR | E150: Accu | F150: 99.50 | H150: 158 | I150: 158.00 | J150: Target Achieved | K150: =H150-F150 -> 58.50 | L150: =K150/F150 -> 58.79% | M150: Successful | N150: 2017-06-12
A151: 81 | B151: 2017-01-04 | D151: DEEPAKNTR | E151: Accu | F151: 99.50 | H151: 158 | I151: 158.00 | J151: Target Achieved | K151: 58.50 | L151: 58.79% | M151: Successful | N151: 2017-06-12
A152: 82 | B152: 2017-02-20 | D152: RECLTD | E152: Accu | F152: 140.50 | H152: 220 | I152: 220.00 | J152: Target Achieved | K152: =H152-F152 -> 79.50 | L152: =K152/F152 -> 56.58% | M152: Successful | N152: 2017-05-09
A153: 83 | B153: 2017-02-20 | D153: SUBROS | E153: Accu | F153: 202.50 | H153: 234 | I153: 234.00 | J153: Target Achieved | K153: 31.50 | L153: 15.56% | M153: Successful | N153: 2017-04-11
A154: 84 | B154: 2017-03-24 | D154: VRLLOG | E154: Accu | F154: 300.50 | H154: 417.5 | I154: 420.00 | J154: Profit of Rs.117/- | K154: =H154-F154 -> 117.00 | L154: =K154/F154 -> 38.94% | M154: Successful | N154: 2017-12-01
A155: 85 | B155: 2017-03-24 | D155: FIEMIND | E155: Accu | F155: 850.00 | H155: 1042.5 | I155: 1023.00 | J155: Profit of Rs 192.50/- | K155: 192.50 | L155: 22.65% | M155: Successful | N155: 2017-04-05
A156: 86 | B156: 2017-04-05 | D156: RATNAMANI | E156: Accu | F156: 785.00 | H156: 930 | I156: 920.00 | J156: Profit of Rs.145/- | K156: =H156-F156 -> 145.00 | L156: =K156/F156 -> 18.47% | M156: Successful | N156: 2017-08-29
A157: 87 | B157: 2017-04-06 | D157: ZEEMEDIA | E157: Accu | F157: 40 | H157: 13.10 | I157: 60.00 | J157: Loss of Rs.26.9/- | K157: -26.90 | L157: -67.25% | M157: Unsuccessful | N157: 2018-02-07
A158: 88 | B158: 2017-04-12 | D158: DABUR | E158: Accu | F158: 289.50 | H158: 354 | I158: 360.00 | J158: Profit of Rs.64.5/- | K158: =H158-F158 -> 64.50 | L158: =K158/F158 -> 22.28% | M158: Successful | N158: 2017-11-01
A159: 89 | B159: 2017-04-20 | D159: KPRMILL | E159: Accu | F159: 700.00 | H159: 840 | I159: 840.00 | J159: Profit of Rs.140/- | K159: 140.00 | L159: 20.00% | M159: Successful | N159: 2017-06-07
A160: 90 | B160: 2017-06-01 | D160: ESSELPACK | E160: Accu | F160: 130.00 | H160: 144.25 | I160: 170.00 | J160: Profit of Rs.14.25/- | K160: 14.25 | L160: 10.96% | M160: Successful | N160: 2019-07-29
A161: 91 | B161: 2017-06-15 | D161: KEI | E161: Accu | F161: 214.50 | H161: 262 | I161: 262.00 | J161: Profit of Rs.47.5/- | K161: 47.50 | L161: 22.14% | M161: Successful | N161: 2017-08-30
A162: 92 | B162: 2017-07-17 | D162: MAYURUNIQ | E162: Accu | F162: 370.00 | H162: 447.5 | I162: 450.00 | J162: Target Achieved | K162: 77.50 | L162: 20.95% | M162: Successful | N162: 2017-10-27
A163: 93 | B163: 2017-07-27 | D163: RAMCOCEM | E163: Accu | F163: 657.50 | H163: 825 | I163: 820.00 | J163: Target Achieved | K163: 167.50 | L163: 25.48% | M163: Successful | N163: 2017-12-21
A164: 94 | B164: 2017-08-17 | D164: FINPIPE | E164: Accu | F164: 605.00 | H164: 750 | I164: 750.00 | J164: Profit of Rs.145/- | K164: 145.00 | L164: 23.97% | M164: Successful | N164: 2017-10-19
A165: 95 | B165: 2017-09-01 | D165: SHK | E165: Accu | F165: 255 | H165: 217.25 | I165: 320.00 | J165: Loss of Rs.37.75/- | K165: -37.75 | L165: -15% | M165: Unsuccessful | N165: 2019-07-15
A166: 96 | B166: 2017-09-19 | D166: SKIPPER | E166: Accu | F166: 215.00 | H166: 258 | I166: 258.00 | J166: Target Achieved | K166: 43.00 | L166: 20.00% | M166: Successful | N166: 2017-11-01
A167: 97 | B167: 2017-09-19 | D167: SKIPPER | E167: Accu | F167: 215.00 | H167: 258 | I167: 258.00 | J167: Target Achieved | K167: 43.00 | L167: 20.00% | M167: Successful | N167: 2017-11-01
A168: 98 | B168: 2017-09-20 | D168: CAMLINFINE$ | E168: Accu | F168: 75.00 | H168: 90 | I168: 90.00 | J168: Profit of Rs.15.00/- | K168: =H168-F168 -> 15.00 | L168: =K168/F168 -> 20.00% | M168: Successful | N168: 2017-10-11
A169: 99 | B169: 2017-10-03 | D169: GNA | E169: Accu | F169: 315.00 | H169: 392 | I169: 384.00 | J169: Profit of Rs.77/- | K169: 77.00 | L169: 24.44% | M169: Successful | N169: 2017-10-09
A170: 100 | B170: 2017-10-05 | D170: NOCIL | E170: Accu | F170: 145.00 | H170: 179 | I170: 180.00 | J170: Profit of Rs.34/- | K170: 34.00 | L170: 23.45% | M170: Successful | N170: 2017-10-17
A171: 101 | B171: 2017-10-06 | D171: CENTURYPLY | E171: Accu | F171: 256.00 | H171: 323 | I171: 320.00 | J171: Target Achieved | K171: 67.00 | L171: 26.17% | M171: Successful | N171: 2017-11-28
A172: 102 | B172: 2017-10-09 | D172: EIHOTEL | E172: Accu | F172: 137.50 | H172: 184 | I172: 183.00 | J172: Profit of Rs.46.5/- | K172: 46.50 | L172: 33.82% | M172: Successful | N172: 2018-01-08
A173: 103 | B173: 2017-10-10 | D173: NRBBEARING | E173: Accu | F173: 125.50 | H173: 158 | I173: 155.00 | J173: Profit of Rs.32.5/- | K173: 32.50 | L173: 25.90% | M173: Successful | N173: 2017-11-28
A174: 104 | B174: 2017-10-10 | D174: BOROSIL | E174: Accu | F174: 895.00 | H174: 1122.5 | I174: 1078.00 | J174: Profit of Rs.227.5/- | K174: 227.50 | L174: 25.42% | M174: Successful | N174: 2018-01-17
A175: 105 | B175: 2017-10-12 | D175: CYIENT | E175: Accu | F175: 525.00 | H175: 629 | I175: 629.00 | J175: Target Achieved | K175: 104.00 | L175: 19.81% | M175: Successful | N175: 2018-01-19
A176: 106 | B176: 2017-11-07 | D176: HATSUN | E176: Accu | F176: 740.00 | H176: 892.5 | I176: 900.00 | J176: Profit of Rs.152.5/- | K176: =H176-F176 -> 152.50 | L176: =K176/F176 -> 20.61% | M176: Successful | N176: 2017-11-13
A177: 107 | B177: 2017-12-04 | D177: SANGHIIND | E177: Accu | F177: 118.50 | H177: 143.5 | I177: 145.00 | J177: Profit of Rs.25/- | K177: =H177-F177 -> 25.00 | L177: =K177/F177 -> 21.10% | M177: Successful | N177: 2017-12-28
A178: 108 | B178: 2017-12-21 | D178: KAJARIACER | E178: Accu | F178: 715 | H178: 500.00 | I178: 872.00 | J178: Loss of Rs.215/- | K178: =H178-F178 -> -215.00 | L178: =K178/F178 -> -30.07% | M178: Unsuccessful | N178: 2019-07-24
A179: 109 | B179: 2017-12-29 | D179: GNA | E179: Accu | F179: 435.00 | H179: 542.5 | I179: 539.00 | J179: Target Achieved | K179: 107.50 | L179: 24.71% | M179: Successful | N179: 2018-04-16
A180: 110 | B180: 2017-12-29 | D180: ZENSARTECH | E180: Accu | F180: 885.00 | H180: 1090 | I180: 1084.00 | J180: Target Achieved | K180: 205.00 | L180: 23.16% | M180: Successful | N180: 2018-04-23
A181: 111 | B181: 2018-04-02 | D181: EVERESTIND | E181: Accu | F181: 478.50 | H181: 442 | I181: 613.00 | J181: Loss of Rs.36.50 /- | K181: =H181-F181 -> -36.50 | L181: =K181/F181 -> -7.63% | M181: Unsuccessful | N181: 2019-10-24
A182: 112 | B182: 2018-04-04 | D182: GPPL$ | E182: Accu | F182: =141.5-7.3 -> 134.2 | H182: 77.00 | I182: 180.00 | J182: Loss of Rs.57.2/- | K182: =H182-F182 -> -57.20 | L182: =K182/F182 -> -42.62% | M182: Unsuccessful | N182: 2019-02-26
A183: 113 | B183: 2018-04-19 | D183: MANPASAND | E183: Accu | F183: 430 | H183: 220.00 | I183: 537.00 | J183: Loss of Rs.210/- | K183: =H183-F183 -> -210.00 | L183: =K183/F183 -> -48.84% | M183: Unsuccessful | N183: 2018-06-01
A184: 114 | B184: 2018-04-30 | D184: HEIDELBERG | E184: Accu | F184: 153.5 | H184: 196 | I184: 196.00 | J184: Profit of Rs.42.50/- | K184: =H184-F184 -> 42.50 | L184: =K184/F184 -> 27.69% | M184: Successful | N184: 2019-05-20
A185: 115 | B185: 2018-07-25 | D185: ZEEMEDIA | E185: Accu | F185: 27.5 | H185: 13.10 | I185: 60.00 | J185: Loss of Rs.14.40/- | K185: -14.40 | L185: -52.36% | M185: Unsuccessful | N185: 2018-02-07
A186: 116 | B186: 2018-08-06 | D186: GABRIEL | E186: Accu | F186: 148.5 | H186: 102 | I186: 182.00 | J186: Loss of Rs.46.50/- | K186: =H186-F186 -> -46.50 | L186: =K186/F186 -> -31.31% | M186: Unsuccessful | N186: 2019-07-15
A187: 117 | B187: 2018-08-23 | D187: INDIANHUME | E187: Accu | F187: 285 | H187: 355 | I187: 364.00 | J187: Profit of Rs.70/- | K187: 70.00 | L187: 24.56% | M187: Successful | N187: 2018-12-21
A188: 118 | B188: 2018-08-29 | D188: GRINDWELL | E188: Accu | F188: 525 | H188: 585 | I188: 635.00 | J188: Profit of Rs.60- | K188: =H188-F188 -> 60.00 | L188: =K188/F188 -> 11.43% | M188: Successful | N188: 2019-07-16
A189: 119 | B189: 2018-10-22 | D189: FINPIPE | E189: Accu | F189: 475 | H189: 574 | I189: 570.00 | J189: Target Achieved | K189: 99.00 | L189: 20.84% | M189: Successful | N189: 2018-10-30
A190: 120 | B190: 2018-10-24 | D190: GULFOILLUB | E190: Accu | F190: 707.5 | H190: 872 | I190: 872.00 | J190: Target Achieved | K190: 164.50 | L190: 23.25% | M190: Successful | N190: 2019-01-17
A191: 121 | B191: 2018-10-25 | D191: DBCORP | E191: Accu | F191: 162 | H191: 204 | I191: 209.00 | J191: Profit of Rs.42/- | K191: 42.00 | L191: 25.93% | M191: Successful | N191: 2019-03-15
A192: 122 | B192: 2018-10-26 | D192: RITES | E192: Accu | F192: 240 | H192: 297 | I192: 297.00 | J192: Target Achieved | K192: 57.00 | L192: 23.75% | M192: Successful | N192: 2018-11-13
A193: 123 | B193: 2018-12-05 | D193: BRIGADE | E193: Accu | F193: 202.5 | H193: 255 | I193: 252.00 | J193: Target Achieved | K193: 52.50 | L193: 25.93% | M193: Successful | N193: 2019-03-18 | S193: V
A194: 124 | B194: 2018-12-31 | D194: JKCEMENT | E194: Accu | F194: 710 | H194: 866 | I194: 866.00 | J194: Target Achieved | K194: 156.00 | L194: 21.97% | M194: Successful | N194: 2019-03-29 | S194: V
A195: 125 | B195: 2019-02-26 | D195: MARICO | E195: Accu | F195: 337.25 | H195: 398.5 | I195: 411.00 | J195: Profit of Rs.61.25/- | K195: 61.25 | L195: 18.16% | M195: Successful | N195: 2019-10-22 | S195: V
A196: 126 | B196: 2019-04-04 | D196: ITDCEM | E196: Accu | F196: 130 | H196: 65 | I196: 158.00 | J196: Loss of Rs.65 /- | K196: -65.00 | L196: -50.00% | M196: Unsuccessful | N196: 2019-09-18 | S196: K
A197: 127 | B197: 2017-10-09 | D197: RECLTD | E197: Accu | F197: 141.5 | H197: 183.5 | I197: 210.00 | J197: Profit of Rs.42/- | K197: 42.00 | L197: 29.68% | M197: Successful | N197: 2017-11-03 | S197: K
A198: 128 | B198: 2017-12-05 | D198: ALLCARGO | E198: Accu | F198: 172.00 | H198: 155.25 | I198: 230.00 | J198: Loss of Rs.16.75/- | K198: -16.75 | L198: -9.74% | M198: Unsuccessful | N198: 2019-11-18 | S198: K
A199: 129 | B199: 2018-10-25 | D199: GODREJCP | E199: Accu | F199: 698.5 | H199: 890 | I199: 890.00 | J199: Profit of Rs.191.50/- | K199: 191.50 | L199: 27.42% | M199: Successful | N199: 2021-05-12 | S199: V
A200: 130 | B200: 2017-05-22 | D200: GREAVESCOT | E200: Accu | F200: 127.6 | H200: 138 | I200: 190.00 | J200: Profit of Rs.10.40 | K200: 10.40 | L200: 8.15% | M200: Successful | N200: 2019-11-05 | S200: K
A201: 131 | B201: 2018-02-27 | D201: MOLDTKPAC | E201: Accu | F201: 317 | H201: 382.5 | I201: 398.00 | J201: Profit of Rs.65.5 | K201: 65.50 | L201: 20.66% | M201: Successful | N201: 2021-02-11 | S201: K
A202: 132 | B202: 2018-03-05 | D202: LICHSGFIN | E202: Accu | F202: =510-14.4 -> 495.60 | H202: 350 | I202: 672.00 | J202: Loss of Rs.145.60/- | K202: -145.60 | L202: -29.38% | M202: Unsuccessful | N202: 2020-02-26 | S202: V
A203: 133 | B203: 2018-05-17 | D203: PHILIPCARB | E203: Accu | F203: 230.30 | H203: 102.5 | I203: 348.00 | J203: Loss of Rs.127.80/- | K203: -127.80 | L203: -55.49% | M203: Unsuccessful | N203: 2020-03-06 | S203: V
A204: 134 | B204: 2018-06-07 | D204: KEC | E204: Accu | F204: =342.5-5.1 -> 337.4 | H204: 412.5 | I204: 439.00 | J204: Profit of Rs.75.10 | K204: 75.10 | L204: 22.26% | M204: Successful | N204: 2021-02-03 | S204: K
A205: 135 | B205: 2018-07-04 | D205: ASHOKLEY | E205: Accu | F205: =127.5-5.53 -> 121.97 | H205: 122.50 | I205: 170.00 | J205: Profit of Rs.0.53/- | K205: 0.53 | L205: 0% | M205: Neutral | N205: 2021-08-23 | S205: V
A206: 136 | B206: 2018-07-13 | D206: FCONSUMER | E206: Accu | F206: 46.50 | H206: 17 | I206: 59.00 | J206: Loss of Rs.29.50/- | K206: -29.50 | L206: -63.44% | M206: Unsuccessful | N206: 2020-02-26 | S206: V
A207: 137 | B207: 2018-10-23 | D207: JKPAPER | E207: Accu | F207: 156.5 | H207: 207.5 | I207: 191.00 | J207: Target Achieved | K207: 51.00 | L207: 32.59% | M207: Successful | N207: 2021-06-22 | S207: V
A208: 138 | B208: 2018-12-05 | D208: CCL | E208: Accu | F208: 259.5 | H208: 320 | I208: 320.00 | J208: Target Achieved | K208: 60.50 | L208: 23.31% | M208: Successful | N208: 2021-05-07 | S208: V
A209: 139 | B209: 2018-12-05 | D209: VARROC | E209: Accu | F209: 715 | H209: 445 | I209: 840.00 | J209: Loss of Rs.270/- | K209: -270.00 | L209: -37.76% | M209: Unsuccessful | N209: 2019-12-01 | S209: V
A210: 140 | B210: 2019-01-04 | D210: MGL | E210: Accu | F210: 875 | H210: 1165 | I210: 1185.00 | J210: Profit of Rs.290/- | K210: 290.00 | L210: 33.14% | M210: Successful | N210: 2020-01-17 | S210: V
A211: 141 | B211: 2019-04-04 | D211: COCHINSHIP | E211: Accu | F211: =387-14.63 -> 372.37 | H211: 490 | I211: 490.00 | J211: Target Achieved | K211: 117.63 | L211: 31.59% | M211: Successful | N211: 2020-01-20 | S211: V
A212: 142 | B212: 2019-04-23 | D212: MAHINDCIE | E212: Buy | F212: 220 | H212: 127.5 | I212: 284.00 | J212: Loss of Rs.92.50/- | K212: -92.50 | L212: -42.05% | M212: Unsuccessful | N212: 2020-03-06 | S212: V
A213: 143 | B213: 2019-06-06 | D213: RADICO | E213: Buy | F213: 332.8 | H213: 405 | I213: 419.00 | J213: Profit of Rs.72.20/- | K213: 72.20 | L213: 21.69% | M213: Successful | N213: 2020-01-30 | S213: K
A214: 144 | B214: 2019-06-25 | D214: M&MFIN | E214: Accu | F214: 386 | H214: 395.00 | I214: 452.00 | J214: Profit of Rs.9/- | K214: 9.00 | L214: 2% | M214: Neutral | N214: 2020-02-07 | S214: K
A215: 145 | B215: 2019-08-30 | D215: INDHOTEL | E215: Accu | F215: 137.5 | H215: 138.50 | I215: 190.00 | J215: Profit of Rs.1/- | K215: 1.00 | L215: 1% | M215: Neutral | N215: 2021-08-24 | S215: V
A216: 146 | B216: 2019-09-23 | D216: KNRCON | E216: Accu | F216: 235 | H216: 295 | I216: 296.00 | J216: Profit of Rs.60/- | K216: 60.00 | L216: 25.53% | M216: Successful | N216: 2020-01-14 | S216: K
A217: 147 | B217: 2019-10-14 | D217: KEC$ | E217: Accu | F217: 277.5 | H217: 333 | I217: 333.00 | J217: Profit of Rs.55.50/- | K217: 55.50 | L217: 20.00% | M217: Successful | N217: 2020-01-16 | S217: V
A218: 148 | B218: 2019-10-14 | D218: MGL$ | E218: Accu | F218: 930 | H218: 1165 | I218: 1200.00 | J218: Profit of Rs.235/- | K218: 235.00 | L218: 25.27% | M218: Successful | N218: 2020-01-17 | S218: K
A219: 149 | B219: 2019-10-15 | D219: JKPAPER$ | E219: Accu | F219: 111.00 | H219: 141 | I219: 141.00 | J219: Profit of Rs.30/- | K219: 30.00 | L219: 27.03% | M219: Successful | N219: 2021-05-12 | S219: K
A220: 150 | B220: 2019-10-15 | D220: RADICO$ | E220: Accu | F220: 296.00 | H220: 370 | I220: 370.00 | J220: Target Achieved | K220: =H220-F220 -> 74.00 | L220: =K220/F220 -> 25.00% | M220: Successful | N220: 2020-01-23 | S220: K
A221: 151 | B221: 2019-10-16 | D221: MOLDTKPAC$ | E221: Accu | F221: 300.00 | H221: 382.5 | I221: 344.00 | J221: Profit of Rs.82.5/- | K221: 82.50 | L221: 27.50% | M221: Successful | N221: 2021-02-11 | S221: K
A222: 152 | B222: 2020-01-02 | D222: PSPPROJECT | E222: Accu | F222: 495.00 | H222: 595 | I222: 590.00 | J222: Profit of Rs.100/- | K222: 100.00 | L222: 20.20% | M222: Successful | N222: 2022-01-28 | S222: K
A223: 153 | B223: 2020-05-15 | D223: BEL | E223: Accu | F223: 67.50 | H223: 86 | I223: 86.00 | J223: Profit of Rs.18.50/- | K223: 18.50 | L223: 27.41% | M223: Successful | N223: 2020-06-26 | S223: K
A224: 154 | B224: 2020-07-23 | D224: RITES | E224: Accu | F224: 231.00 | H224: 281 | I224: 281.00 | J224: Target Achieved | K224: 50.00 | L224: 21.65% | M224: Successful | N224: 2021-06-11 | S224: K
A225: 155 | B225: 2020-09-18 | D225: IEX | E225: Accu | F225: 206 | H225: 248 | I225: 248.00 | J225: Target Achieved | K225: 42.00 | L225: 20.39% | M225: Successful | N225: 2021-01-18 | S225: K
A226: 156 | B226: 2020-11-05 | D226: IEX | E226: Accu | F226: 182.5 | H226: 248 | I226: 248.00 | J226: Target Achieved | K226: 65.50 | L226: 35.89% | M226: Successful | N226: 2021-01-18 | S226: K
A227: 157 | B227: 2020-11-05 | D227: CCL | E227: Accu | F227: 247.5 | H227: 320 | I227: 320.00 | J227: Target Achieved | K227: 72.50 | L227: 29.29% | M227: Successful | N227: 2021-05-07 | S227: K
... 56 more rows
